{"text_format":"1","workbook":"xlsx","n_sheets":22,"sheets":["Placeholders","ResultsPH","Instructions","CPA-52","CART-Results","CleanAir","CleanWater","CoastalZone","CoralReefs","CulturalResources","EandTSpecies","EssentialFishHabitat","FloodplainManagement","InvasiveSpecies","MigratoryBirds&Eagles","NaturalAreas","PrimeUniqueFarmlands","RiparianArea","ScenicBeauty","Wetlands","WildScenicRivers","ResourceConcernChecklist"],"not_rendered":{"charts":0,"images":31,"macros":1,"external_links":8,"defined_names":130,"comments":18,"pivot_tables":0},"unopened":[],"bounds":{"document_bytes":16777216,"sheet_cells":100000,"rows_first":2000,"rows_last":500,"rows_between":2000,"halvings":0,"cell_chars":16384,"cell_head_chars":4096},"cells_cut":0,"cells_raw":0,"read":"whole","date_system":"1900"}

{"sheet":"Placeholders","index":0,"n_rows":171,"n_cols":1,"rows_kept":171,"cut":false,"hidden":true,"merged":[[36,17,36,28],[24,17,24,34],[29,17,29,34],[30,17,30,34],[31,17,31,34],[28,17,28,34],[7,17,7,34],[8,17,8,34],[9,17,9,34],[10,17,10,34],[11,17,11,34],[146,0,146,17],[147,0,147,17],[12,17,12,34],[13,17,13,34],[14,17,14,34],[25,17,25,34],[26,17,26,34],[20,17,20,34],[21,17,21,34],[23,17,23,34],[16,17,16,34],[17,17,17,34],[18,17,18,34],[19,17,19,34],[34,17,34,28],[35,17,35,28]]}
["\"SOIL\" drop down list"]
["Sheet and rill erosion"]
["Wind erosion"]
["Ephemeral gully erosion"]
["Classic gully erosion"]
["Bank erosion from streams, shorelines or water conveyance channels"]
["Subsidence"]
["Compaction"]
["Organic matter depletion"]
["Concentration of salts or other chemicals"]
["Soil organism habitat loss or degradation"]
["Aggregate instability"]
["No resource concern identified"]
[]
["\"WATER\" drop down list"]
["Ponding and flooding"]
["Seasonal high water table"]
["Seeps"]
["Drifted snow"]
["Surface water depletion"]
["Ground water depletion"]
["Naturally available moisture use"]
["Inefficient irrigation water use"]
["Nutrients transported to surface water"]
["Nutrients transported to groundwater"]
["Pesticides transported to surface water"]
["Pesticides transported to groundwater"]
["Pathogens and chemicals from manure, bio-solids or compost applications transported to surface water"]
["Pathogens and chemicals from manure, bio-solids or compost applications transported to groundwater"]
["Salts transported to surface water"]
["Salts transported to groundwater"]
["Petroleum, heavy metals, and other pollutants transported to surface water"]
["Petroleum, heavy metals, and other pollutants transported to groundwater"]
["Sediment transported to surface water"]
["Elevated water temperature"]
["No resource concern identified"]
[]
["\"AIR\" drop down list"]
["Emissions of Particulate Matter (PM) and PM Precursors"]
["Emissions of Greenhouse Gases (GHGs)"]
["Emissions of Ozone Precursors"]
["Objectionable odors"]
["Emissions of airborne reactive nitrogen"]
["No resource concern identified"]
[]
["\"PLANTS\" drop down list"]
["Plant productivity and health"]
["Plant structure and composition "]
["Plant pest pressure"]
["Wildfire hazard from biomass accumulation"]
["No resource concern identified"]
[]
[]
["\"ANIMALS\" drop down list"]
["Terrestrial habitat for wildlife and invertebrates"]
["Aquatic habitat for fish and other organisms"]
["Feed and forage imbalance"]
["Inadequate livestock shelter"]
["Inadequate livestock water  quantity, quality and distribution"]
["No resource concern identified"]
[]
["\"ENERGY\" drop down list"]
["Energy efficiency of equipment and facilities"]
["Energy efficiency of farming/ranching practices and field operations"]
["No resource concern identified"]
[]
[]
["\"HECS\" drop down list"]
["Public Health and Safety"]
["Land Use"]
["Capital"]
["Labor"]
["Management Level"]
["Profitability"]
["Risk"]
["Other"]
[]
["NEPA citations"]
["Technical Assistance (CTA) only; NRCS has no control over implementation of the preferred alternative."]
["Agricultural Conservation Easement Program (ACEP), NRCS, Environmental Assessment, December 2020"]
["Agricultural Management Assistance Program (AMAP), NRCS, Environmental Assessment, November 2002"]
["Conservation Stewardship Program (CSP), NRCS, Environmental Assessment, October 2020"]
["Emergency Watershed Protection Program (EWP), NRCS, Programmatic Environmental Impact Statement, April 2005"]
["Environmental Quality Incentives Program (EQIP), NRCS, Environmental Assessment, October 2020"]
["Healthy Forest Reserve Program (HFRP), NRCS, Environmental Assessment, April 2006"]
["Regional Conservation Partnership Program (RCPP), NRCS, Environmental Assessment, January 2021"]
["Partnerships for Climate Smart Commodities, NRCS, Environmental Assessment, August 2022"]
[]
["CEs"]
[]
["Restoration and Conservation Action Categorical Exclusions:"]
["(1) Planting appropriate herbaceous and woody vegetation, which does not include noxious weeds or invasive plants, on disturbed sites to restore and maintain the sites ecological functions and services;  Requires that the established vegetative community maintain the sites ecological functions and services, which could not be accomplished by converting native forests or grasslands"]
["(2) Removing dikes and associated appurtenances (such as culverts, pipes, valves, gates, and fencing) to allow waters to access floodplains to the extent that existed prior to the installation of such dikes and associated appurtenances"]
["(3) Plugging and filling excavated drainage ditches to allow hydrologic conditions to return to pre-drainage conditions to the extent practicable"]
["(4) Replacing and repairing existing culverts, grade stabilization, and water control structures and other small structures that were damaged by natural disasters where there is no new depth required and only minimal dredging, excavation, or placement of fill is required"]
["(5) Restoring the natural topographic features of agricultural fields that were altered by farming and ranching activities for the purpose of restoring ecological processes"]
["(6) Removing or relocating residential, commercial, and other public and private buildings and associated structures constructed in the 100-year floodplain or within the breach inundation area of an existing dam or other flood control structure in order to restore natural hydrologic conditions of inundation or saturation, vegetation, or reduce hazards posed to public safety"]
["(7) Removing storm debris and sediment following a natural disaster where there is a continuing and eminent threat to public health or safety, property, and natural and cultural resources and removal is necessary to restore lands to pre-disaster conditions to the extent practicable. Excavation will not exceed the pre-disaster condition"]
["(8) Stabilizing stream banks and associated structures to reduce erosion through bioengineering techniques following a natural disaster to restore pre-disaster conditions to the extent practicable, e.g., utilization of living and nonliving plant materials in combination with natural and synthetic support materials, such as rocks, riprap, geo-textiles, for slope stabilization, erosion reduction, and vegetative establishment and establishment of appropriate plant communities (bank shaping and planting, brush mattresses, log, root wad, and boulder stabilization methods)"]
["(9) Repairing or maintenance of existing small structures or improvements (including structures and improvements utilized to restore disturbed or altered wetland, riparian, in stream, or native habitat conditions). Examples of such activities include the repair or stabilization of existing stream crossings for livestock or human passage, levees, culverts, berms, dikes, and associated appurtenances"]
["(10) Constructing small structures or improvements for the restoration of wetland, riparian, in stream, or native habitats. Examples of activities include installation of fences and construction of small berms, dikes, and associated water control structures"]
["(11) Restoring an ecosystem, fish and wildlife habitat, biotic community, or population of living resources to a determinable pre-impact condition "]
["(12) Repairing or maintenance of existing constructed fish passageways, such as fish ladders or spawning areas impacted by natural disasters or human alteration "]
["(13) Repairing, maintaining, or installing fish screens to existing structures"]
["(14) Repairing or maintaining principal spillways and appurtenances associated with existing serviceable dams, originally constructed to NRCS standards, in order to meet current safety standards. Work will be confined to the existing footprint of the dam, and no major change in reservoir or downstream operations will result"]
["(15) Repairing or improving (deepening/widening/armoring) existing auxiliary/emergency spillways associated with dams, originally constructed to NRCS standards, in order to meet current safety standards. Work will be confined to the dam or abutment areas, and no major change in reservoir or downstream operation will result"]
["(16) Repairing embankment slope failures on structures, originally built to NRCS standards, where the work is confined to the embankment or abutment areas; "]
["(17) Increasing the freeboard (which is the height from the auxiliary (emergency) spillway crest to the top of embankment) of an existing dam or dike, originally built to NRCS standards, by raising the top elevation in order to meet current safety and performance standards. The purpose of the safety standard and associated work is to ensure that during extreme rainfall events, flows are confined to the auxiliary/emergency spillway so that the existing structure is not overtopped which may result in a catastrophic failure. Elevating the top of the dam will not result in an increase to lake or stream levels. Work will be confined to the existing dam and abutment areas, and no major change in reservoir operations will result. Examples of work may include the addition of fill material such as earth or gravel or placement of parapet walls"]
["(18) Modifying existing residential, commercial, and other public and private buildings to prevent flood damages, such as elevating structures or sealing basements to comply with current State safety standards and Federal performance standards"]
["(19) Undertaking minor agricultural practices to maintain and restore ecological conditions in floodplains after a natural disaster or on lands impacted by human alteration. Examples of these practices include: mowing, haying, grazing, fencing, offstream watering facilities, and invasive species control which are undertaken when fish and wildlife are not breeding, nesting, rearing young, or during other sensitive timeframes "]
["(20) Implementing soil control measures on existing agricultural lands, such as grade stabilization structures (pipe drops), sediment basins, terraces, grassed waterways, filter strips, riparian forest buffer, and critical area planting"]
["(21) Implementing water conservation activities on existing agricultural lands, such as minor irrigation land leveling, irrigation water conveyance (pipelines), irrigation water control structures, and various management practices"]
[]
["USDA Categorical Exclusions:"]
["(1) Policy development; planning and implementation which relate to routine activities, such as personnel, organizational changes, or similar administrative functions"]
["(2) Activities which deal solely with the funding of programs, such as program budget proposals, disbursements, and transfer or reprogramming of funds"]
["(3) Inventories, research activities, and studies, such as resource inventories and routine data collection when such actions are clearly limited in context and intensity"]
["(4) Educational and informational programs and activities"]
["(5) Civil and criminal law enforcement and investigative activities"]
["(6) Activities which are advisory and consultative to other agencies and public and private entities, such as legal counseling and representation"]
["(7) Activities related to trade representation and market development activities abroad"]
[]
["Data Gathering & Interpretation Categorical Exclusions:"]
["(1) Soil Survey"]
["(2) Snow Survey and Water Supply Forecasts (does NOT include structural activities)"]
["(3) Plant Materials for Conservation"]
["(4) Inventory and Monitoring"]
["(5) River Basin Studies under Section 6 under Public law (PL) 83-566 as amended"]
[]
["\"SEC\" drop down list"]
["No Effect"]
["May Affect"]
["\"SEC\" drop down list for T&E, EFH, MBTA/BGEA"]
["No Effect"]
["May Affect, NLAA "]
["May Affect, LAA"]
[]
["\"Context\" drop down list"]
["Local"]
["   -Fields and Tracts listed/linked in this EE Analysis"]
["   -Entire agricultural, or forestry operation"]
["   -Neighborhood, community"]
["   -Town or city"]
["   -County"]
["   -Stream reach"]
["   -Sub-watershed (ex. 12-digit HUC, or smaller)"]
["   -Airshed"]
["   -Viewshed"]
["   -Other local context (comments required:_____________________________________)"]
["Regional"]
["   -In-state region (ex. coastal region, plains region, mountain region)"]
["   -Multi-county area"]
["   -Watershed (ex. 10-digit HUC, or larger)"]
["   -Statewide, or Territory-wide"]
["   -Multi-state area (ex. Chesapeake Bay watershed, range of Lesser prairie chicken, Pacific Island area)"]
["   -Other regional context (comments required:_____________________________________)"]
["National"]
["   -Conterminous 48-states"]
["   -All 50 states"]
["   -All 50 states and territories"]
["   -Other national context (comments required:_____________________________________)"]
["Continental and Global"]
["   -Continental (ex. United States, Mexico, and Canada)"]
["   -Multi-continental (ex. North America and South America)"]
["   -Global"]
["   -Other continental and global context (comments required:_____________________________________)"]
[]
["Indicate to whom CPA52 is being provided."]
["   -Farm Service Agency (FSA)"]
["   -Conservation District"]
["   -Other (please describe:__________________________________)"]

{"sheet":"ResultsPH","index":1,"n_rows":89,"n_cols":23,"rows_kept":89,"cut":false,"hidden":false,"merged":[[0,14,0,22],[0,0,0,11],[1,18,1,19]]}
[null,null,null,null,null,null,null,null,null,null,null,null,null,null,"These results are pasted into CART-Results Tab+A1:K1"]
["Category","Resource Concerns","Components","Existing Conditions","Existing Practices","Existing Total","Existing Total Override","Planned Practices","Planned Total","Planned Total Override","Threshold","Actions",null,null,"Resource Concern Category","Resource Concern","Resource Concern Component","CART-Existing Condition","CART-Planned Effects",null,"Planning Criteria","Existing Override","Planned Override"]
["Air quality emissions","Emissions of airborne reactive nitrogen","Reactive nitrogen - nitrogen fertilizer",5,0,"5 Alert,One or more component totals does not meet threshold. See: Land Unit 12 / Tract 1378;","---",0,"5 Alert,One or more component totals does not meet threshold. See: Land Unit 12 / Tract 1378;","---",50,null,null,null,{"$f":"IF(A3<>\"\",A3,O2)","v":"Air quality emissions"},{"$f":"IF(B3<>\"\",B3,\"\")","v":"Emissions of airborne reactive nitrogen"},{"$f":"IF(C3<>\"\",C3,\"\")","v":"Reactive nitrogen - nitrogen fertilizer"},{"$f":"IF(ISNUMBER(SEARCH(\"Alert\",F3)),\"Not Met\",IF((D3+E3)<K3,\"Not Met\",\"Met\"))","v":"Not Met"},{"$f":"IF(H3<0.09,\"No Improvement\",IF(H3>=40,\"Substantial Improvement\",IF(H3>=20,\"Moderate Improvement\",IF(H3>0.09,\"Slight Improvement\",\"No Improvement\"))))","v":"No Improvement"},{"$f":"H3","v":0},{"$f":"IF(ISNUMBER(SEARCH(\"Alert\",I3)),\"Not Met\",IF((D3+E3+H3)>=K3,\"Met\",\"Not Met\"))","v":"Not Met"},{"$f":"IF((G3) = \"---\",\"---\",\"Yes\")","v":"---"},{"$f":"IF((J3) = \"---\",\"---\",\"Yes\")","v":"---"}]
[null,"Emissions of greenhouse gases - GHGs","GHGs - carbon stock",76,165,241,"---",30,271,"---",75,null,null,null,{"$f":"IF(A4<>\"\",A4,O3)","v":"Air quality emissions"},{"$f":"IF(B4<>\"\",B4,\"\")","v":"Emissions of greenhouse gases - GHGs"},{"$f":"IF(C4<>\"\",C4,\"\")","v":"GHGs - carbon stock"},{"$f":"IF(ISNUMBER(SEARCH(\"Alert\",F4)),\"Not Met\",IF((D4+E4)<K4,\"Not Met\",\"Met\"))","v":"Met"},{"$f":"IF(H4<0.09,\"No Improvement\",IF(H4>=40,\"Substantial Improvement\",IF(H4>=20,\"Moderate Improvement\",IF(H4>0.09,\"Slight Improvement\",\"No Improvement\"))))","v":"Moderate Improvement"},{"$f":"H4","v":30},{"$f":"IF(ISNUMBER(SEARCH(\"Alert\",I4)),\"Not Met\",IF((D4+E4+H4)>=K4,\"Met\",\"Not Met\"))","v":"Met"},{"$f":"IF((G4) = \"---\",\"---\",\"Yes\")","v":"---"},{"$f":"IF((J4) = \"---\",\"---\",\"Yes\")","v":"---"}]
[null,"Emissions of greenhouse gases - GHGs","GHGs - nitrogen fertilizer",5,0,"5 Alert,One or more component totals does not meet threshold. See: Land Unit 12 / Tract 1378;","---",0,"5 Alert,One or more component totals does not meet threshold. See: Land Unit 12 / Tract 1378;","---",50,null,null,null,"Air quality emissions","Emissions of greenhouse gases - GHGs","GHGs - nitrogen fertilizer","Not Met","No Improvement",0,"Not Met","---","---"]
[null,"Emissions of ozone precursors","Ozone - diesel engines",81,0,81,"---",0,81,"---",50,null,null,null,"Air quality emissions","Emissions of ozone precursors","Ozone - diesel engines","Met","No Improvement",0,"Met","---","---"]
[null,"Emissions of ozone precursors","Ozone - pesticides VOCs",5,0,"5 Alert,One or more component totals does not meet threshold. See: Land Unit 12 / Tract 1378;","---",0,"5 Alert,One or more component totals does not meet threshold. See: Land Unit 12 / Tract 1378;","---",50,null,null,null,"Air quality emissions","Emissions of ozone precursors","Ozone - pesticides VOCs","Not Met","No Improvement",0,"Not Met","---","---"]
[null,"Emissions of particulate matter (PM) and PM precursors","PM - diesel engines",81,0,81,"---",0,81,"---",50,null,null,null,"Air quality emissions","Emissions of particulate matter (PM) and PM precursors","PM - diesel engines","Met","No Improvement",0,"Met","---","---"]
[null,"Emissions of particulate matter (PM) and PM precursors","PM - nitrogen fertilizer",5,0,"5 Alert,One or more component totals does not meet threshold. See: Land Unit 12 / Tract 1378;","---",0,"5 Alert,One or more component totals does not meet threshold. See: Land Unit 12 / Tract 1378;","---",50,null,null,null,"Air quality emissions","Emissions of particulate matter (PM) and PM precursors","PM - nitrogen fertilizer","Not Met","No Improvement",0,"Not Met","---","---"]
[null,"Emissions of particulate matter (PM) and PM precursors","PM - pesticide drift",1,0,"1 Alert,One or more component totals does not meet threshold. See: Land Unit 12 / Tract 1378;","---",0,"1 Alert,One or more component totals does not meet threshold. See: Land Unit 12 / Tract 1378;","---",50,null,null,null,"Air quality emissions","Emissions of particulate matter (PM) and PM precursors","PM - pesticide drift","Not Met","No Improvement",0,"Not Met","---","---"]
["Concentrated erosion","Classic gully erosion","Classic gully erosion",51,0,51,"---",0,51,"---",50,null,null,null,"Concentrated erosion","Classic gully erosion","Classic gully erosion","Met","No Improvement",0,"Met","---","---"]
[null,"Ephemeral gully erosion","Ephemeral gully erosion",51,50,101,"---",15,116,"---",50,null,null,null,"Concentrated erosion","Ephemeral gully erosion","Ephemeral gully erosion","Met","Slight Improvement",15,"Met","---","---"]
["Degraded plant condition","Plant productivity and health","Plant productivity and health",40,30,70,"---",15,85,"---",50,null,null,null,"Degraded plant condition","Plant productivity and health","Plant productivity and health","Met","Slight Improvement",15,"Met","---","---"]
["Field pesticide loss","Pesticides transported to groundwater","Nonpoint pesticide leaching loss",36,60,96,"---",25,121,"---",30,null,null,null,"Field pesticide loss","Pesticides transported to groundwater","Nonpoint pesticide leaching loss","Met","Moderate Improvement",25,"Met","---","---"]
["Field sediment, nutrient and pathogen loss","Nutrients transported to groundwater","Nonpoint nitrogen leaching loss",11,25,"36 Alert,One or more component totals does not meet threshold. See: Land Unit 12 / Tract 1378;","---",15,51,"---",45,null,null,null,"Field sediment, nutrient and pathogen loss","Nutrients transported to groundwater","Nonpoint nitrogen leaching loss","Not Met","Slight Improvement",15,"Met","---","---"]
[null,"Nutrients transported to groundwater","Nonpoint phosphorus leaching loss",11,20,"31 Alert,One or more component totals does not meet threshold. See: Land Unit 12 / Tract 1378;","---",10,"41 Alert,One or more component totals does not meet threshold. See: Land Unit 12 / Tract 1378;","---",55,null,null,null,"Field sediment, nutrient and pathogen loss","Nutrients transported to groundwater","Nonpoint phosphorus leaching loss","Not Met","Slight Improvement",10,"Not Met","---","---"]
["Pest pressure","Plant pest pressure","Chemical resistance",51,15,66,"---",15,81,"---",50,null,null,null,"Pest pressure","Plant pest pressure","Chemical resistance","Met","Slight Improvement",15,"Met","---","---"]
[null,"Plant pest pressure","Invasive species",51,0,51,"---",0,51,"---",50,null,null,null,"Pest pressure","Plant pest pressure","Invasive species","Met","No Improvement",0,"Met","---","---"]
[null,"Plant pest pressure","Plant pest pressure",51,30,81,"---",15,96,"---",50,null,null,null,"Pest pressure","Plant pest pressure","Plant pest pressure","Met","Slight Improvement",15,"Met","---","---"]
["Soil quality limitations","Aggregate instability","Aggregate instability",51,80,131,"---",25,156,"---",50,null,null,null,"Soil quality limitations","Aggregate instability","Aggregate instability","Met","Moderate Improvement",25,"Met","---","---"]
[null,"Compaction","Compaction",51,70,121,"---",20,141,"---",1,null,null,null,"Soil quality limitations","Compaction","Compaction","Met","Moderate Improvement",20,"Met","---","---"]
[null,"Concentration of salts or other chemicals","Concentration of salts or other chemicals",51,50,101,"---",20,121,"---",1,null,null,null,"Soil quality limitations","Concentration of salts or other chemicals","Concentration of salts or other chemicals","Met","Moderate Improvement",20,"Met","---","---"]
[null,"Organic matter depletion","Organic matter depletion",61,80,141,"---",20,161,"---",60,null,null,null,"Soil quality limitations","Organic matter depletion","Organic matter depletion","Met","Moderate Improvement",20,"Met","---","---"]
[null,"Soil organism habitat loss or degradation","Soil organism habitat loss or degradation",51,80,131,"---",25,156,"---",50,null,null,null,"Soil quality limitations","Soil organism habitat loss or degradation","Soil organism habitat loss or degradation","Met","Moderate Improvement",25,"Met","---","---"]
["Source water depletion","Groundwater depletion","Groundwater depletion",51,65,116,"---",5,121,"---",50,null,null,null,"Source water depletion","Groundwater depletion","Groundwater depletion","Met","Slight Improvement",5,"Met","---","---"]
["Terrestrial habitat","Terrestrial habitat for wildlife and invertebrates","Terrestrial habitat for wildlife and invertebrates",50,20,70,"---",0,70,"---",50,null,null,null,"Terrestrial habitat","Terrestrial habitat for wildlife and invertebrates","Terrestrial habitat for wildlife and invertebrates","Met","No Improvement",0,"Met","---","---"]
["Wind and water erosion","Sheet and rill erosion","Sheet and rill erosion",40,115,155,"---",20,175,"---",80,null,null,null,"Wind and water erosion","Sheet and rill erosion","Sheet and rill erosion","Met","Moderate Improvement",20,"Met","---","---"]
[null,null,null,null,null,null,null,null,null,null,null,null,null,null,"Wind and water erosion","","","Met","No Improvement",0,"Met","Yes","Yes"]
[null,null,null,null,null,null,null,null,null,null,null,null,null,null,"Wind and water erosion","","","Met","No Improvement",0,"Met","Yes","Yes"]
[null,null,null,null,null,null,null,null,null,null,null,null,null,null,"Wind and water erosion","","","Met","No Improvement",0,"Met","Yes","Yes"]
[null,null,null,null,null,null,null,null,null,null,null,null,null,null,"Wind and water erosion","","","Met","No Improvement",0,"Met","Yes","Yes"]
[null,null,null,null,null,null,null,null,null,null,null,null,null,null,"Wind and water erosion","","","Met","No Improvement",0,"Met","Yes","Yes"]
[null,null,null,null,null,null,null,null,null,null,null,null,null,null,"Wind and water erosion","","","Met","No Improvement",0,"Met","Yes","Yes"]
[null,null,null,null,null,null,null,null,null,null,null,null,null,null,"Wind and water erosion","","","Met","No Improvement",0,"Met","Yes","Yes"]
[null,null,null,null,null,null,null,null,null,null,null,null,null,null,"Wind and water erosion","","","Met","No Improvement",0,"Met","Yes","Yes"]
[null,null,null,null,null,null,null,null,null,null,null,null,null,null,"Wind and water erosion","","","Met","No Improvement",0,"Met","Yes","Yes"]
[null,null,null,null,null,null,null,null,null,null,null,null,null,null,"Wind and water erosion","","","Met","No Improvement",0,"Met","Yes","Yes"]
[null,null,null,null,null,null,null,null,null,null,null,null,null,null,"Wind and water erosion","","","Met","No Improvement",0,"Met","Yes","Yes"]
[null,null,null,null,null,null,null,null,null,null,null,null,null,null,"Wind and water erosion","","","Met","No Improvement",0,"Met","Yes","Yes"]
[null,null,null,null,null,null,null,null,null,null,null,null,null,null,"Wind and water erosion","","","Met","No Improvement",0,"Met","Yes","Yes"]
[null,null,null,null,null,null,null,null,null,null,null,null,null,null,"Wind and water erosion","","","Met","No Improvement",0,"Met","Yes","Yes"]
[null,null,null,null,null,null,null,null,null,null,null,null,null,null,"Wind and water erosion","","","Met","No Improvement",0,"Met","Yes","Yes"]
[null,null,null,null,null,null,null,null,null,null,null,null,null,null,"Wind and water erosion","","","Met","No Improvement",0,"Met","Yes","Yes"]
[null,null,null,null,null,null,null,null,null,null,null,null,null,null,"Wind and water erosion","","","Met","No Improvement",0,"Met","Yes","Yes"]
[null,null,null,null,null,null,null,null,null,null,null,null,null,null,"Wind and water erosion","","","Met","No Improvement",0,"Met","Yes","Yes"]
[null,null,null,null,null,null,null,null,null,null,null,null,null,null,"Wind and water erosion","","","Met","No Improvement",0,"Met","Yes","Yes"]
[null,null,null,null,null,null,null,null,null,null,null,null,null,null,"Wind and water erosion","","","Met","No Improvement",0,"Met","Yes","Yes"]
[null,null,null,null,null,null,null,null,null,null,null,null,null,null,"Wind and water erosion","","","Met","No Improvement",0,"Met","Yes","Yes"]
[null,null,null,null,null,null,null,null,null,null,null,null,null,null,"Wind and water erosion","","","Met","No Improvement",0,"Met","Yes","Yes"]
[null,null,null,null,null,null,null,null,null,null,null,null,null,null,"Wind and water erosion","","","Met","No Improvement",0,"Met","Yes","Yes"]
[null,null,null,null,null,null,null,null,null,null,null,null,null,null,"Wind and water erosion","","","Met","No Improvement",0,"Met","Yes","Yes"]
[null,null,null,null,null,null,null,null,null,null,null,null,null,null,"Wind and water erosion","","","Met","No Improvement",0,"Met","Yes","Yes"]
[null,null,null,null,null,null,null,null,null,null,null,null,null,null,"Wind and water erosion","","","Met","No Improvement",0,"Met","Yes","Yes"]
[null,null,null,null,null,null,null,null,null,null,null,null,null,null,"Wind and water erosion","","","Met","No Improvement",0,"Met","Yes","Yes"]
[null,null,null,null,null,null,null,null,null,null,null,null,null,null,"Wind and water erosion","","","Met","No Improvement",0,"Met","Yes","Yes"]
[null,null,null,null,null,null,null,null,null,null,null,null,null,null,"Wind and water erosion","","","Met","No Improvement",0,"Met","Yes","Yes"]
[null,null,null,null,null,null,null,null,null,null,null,null,null,null,"Wind and water erosion","","","Met","No Improvement",0,"Met","Yes","Yes"]
[null,null,null,null,null,null,null,null,null,null,null,null,null,null,"Wind and water erosion","","","Met","No Improvement",0,"Met","Yes","Yes"]
[null,null,null,null,null,null,null,null,null,null,null,null,null,null,"Wind and water erosion","","","Met","No Improvement",0,"Met","Yes","Yes"]
[null,null,null,null,null,null,null,null,null,null,null,null,null,null,"Wind and water erosion","","","Met","No Improvement",0,"Met","Yes","Yes"]
[null,null,null,null,null,null,null,null,null,null,null,null,null,null,"Wind and water erosion","","","Met","No Improvement",0,"Met","Yes","Yes"]
[null,null,null,null,null,null,null,null,null,null,null,null,null,null,"Wind and water erosion","","","Met","No Improvement",0,"Met","Yes","Yes"]
[null,null,null,null,null,null,null,null,null,null,null,null,null,null,"Wind and water erosion","","","Met","No Improvement",0,"Met","Yes","Yes"]
[null,null,null,null,null,null,null,null,null,null,null,null,null,null,"Wind and water erosion","","","Met","No Improvement",0,"Met","Yes","Yes"]
[null,null,null,null,null,null,null,null,null,null,null,null,null,null,"Wind and water erosion","","","Met","No Improvement",0,"Met","Yes","Yes"]
[null,null,null,null,null,null,null,null,null,null,null,null,null,null,"Wind and water erosion","","","Met","No Improvement",0,"Met","Yes","Yes"]
[null,null,null,null,null,null,null,null,null,null,null,null,null,null,"Wind and water erosion","","","Met","No Improvement",0,"Met","Yes","Yes"]
[null,null,null,null,null,null,null,null,null,null,null,null,null,null,{"$f":"IF(A68<>\"\",A68,O67)","v":"Wind and water erosion"},{"$f":"IF(B68<>\"\",B68,\"\")","v":""},{"$f":"IF(C68<>\"\",C68,\"\")","v":""},{"$f":"IF(ISNUMBER(SEARCH(\"Alert\",F68)),\"Not Met\",IF((D68+E68)<K68,\"Not Met\",\"Met\"))","v":"Met"},{"$f":"IF(H68<0.09,\"No Improvement\",IF(H68>=40,\"Substantial Improvement\",IF(H68>=20,\"Moderate Improvement\",IF(H68>0.09,\"Slight Improvement\",\"No Improvement\"))))","v":"No Improvement"},{"$f":"H68","v":0},{"$f":"IF(ISNUMBER(SEARCH(\"Alert\",I68)),\"Not Met\",IF((D68+E68+H68)>=K68,\"Met\",\"Not Met\"))","v":"Met"},{"$f":"IF((G68) = \"---\",\"---\",\"Yes\")","v":"Yes"},{"$f":"IF((J68) = \"---\",\"---\",\"Yes\")","v":"Yes"}]
[null,null,null,null,null,null,null,null,null,null,null,null,null,null,"Wind and water erosion","","","Met","No Improvement",0,"Met","Yes","Yes"]
[null,null,null,null,null,null,null,null,null,null,null,null,null,null,"Wind and water erosion","","","Met","No Improvement",0,"Met","Yes","Yes"]
[null,null,null,null,null,null,null,null,null,null,null,null,null,null,"Wind and water erosion","","","Met","No Improvement",0,"Met","Yes","Yes"]
[null,null,null,null,null,null,null,null,null,null,null,null,null,null,"Wind and water erosion","","","Met","No Improvement",0,"Met","Yes","Yes"]
[null,null,null,null,null,null,null,null,null,null,null,null,null,null,"Wind and water erosion","","","Met","No Improvement",0,"Met","Yes","Yes"]
[null,null,null,null,null,null,null,null,null,null,null,null,null,null,"Wind and water erosion","","","Met","No Improvement",0,"Met","Yes","Yes"]
[null,null,null,null,null,null,null,null,null,null,null,null,null,null,"Wind and water erosion","","","Met","No Improvement",0,"Met","Yes","Yes"]
[null,null,null,null,null,null,null,null,null,null,null,null,null,null,"Wind and water erosion","","","Met","No Improvement",0,"Met","Yes","Yes"]
[null,null,null,null,null,null,null,null,null,null,null,null,null,null,"Wind and water erosion","","","Met","No Improvement",0,"Met","Yes","Yes"]
[null,null,null,null,null,null,null,null,null,null,null,null,null,null,"Wind and water erosion","","","Met","No Improvement",0,"Met","Yes","Yes"]
[null,null,null,null,null,null,null,null,null,null,null,null,null,null,"Wind and water erosion","","","Met","No Improvement",0,"Met","Yes","Yes"]
[null,null,null,null,null,null,null,null,null,null,null,null,null,null,"Wind and water erosion","","","Met","No Improvement",0,"Met","Yes","Yes"]
[null,null,null,null,null,null,null,null,null,null,null,null,null,null,"Wind and water erosion","","","Met","No Improvement",0,"Met","Yes","Yes"]
[null,null,null,null,null,null,null,null,null,null,null,null,null,null,"Wind and water erosion","","","Met","No Improvement",0,"Met","Yes","Yes"]
[null,null,null,null,null,null,null,null,null,null,null,null,null,null,"Wind and water erosion","","","Met","No Improvement",0,"Met","Yes","Yes"]
[null,null,null,null,null,null,null,null,null,null,null,null,null,null,"Wind and water erosion","","","Met","No Improvement",0,"Met","Yes","Yes"]
[null,null,null,null,null,null,null,null,null,null,null,null,null,null,"Wind and water erosion","","","Met","No Improvement",0,"Met","Yes","Yes"]
[null,null,null,null,null,null,null,null,null,null,null,null,null,null,"Wind and water erosion","","","Met","No Improvement",0,"Met","Yes","Yes"]
[null,null,null,null,null,null,null,null,null,null,null,null,null,null,"Wind and water erosion","","","Met","No Improvement",0,"Met","Yes","Yes"]
[null,null,null,null,null,null,null,null,null,null,null,null,null,null,"Wind and water erosion","","","Met","No Improvement",0,"Met","Yes","Yes"]
["RUN REPORT"]

{"sheet":"Instructions","index":2,"n_rows":386,"n_cols":4,"rows_kept":386,"cut":false,"hidden":false,"merged":[[151,1,153,16],[180,1,183,16],[258,17,258,19],[322,17,322,19],[347,17,347,19],[375,17,375,19],[155,1,155,16],[207,1,215,16],[224,1,228,16],[230,1,232,16],[174,1,178,16],[185,1,186,16],[190,2,194,16],[162,1,166,16],[168,1,172,16],[156,1,160,16],[196,1,198,16],[201,1,205,16],[200,1,200,16],[217,1,222,16],[262,1,262,16],[301,17,301,19],[187,2,187,16],[188,2,189,16],[342,17,344,17],[336,17,340,17],[324,17,326,17],[359,2,360,16],[133,17,133,19],[155,17,155,19],[66,17,66,19],[108,17,108,19],[115,17,115,19],[207,17,207,19],[235,17,235,19],[279,17,279,19],[140,17,141,18],[124,17,126,18],[143,17,146,17],[71,17,73,21],[139,21,141,22],[142,21,144,22],[187,17,190,17],[245,17,248,17],[224,17,226,17],[201,17,203,17],[144,1,149,16],[77,2,78,16],[390,1,390,4],[328,3,328,16],[351,2,357,16],[368,2,371,16],[385,1,388,16],[234,1,236,16],[321,1,323,16],[263,1,267,16],[283,1,289,16],[255,1,255,16],[259,2,259,16],[249,1,253,16],[378,1,379,16],[325,2,327,16],[329,3,329,16],[330,3,332,16],[334,2,344,16],[345,2,349,16],[274,0,281,16],[385,0,388,0],[382,1,383,16],[380,1,381,16],[373,1,373,16],[376,1,377,16],[374,1,375,16],[362,2,366,16],[269,1,272,16],[238,1,247,16],[307,1,318,16],[290,1,296,16],[298,1,305,16],[0,0,1,16],[19,0,19,16],[20,0,22,16],[3,0,3,3],[4,0,9,16],[11,0,18,16],[55,1,59,16],[54,1,54,16],[137,1,142,16],[68,1,69,16],[92,2,93,16],[101,2,101,16],[95,2,96,16],[61,1,66,16],[80,2,80,16],[129,1,135,16],[81,2,82,16],[16,17,18,18],[36,17,36,19],[1,17,1,19],[25,0,25,8],[26,1,26,8],[43,1,52,16],[28,1,29,16],[30,1,32,16],[34,1,34,16],[36,1,41,16],[116,1,121,16],[123,1,126,16],[128,1,128,16],[98,2,99,16],[100,2,100,16],[84,2,85,16],[86,2,87,16],[110,2,111,16],[103,2,103,16],[89,2,90,16],[115,1,115,16],[112,2,113,16]]}
[" Instructions for Completing the \nEnvironmental Evaluation Worksheet (Form NRCS-CPA-52)"]
[]
[]
["INTRODUCTION"]
["The Environmental Evaluation (EE) is “the part of planning that inventories and estimates the potential effects on the human environment of alternative solutions to resource problems”.  (7 CFR 650.4 and GM 190 Part 410.4(D).)  This form provides for the documentation of that part of the planning process, and was designed to assist the conservation planner with compliance requirements for applicable Federal laws, regulations, Executive Orders, and policy.  The form also provides a framework for documenting compliance with applicable State, Tribal and local requirements.  "]
[]
[]
[]
[]
[]
[]
["NRCS is required to conduct an EE for all planning to determine if there is a need for an Environmental Assessment (EA) or an Environmental Impact Statement (EIS).  The EE process results in a \"Finding\" or conclusion (see guidance for \"Q\" below) that, either further NEPA analysis is required (EA or EIS) or that no EA or EIS is required because: 1) There is no federal action; 2) The action is categorically excluded; or 3) There is an existing NRCS or NRCS-adopted NEPA document that has sufficiently analyzed the effects of this action.  The EE applies to all assistance provided by NRCS (7 CFR 650.5 and GM 190, Part 410.5). The NRCS-CPA-52 form is used by NRCS to document the results of the evaluation and show compliance with NRCS regulations implementing NEPA at 7 CFR Part 650."]
[]
[]
[]
[]
[]
[]
[]
[]
["A copy of the NRCS-CPA-52, including supporting documentation such as Special Environmental Concerns Evaluation Procedure Guide Sheets, must be included in the administrative file.   Do not hesitate to attach additional documents if needed to meet environmental evaluation requirements."]
[]
[]
[]
[]
["COMPLETING THE NRCS-CPA-52 "]
["A.","Client Name"]
[]
["B.  ","Conservation Plan ID # (as applicable)"]
[]
[null,"Program Authority (optional):  Identifying the program authority (EQIP, CSP, etc.) can help lead the planner to the appropriate NRCS NEPA document the planner may tier to as addressed later in section \"R. Rationale Supporting the Finding\"."]
[]
[]
[]
["C.  ","Identification #:  Record any other relevant client identification # (farm, tract, field #, etc.)."]
[]
["D.  ","Client's Objective(s) (purpose):  (Record results from planning step 2.)  Briefly summarize the client's stated objective(s) [synonymous to \"Purpose\" under NEPA]. Refer to Step 2 of the NRCS planning process found in the NPPH, Part 600.22 for help, if needed.  \"Purpose\" refers to a goal or desired future condition being pursued in the process of meeting the \"Need\", such as keeping the operation economically viable or meeting TMDL requirements.  Clearly articulated purposes become the decision factors used to decide between the action alternatives. "]
[]
[]
[]
[]
[]
[]
["E.  ","Need for Action:  (Record results from planning step 1.)  Describe the underlying need being met. Why is the action being proposed?  What is the root cause of the existing problem or opportunity?  The underlying need will define and shape the alternatives and potentially justify the expenditure of federal funds; therefore it is important to accurately articulate the need(s) based on the identified resource concerns and the client objectives.  All alternatives should clearly address an underlying need(s).  In conservation planning, a \"need\" is usually a required improvement in the condition of a natural resource(s), such as when the quality of runoff water from a farm does not meet State standards, or inadequate forage supply and/or grazing strategies are resulting in poor livestock performance. Use information from Steps 3 and 4 of the Conservation Planning Process  to help define the need.  Identify here which Resource Concerns need to be addressed in the plan.  "]
[]
[]
[]
[]
[]
[]
[]
[]
[]
[]
["F.","Resource Concerns and Existing / Benchmark Conditions:"]
[null,"Resource Concerns  (Record results from planning steps 3 and 4.)  Record the resource concerns that have been identified through the scoping and Resources Inventory and Analysis processes.  Use the Resource Concern List and Planning Criteria Section 3 to identify Resource Concerns present and use approved Measurement and Assessment Tools to compare the potential environmental effects of alternatives.  Include resource concerns that apply, adding additional sheets as necessary.  "]
[]
[]
[]
[]
[]
[null,"Documenting Existing/Benchmark Conditions  (Record results from planning step 4.)  Analyze the existing (benchmark) conditions for each relevant concern.  Record the amount, kind, status, location and method of measurement for each identified concern.  For example, if soil erosion were identified as a resource concern, the recorded benchmark might be \"64 ac sheet & rill @ 6T/ac/yr, field 3, RUSLE 2.\" The benchmark is the baseline from which the change in resource condition under the no action and other alternatives is measured. Without it, there is no context for the degree of change. "]
[]
[]
[]
[]
[]
[]
[null,"Human - Below are some examples for what to consider when addressing Human Economic and Social Considerations.   "]
[]
[null,"Land use:"]
[null,"●","Is the present land use suitable for the proposed alternative? "]
[null,"●","Will land use change after practice(s) installation? "]
[null,"●","How will a change affect the operation?  (e.g., Feed and Forage Balance Sheet)"]
[null,"●","Will the action affect resources on which people depend for subsistence, employment or recreation?"]
[null,"●","Will land be taken in or out of production?"]
[null,"Capital:"]
[null,"●","Does the producer have the funds or ability to obtain the funds needed to implement the proposed alternative?"]
[]
[null,"●","What are the impacts of the cost of the initial investment for this alternative?"]
[null,"●","What are the impacts of any additional annual costs for Operation and Maintenance?"]
[null,"●","What possible impact does implementing this alternative have on the client’s future eligibility for farm programs?"]
[]
[null,"Labor:"]
[null,"●","Does the client understand the amount and kind of labor needed to implement, operate and maintain the proposed practice(s)?"]
[]
[null,"●","Does the client have the skills and time to carry out the conservation practice(s) or will they have to hire someone?"]
[]
[null,"Management level:"]
[null,"●","Does the client understand the inputs needed to manage the practice(s) and the client's responsibility in obtaining these inputs?  "]
[]
[null,"●","Does the client understand their responsibility to maintain practice(s) as planned and implemented?"]
[null,"●","Is it necessary for the client to obtain additional education, or hire a technical consultant, to operate and/or maintain the practice(s)?"]
[]
[null,"Profitability:"]
[null,"●","Profitability describes the relative benefits and costs of the farm or ranch operation, and is often measured in dollars.  An activity is profitable if the benefits are greater than the costs."]
[]
[null,"●","Is the proposed alternative needed and feasible? "]
[null,"●","Do the benefits of improving the current operation outweigh the installation and maintenance costs (positive benefit/cost ratio)? "]
[]
[null,"●","Is there a reasonable expectation of long-term profitability/benefits for the operation if implemented?"]
[null,"●","Will crop, livestock, or wildlife yield increase/decrease?"]
[null,"Risk:"]
[null,"●","What is the potential for monetary loss, physical injury, or damage to resources or the environment?"]
[null,"●","Will the proposed alternative aid/risk client participation in USDA programs?"]
[null,"●","Is there flexibility in modifying the conservation plan at a future date?"]
[null,"●","What issues are involved with the timing of installation and maintenance?"]
[null,"●","What are the cash flow requirements of this alternative?"]
[null,"●","What, if any, are the hazards involved?"]
[null,"Public Health and Safety:"]
[null,"●","What effect (both positive or negative) will the action have on the client and community with regard to public health and safety?"]
[]
[null,"●","Are there any hazards associated with no action or any of the alternatives about which the client should be informed?"]
[]
[]
["G.","Special Environmental Concerns (Record results from planning steps 3 and 4.)"]
[null,"Under each Special Environmental Concern, document the current status or condition of the concern.  Record the amount, kind, status, location, and method of measurement or source of information for each special resource concern.  For example, if endangered species habitat is present, under Endangered and Threatened Species, the recorded benchmark condition is “64 ac, I-bat habitat-roosting cover, field 3, FOTG-2.”  If it is determined that no floodplains exist within the affected planning area, document the fact and cite the source.  The benchmark condition would read “not present, FEMA flood map #xxx.”   "]
[]
[]
[]
[]
[]
[]
[null,"For guidance in addressing special environmental concerns, see NECH Subpart B and the Special Environmental Concern Evaluation Procedure Guide Sheets. Document any additional State and/or local special environmental concerns in \"K. Other Agencies and Broad Public Concerns\".  Attach additional documentation if needed.  "]
[]
[]
[]
[]
["H.","Alternatives  (Record results from Planning step 5.)"]
[null,"Describe Alternatives  Briefly summarize the practice/system of practices being proposed.  The no action alternative is required.  Alternatives should be formulated to meet the underlying need.  Note that the no action alternative may not meet the underlying need and is still required to be evaluated and compared to other alternatives (see below).  To the extent possible, the alternatives should also prevent additional problems from occurring and take advantage of available opportunities. If there are unresolved conflicts concerning alternative uses of resources, appropriate alternatives that meet the underlying need must be developed."]
[]
[]
[]
[]
[]
[]
[]
[null,"\"No Action\":  Include a brief summary of the activities that would be implemented in the absence of USDA assistance (financial or technical).  Unless a change in management direction or intensity will be undertaken, record effects of existing activities.  The \"No Action\" alternative requires the same level of analysis as other alternatives.  It should answer the question of what impacts are likely to occur (or what the predicted future condition of the identified resource concerns might be) under the client's current and planned management strategies without implementation of a federally assisted action."]
[]
[]
[]
[]
[]
[]
[null,"\"Alternatives 1,2,etc.\":  List here the practices or system of practices being proposed for each alternative.  Indicate if the alternative meets RMS criteria based on your State's requirements. One or more other alternatives may be evaluated to aid in the decision-making process or at the request of the client.  It is beneficial for one alternative to contain the practices that NRCS has determined best address all of the identified resource concerns (RMS alternative) so the client can consider potential future conservation actions. Use additional sheets if necessary.  \n"]
[]
[]
[]
[]
[]
[]
[null,"It is important to quantify to the extent feasible the differences between each alternative, including the \"No Action\" alternative.  See \"Helpful Tips\" in the NECH, Part 610.67 for guidance on narrowing the scope of your analysis when considering alternatives."]
[]
[]
[]
["I.","Effects of Alternatives  (Record results from planning step 6.)"]
[null,"Under \"Amount, Status, Description,\" record the effect of each alternative on the concerns listed, quantifying where possible.  Consider and document both short-term and long-term consequences for all foreseeable direct, indirect, and cumulative effects (described below).  If a change to the concern is predicted, then estimate the amount.  Professional judgment should be used where Planning Criteria or other tools are not available."]
[]
[]
[]
[]
[]
[null,"Resource Concerns  Use your State's FOTG Section III Planning Criteria to identify the established threshold levels for resource concerns.  Professional judgment should be used where Planning Criteria or other tools are not available.  Place a check in the \"NOT meet PC\" box for each resource concern to indicate when FOTG Section III Planning Criteria will not be met (i.e., where additional measures are needed to meet PC)."]
[]
[]
[]
[]
[]
[null,"Analyze effects based on the combined effect of all practices on the resource concern.  For example, if one proposed practice may impact the water quality of an adjacent stream, but another proposed practice such as a buffer may reduce or eliminate the impact, the overall effect is the one that should be recorded here.  As mentioned above, one or more \"Other Alternative(s)\" may be evaluated to aid in the decision-making process or at the request of the client. Use additional sheets if necessary.  "]
[]
[]
[]
[]
[]
[null,"\"No Action\":  Record the impacts that are likely to occur (or what the predicted future condition of the identified resource concerns might be) under the client's planned management strategies without implementation of a federally assisted action.  Address impacts to each identified resource concern, quantifying where possible.  If this information is found elsewhere in the conservation plan, simply provide a summary here."]
[]
[]
[]
[]
[]
[null,"\"Alternatives 1,2, etc.\":  Record the impacts that are likely to occur under each alternative scenario.  Document impacts to each identified resource concern, quantifying where possible.  If this information is found elsewhere in the conservation plan, simply provide a summary here.  Include both short and long-term consequences in the analysis."]
[]
[]
[]
[]
[null,"Categories of Effects to Consider-  There are three categories of effects that must be considered when predicting short- and long-term effects of an alternative on resource concerns:"]
[]
[null,null,"Direct effects are caused by the alternative and occur at the same time and place."]
[null,null,"Indirect effects are caused by the alternative and are later in time or farther removed in distance, but are still reasonably foreseeable (e.g., \"downstream\" effects)."]
[]
[null,null,"Cumulative effects are those that result from all past, present, and reasonably foreseeable future actions. They can result from individually minor but collectively significant actions taking place over a period of time. Cumulative effects are most appropriately analyzed on a watershed or areawide level.  Cumulative impacts ideally consider \"...all actions in the area of potential effect, REGARDLESS of what agency (Federal or non-Federal) or person undertakes such other actions.\" (CEQ 1508.7)"]
[]
[]
[]
[]
[]
[null,"The NECH, Part 610.70, \"Effects Analysis,\" provides important information on describing effects so that an adequate analysis can be made and appropriate mitigation measures included when the proposed alternative has adverse effects. (See also Section L.)"]
[]
[]
[]
["J.","Impacts to Special Environmental Concerns (Record results from planning step 6.)"]
[null,"Briefly describe the status and/or description of effects on all identified Special Environmental Concerns, and include supporting data as needed.  Document the degree of change in amount/condition, using the same protocols and units of measure used to determine the benchmark condition.  It is important to consider and document both short-term and long-term consequences for all foreseeable direct, indirect, and cumulative effects on these resource concerns."]
[]
[]
[]
[]
[]
[null,"Place a check in the \"needs further action\" box when effects have not been fully determined or when additional procedural action is needed, such as the need for a permit or completing required consultation with regulatory agencies.  Where consultation with another federal agency is required (e.g., USFWS or NMFS) to determine potential environmental effects, follow established State protocols or contact the appropriate NRCS State Specialist for guidance.  Neither the NEPA Finding in Section \"Q\" nor practice implementation should occur until all required consultations and coordination with the appropriate agency have been completed and all necessary permits provided.  Planning and practice implementation may continue for practices not involved in required consultation/coordination efforts only if they are not connected to, or dependent on, the other action."]
[]
[]
[]
[]
[]
[]
[]
[]
[]
[null,"Complete applicable Evaluation Procedure Guide Sheets or other state specific documentation as needed and include them in the client's administrative file.  If the Special Environmental Concern is not present in the project area then there is no need to attach the Guide Sheet.  Completion of Guide Sheets is not mandatory, but appropriate documentation must be provided.  Check your own States' guidance for compliance and planning requirements."]
[]
[]
[]
[]
[]
[]
["K.","Other Agencies and Broad Public Concerns:  List any necessary easements, permissions, or permits (e.g., Clean Water Act, Endangered Species Act, wetland mitigation easements, state or county permits) required to implement the alternatives.  Remember that identifying needed permits for ALL alternatives may be an important decision criteria between alternatives and should be considered during the planning process."]
[]
[]
[]
[]
[]
[null,"Relay public concerns related to land-use, demographics, landscape characteristics, or other Federal, Tribal, State, and local laws/regulations.  Document the impacts of each alternative on these issues.  Responses will impact the selection of an alternative as well as issues surrounding \"significance.\""]
[]
[]
[]
[null,"Document contact and communications with USFWS, NOAA-NMFS, Corps, EPA, SWCD's, NRCS State Office, State/Tribal/local environmental agencies, etc., and others consulted, including public participation activities. The NECH provides important information on public participation requirements."]
[]
[]
[]
[null,"Cumulative Effects.  (See NECH Exhibit 610.126)  A cumulative impact is defined as \"the impact on the environment which results from the incremental impact of the action when added to other past, present and reasonably foreseeable future actions regardless of what agency (federal or non-federal) or person undertakes such other actions. Cumulative impacts can result from individually minor but collectively significant actions taking place over a period of time\" (40 CFR 1508.70). Cumulative effects include the direct and indirect effects of a project together with the effects from reasonably foreseeable future actions of others. For a project to be reasonably foreseeable, it must have advanced far enough in the planning process that its implementation is likely.  Reasonably foreseeable future actions are not speculative, are likely to occur based on reliable resources and are typically characterized in planning documents.  Add additional pages as needed."]
[]
[]
[]
[]
[]
[]
[]
[]
[]
[]
["L.","Mitigation:  Include here any mitigation measures that are NOT already incorporated in the alternatives that will offset any adverse impacts.  This may include conditions included in required permits.  Briefly describe or reference all mitigation measures to be applied for each alternative.  Mitigation actions for the preferred (selected) alternative must be included in the conservation plan, designs, and specifications."]
[]
[]
[]
[]
[]
[null,"As referenced in CEQ regulations (40 CFR 1508.20) and NECH (Part 610.71), mitigation includes:"]
[null,"●","Avoiding the impacts altogether by not taking a certain action or parts of an action."]
[null,"●","Minimizing impacts by limiting the degree of magnitude of the action and its implementation."]
[null,"●","Rectifying the impact by repairing, rehabilitating, or restoring the affected environment."]
[null,"●","Reducing or eliminating impact over time by preservation/maintenance operations during action life."]
[null,"●","Compensating for the impact by replacing or providing substitute resources or environments."]
[]
["M.","Preferred Alternative:  (Record results from planning step 7.)"]
[null,"Record the alternative to be implemented and indicate why it was chosen.  Ultimately, the client will decide what actions will occur on their land, but NRCS funding or assistance may not always be appropriate for that action.  For NRCS assistance to proceed, the alternative must clearly address the underlying need(s) as identified in \"E\".  The Objective(s) (Purpose) stated in \"D\" serves as the decision factors between alternatives.  "]
[]
[]
[]
[]
[]
["N.","Context:  Record the context used in the alternatives analysis.  Significance varies with the setting of the proposed action.  For instance, in the case of a site-specific action, significance would usually depend upon the effects in the locale rather than in the world as a whole. Both short- and long-term effects are relevant."]
[]
[]
[]
[]
["Part \"O\" is completed by the planner and Parts \"P\" thru \"S\" must be completed by the Responsible Federal Official (RFO).  \nIf NRCS is providing planning assistance for another federal agency, then the NRCS planner must sign Section \"O\" as the planner.  The RFO for the lead agency (e.g., FSA for CRP) will complete everything below the planner’s signature.  For NRCS the State Conservationist is the RFO, but they may delegate that authority to a designated agency representative.  Normally, the authority to serve as RFO is delegated to an Area or Field Office employee for farm bill program agreements.  Check with your State Office or State Directives if you have questions.\n"]
[]
[]
[]
[]
[]
[]
[]
[]
["O.","Signature (planner):  The individual completing Parts \"A\" thru \"N\" of the NRCS-CPA-52 must sign and date to indicate they have used the best available information. This may or may not be the same person as the agency representative.  In cases where the planner is not an NRCS employee, they must sign in the first signature area and then the NRCS will sign in the second signature area to confirm and validate the information as the responsible agency.  When NRCS plans on behalf of another agency, NRCS need sign only as the planner and then the lead agency RFO will complete the rest of the NRCS-CPA-52."]
[]
[]
[]
[]
[]
[]
["P.","Determination of Significance or Extraordinary Circumstances:  NRCS evaluates each action using its list of special environmental concerns along with the significance factors to determine whether an action has extraordinary circumstances.  Action(s) that have potential for significant impacts on the human environment cannot be categorically excluded.  Thus, in the absence of any extraordinary circumstances the actions can proceed without the preparation of an environmental assessment (EA) or environmental impact statement (EIS). Where extraordinary circumstances are determined to exist, the categorical exclusion will not apply."]
[]
[]
[]
[]
[]
[]
[]
[null,"Categorical Exclusions (CE):  Before documenting the use of a categorical exclusion, it is important to read Section 610.46 of the NECH.  This section provides a list of all categorical exclusions that apply to actions as well as more detailed considerations and requirements for their use.  For an action to be categorically excluded, there must be appropriate documentation on the NRCS-CPA-52 indicating that the proposed action does not meet any of the criteria for “significance,” as discussed above.  These criteria are also known as “extraordinary circumstances” when discussing categorical exclusions.  If any part of a proposed plan involves actions that are NOT on the list of allowable categorical exclusions, the entire plan is not eligible for a categorical exclusion.  "]
[]
[]
[]
[]
[]
[]
[]
[]
[null,"To complete the determination on the NRCS-CPA-52, check \"yes\" or \"no\" for each of the questions.  If you are not sure about the answer, contact your State Environmental Liaison for assistance.  The NRCS-CPA-52 must provide evidence to conclude that the activity will not result in extraordinary circumstances or significant adverse environmental effects on the quality of the human environment, either individually or cumulatively.  If any of the extraordinary circumstances are found to apply to the proposed action, then you should determine whether the proposal can be modified to mitigate the adverse effects and prevent the extraordinary circumstances. If this can be done and the client agrees to any necessary change(s) in the proposed action to avoid significant adverse impacts, then the proposed action is to be modified and implemented. If the proposed action cannot be modified or the client refuses to accept a proposed change, then Item 5 in Section “Q” must be checked for the NRCS NEPA Compliance Finding to indicate that additional analysis and documentation is needed. "]
[]
[]
[]
[]
[]
[]
[]
[]
[]
[]
[]
[]
[]
["Q.","NEPA Compliance Finding (check one):  This finding will determine the appropriate NEPA action required. Instructions below correspond to the option numbers in Section \"Q\" of the Form.  In Section \"R\"  document the rationale for your Finding. "]
[]
[]
[]
[null,"1)","Federal actions do NOT include situations in which NRCS (or any other federal agency) provides technical assistance (CTA) only.  The agency cannot control what the client ultimately does with that assistance.  Non-Federal actions include, but are not limited to:"]
[]
[]
[null,null,"●","NRCS providing HEL or wetland conservation determinations."]
[null,null,"●","NRCS providing technical designs where there is no federal financial assistance. "]
[null,null,"●","NRCS providing planning assistance or other technical assistance and information to individuals, organizations, States, or local governments where there is no federal financial assistance or other control of the decision or action."]
[]
[]
[]
[null,"2)","CE actions are a category of actions that do not individually or cumulatively have a significant effect on the human environment; therefore, neither an environmental assessment nor an environmental impact statement is required. First determine whether the proposed action is a categorically excluded action as identified in NRCS or USDA regulations implementing NEPA.  (USDA and NRCS categorical exclusions are listed in the NECH, Part 610.46.)  Note that there may be overarching or CE-specific side boards that must be met in order to apply a CE.  If the proposed action is listed as a CE action, then assess whether there are any applicable extraordinary circumstances that would prevent the action from being eligible as a CE. Check this box only if the action is categorically excluded AND there are no EXTRAORDINARY CIRCUMSTANCES associated with the proposed action.  (See NECH Exhibit 610.116, \"How to Use NRCS’s Categorical Exclusions.”)"]
[]
[]
[]
[]
[]
[]
[]
[]
[]
[]
[null,"3)","Check this box if there is an existing NRCS NEPA document that has sufficiently analyzed the action being proposed.  A number of NRCS National Programmatic NEPA documents have analyzed effects of many practices planned under nationwide conservation programs.  There may also be Regional, State, or areawide Programmatic NEPA documents that can be referred to.  For information about \"Tiering\" to existing NRCS NEPA documents see the NECH Part 610.81."]
[]
[]
[]
[]
[]
[null,null,"Keep in mind that Programmatic EA's and EIS's are not site-specific so they do not attempt to describe every possible type of effect resulting from actions that could be taken.  Thus, you must use your knowledge of site-specific conditions to decide if additional analysis is needed. Network diagrams illustrating general effects of conservation practices are associated with national or State EA's or EIS's.  These diagrams may help in analyzing effects of practices.  If the planner believes the site-specific impacts are outside the range of effects described in the programmatic EA or EIS, this box may not be checked."]
[]
[]
[]
[]
[]
[]
[]
[null,null,"Copies of NRCS national programmatic NEPA documents may be viewed on NRCS’ Environmental Compliance web page."]
[]
[]
[null,"4)","It is possible to tier to NEPA documents prepared by other Federal agencies if those documents have been formally adopted by NRCS as outlined in the NECH 610.83 and CEQ regulations 40 CFR1506.3.  NRCS must have prepared and published the agency's own Finding of No Significant Impact (FONSI) for an EA or Record of Decision for an EIS in order for a NEPA document to be \"adopted\".  For information about \"Tiering\" to NEPA documents see the NECH Section 610.81."]
[]
[]
[]
[]
[]
[null,"5)","If 1), 2), 3), or 4) do not apply, the action may cause a significant effect on the quality of the human environment and an EA or EIS may be required.  Additional analysis may be required to comply with NEPA. Contact the State Environmental Liaison or equivalent for guidance on completing this analysis and provide them with a copy of the NRCS-CPA-52 and supporting documentation."]
[]
[]
[]
[]
["R.","Rationale Supporting the Finding:  Explain the reasons for making the \"Finding\" in \"Q\". "]
[null,"If \"Q 1)\" was selected, explain why the action is NOT a federal action subject to NRCS regulations implementing NEPA."]
[]
[null,"If \"Q 2)\" was selected, document the categorical exclusion(s) applicable to the entirety of the proposed action and indicate that there are no extraordinary circumstances."]
[]
[null,"If \"Q 3)\" was selected, identify any applicable NRCS NEPA document.  Record the citation of the NRCS NEPA document you are tiering to.  "]
[]
[null,"If \"Q 4)\" was selected, identify any applicable NRCS NEPA document that was officially adopted from another agency.  Record the citation of the NRCS adopted NEPA document you are tiering to. "]
[]
[null,"If \" Q 5)\"was selected, document your analysis and provide this information (NRCS-CPA-52 and supporting documents) to your State Environmental Liaison or equivalent."]
[]
[]
["S.","Signature of Responsible Federal Official (RFO):  The appropriate agency RFO must sign and date.  The RFO should wait to make the finding until all consultations, permits, etc., are finalized.  This signature certifies that the proposed action/plan complies with all NRCS policies implementing NEPA and all other applicable Federal, State, Tribal and local laws/Executive Orders.  "]

{"sheet":"CPA-52","index":3,"n_rows":340,"n_cols":26,"rows_kept":340,"cut":false,"hidden":false,"merged":[[0,4,0,9],[1,3,1,10],[103,11,108,11],[103,12,108,17],[103,18,108,18],[103,19,108,24],[103,25,108,25],[105,0,108,4],[0,12,1,15],[0,16,1,25],[93,0,96,4],[90,12,90,18],[78,12,83,17],[91,18,96,18],[70,0,75,4],[80,0,83,4],[4,12,4,25],[0,10,0,11],[78,11,83,11],[58,18,63,18],[72,18,75,18],[39,25,44,25],[41,0,44,4],[86,0,89,4],[128,12,128,18],[174,5,174,10],[175,5,178,10],[176,0,176,2],[176,3,176,4],[142,0,142,4],[137,0,140,4],[39,0,40,4],[58,0,59,4],[52,11,57,11],[45,5,50,10],[52,0,53,4],[51,12,51,18],[51,0,51,11],[52,18,57,18],[84,18,89,18],[84,5,89,10],[84,12,89,17],[84,11,89,11],[64,12,69,17],[52,12,57,17],[78,5,83,10],[84,0,85,4],[171,3,171,4],[97,12,102,17],[112,0,115,4],[97,11,102,11],[110,11,115,11],[145,0,145,4],[171,5,173,10],[97,19,102,24],[110,25,115,25],[97,18,102,18],[110,0,111,4],[116,19,121,24],[122,12,127,17],[116,25,121,25],[116,12,121,17],[122,0,123,4],[116,18,121,18],[97,5,102,10],[116,5,121,10],[103,0,104,4],[103,5,108,10],[122,11,127,11],[97,0,98,4],[99,0,102,4],[116,0,117,4],[184,0,184,4],[189,0,189,2],[174,11,178,11],[170,19,170,24],[171,19,173,24],[174,19,174,24],[175,19,178,24],[179,19,179,24],[180,19,183,24],[170,0,170,4],[174,0,175,4],[179,0,180,4],[181,0,181,2],[181,3,181,4],[177,0,178,4],[172,0,173,4],[170,5,170,10],[174,12,174,17],[170,12,170,17],[180,12,183,17],[179,11,183,11],[171,0,171,2],[185,0,185,2],[179,12,179,17],[122,19,127,24],[116,11,121,11],[122,5,127,10],[167,12,169,17],[154,19,154,25],[135,25,140,25],[135,12,140,17],[154,12,154,18],[141,0,141,11],[157,0,157,4],[167,5,169,10],[148,0,148,4],[155,11,156,11],[168,0,169,4],[166,0,166,4],[151,0,152,25],[153,0,156,4],[154,5,154,11],[161,5,161,10],[167,0,167,2],[167,3,167,4],[143,0,143,4],[144,0,144,4],[146,0,146,4],[174,25,178,25],[175,12,178,17],[158,12,160,17],[166,19,166,24],[155,25,156,25],[141,12,141,18],[135,18,140,18],[135,19,140,24],[141,19,141,25],[171,12,173,17],[167,19,169,24],[161,18,165,18],[153,5,153,25],[166,5,166,10],[161,19,161,24],[174,18,178,18],[155,18,156,18],[166,12,166,17],[135,5,140,10],[135,11,140,11],[142,5,149,11],[142,12,149,18],[142,19,149,25],[51,19,51,25],[78,18,83,18],[52,25,57,25],[76,0,76,25],[45,11,50,11],[45,12,50,17],[58,25,63,25],[52,19,57,24],[64,5,69,10],[64,11,69,11],[64,0,65,4],[66,0,69,4],[60,0,63,4],[54,0,57,4],[64,19,69,24],[64,25,69,25],[77,19,77,25],[78,0,79,4],[72,12,75,17],[77,0,77,11],[72,5,75,10],[90,19,90,25],[91,25,96,25],[84,25,89,25],[110,19,115,24],[91,5,96,10],[71,12,71,18],[64,18,69,18],[78,25,83,25],[58,19,63,24],[58,5,63,10],[58,11,63,11],[58,12,63,17],[90,0,90,11],[91,0,92,4],[91,11,96,11],[91,19,96,24],[91,12,96,17],[109,19,109,25],[110,18,115,18],[97,25,102,25],[110,12,115,17],[110,5,115,10],[109,0,109,11],[109,12,109,18],[10,19,10,22],[33,12,38,17],[33,19,38,24],[27,18,32,18],[45,25,50,25],[26,5,26,11],[35,0,38,4],[45,0,46,4],[45,19,50,24],[39,18,44,18],[39,12,44,17],[45,18,50,18],[39,11,44,11],[26,19,26,25],[27,5,32,10],[27,12,32,17],[27,19,32,24],[26,0,26,4],[27,25,32,25],[27,11,32,11],[26,12,26,18],[47,0,50,4],[21,25,24,25],[39,5,44,10],[2,0,2,11],[19,0,24,4],[9,0,9,4],[10,0,15,4],[4,0,4,11],[21,11,24,11],[10,5,10,8],[9,5,9,25],[11,5,15,11],[11,12,15,18],[11,19,15,25],[21,18,24,18],[21,12,24,17],[21,19,24,24],[20,5,20,11],[20,12,20,18],[20,19,20,25],[3,19,3,25],[5,0,8,11],[3,0,3,11],[3,12,3,18],[10,12,10,15],[2,12,2,20],[2,21,2,25],[5,12,8,25],[16,0,16,25],[27,0,28,4],[29,0,32,4],[25,0,25,25],[84,19,89,24],[70,5,70,25],[72,25,75,25],[72,11,75,11],[77,12,77,18],[72,19,75,24],[71,19,71,25],[71,5,71,11],[21,5,24,10],[33,11,38,11],[33,18,38,18],[33,25,38,25],[19,5,19,25],[33,5,38,10],[33,0,34,4],[78,19,83,24],[52,5,57,10],[39,19,44,24],[17,0,18,25],[334,12,336,18],[334,20,336,24],[310,0,312,2],[310,3,312,18],[189,12,191,17],[192,12,192,17],[196,11,200,11],[197,19,200,24],[189,19,191,24],[189,5,191,10],[202,12,204,17],[201,0,201,4],[201,5,201,10],[201,12,201,17],[202,19,204,24],[193,19,195,24],[193,3,193,4],[262,0,262,12],[262,13,262,25],[284,4,285,25],[282,4,283,25],[237,12,241,18],[227,12,230,18],[231,5,236,11],[338,0,338,25],[275,0,275,1],[337,1,337,10],[337,12,337,18],[337,20,337,24],[300,0,303,2],[300,3,303,18],[300,19,303,25],[304,0,309,2],[304,3,309,18],[304,19,309,25],[297,3,299,18],[297,19,299,25],[315,0,315,4],[316,2,316,4],[314,5,316,25],[294,19,296,25],[294,0,296,2],[292,0,292,10],[317,5,320,25],[294,3,296,18],[334,1,336,10],[297,0,299,2],[333,0,333,10],[310,19,312,25],[313,0,313,8],[329,0,331,25],[317,0,317,4],[321,5,324,25],[325,5,328,25],[314,2,314,4],[318,0,328,4],[293,19,293,25],[293,0,293,18],[292,13,292,25],[279,4,279,25],[286,4,289,25],[254,12,255,18],[254,1,255,10],[276,4,276,25],[259,1,259,10],[259,12,259,18],[263,0,263,25],[260,0,261,25],[256,20,256,24],[256,12,256,18],[257,1,258,10],[257,20,258,24],[256,1,256,10],[273,0,274,25],[259,20,259,24],[254,20,255,24],[222,5,224,10],[290,4,291,25],[257,12,258,18],[264,0,267,25],[277,4,278,25],[280,4,281,25],[222,0,222,2],[222,3,222,4],[227,0,230,4],[242,19,243,25],[231,12,236,18],[237,5,241,11],[237,19,241,25],[237,0,241,4],[242,3,243,4],[268,0,268,25],[269,0,272,25],[244,3,247,4],[242,0,247,2],[244,19,247,25],[244,5,247,11],[244,12,247,18],[242,12,243,18],[242,5,243,11],[198,3,198,4],[199,0,200,4],[252,0,253,25],[251,0,251,25],[207,0,208,4],[202,3,202,4],[206,0,206,2],[210,0,210,2],[185,3,185,4],[186,0,187,4],[248,0,250,10],[214,5,216,10],[231,19,236,25],[222,19,224,24],[227,5,230,11],[227,19,230,25],[225,12,226,18],[210,5,212,10],[209,19,209,24],[185,12,187,17],[214,19,216,24],[222,12,224,17],[225,19,226,25],[225,5,226,11],[205,0,205,4],[206,12,208,17],[197,12,200,17],[202,5,204,10],[209,12,209,17],[213,5,213,10],[180,5,183,10],[193,5,195,10],[202,0,202,2],[205,5,205,10],[193,12,195,17],[196,0,197,4],[196,12,196,17],[182,0,183,4],[189,3,189,4],[190,0,191,4],[193,0,193,2],[209,0,209,4],[192,0,192,4],[206,3,206,4],[203,0,204,4],[188,0,188,4],[194,0,195,4],[198,0,198,2],[196,25,200,25],[184,5,184,10],[201,19,201,24],[196,19,196,24],[192,19,192,24],[184,12,184,17],[185,5,187,10],[205,19,205,24],[206,19,208,24],[206,5,208,10],[205,12,205,17],[185,19,187,24],[179,5,179,10],[209,5,209,10],[196,5,196,10],[197,5,200,10],[192,5,192,10],[188,5,188,10],[188,12,188,17],[188,19,188,24],[184,19,184,24],[179,18,183,18],[250,11,250,25],[218,5,220,10],[223,0,224,4],[211,0,212,4],[217,5,217,10],[210,19,212,24],[218,19,220,24],[231,0,236,4],[225,0,226,4],[215,0,216,4],[213,0,213,4],[218,0,218,2],[221,12,221,17],[217,19,217,24],[210,12,212,17],[221,19,221,24],[217,12,217,17],[218,12,220,17],[221,5,221,10],[217,0,217,4],[214,0,214,2],[214,3,214,4],[218,3,218,4],[219,0,220,4],[249,11,249,25],[221,0,221,4],[214,12,216,17],[213,12,213,17],[157,12,157,17],[150,0,150,25],[159,0,160,4],[161,12,161,17],[155,5,156,10],[161,11,165,11],[161,25,165,25],[155,12,156,17],[158,0,158,2],[163,0,163,2],[163,3,163,4],[164,0,165,4],[162,12,165,17],[162,5,165,10],[161,0,162,4],[248,11,248,25],[213,19,213,24],[210,3,210,4],[196,18,200,18],[179,25,183,25],[147,0,147,4],[149,0,149,4],[339,0,353,25],[129,5,134,10],[129,11,134,11],[131,0,134,4],[118,0,121,4],[124,0,127,4],[162,19,165,24],[128,19,128,25],[129,12,134,17],[129,18,134,18],[129,19,134,24],[129,25,134,25],[122,18,127,18],[122,25,127,25],[129,0,130,4],[135,0,136,4],[128,0,128,11],[157,5,157,10],[158,5,160,10],[157,19,157,24],[158,19,160,24],[155,19,156,24]]}
[null,null,null,null,"U.S. Department of Agriculture",null,null,null,null,null,"NRCS-CPA-52 ",null,"A. Client Name:  "]
[null,null,null,"            Natural Resources Conservation Service",null,null,null,null,null,null,null,"02/2025"]
["ENVIRONMENTAL EVALUATION WORKSHEET ",null,null,null,null,null,null,null,null,null,null,null,"B. Conservation Plan ID # (as applicable):  "]
[null,null,null,null,null,null,null,null,null,null,null,null,"    Program Authority (optional):"]
["D.  Client's Objective(s) (purpose): ",null,null,null,null,null,null,null,null,null,null,null,"C. Identification # (farm, tract, field #, etc. as required):"]
[]
[]
[]
[]
["E.  Need for Action: ",null,null,null,null,"H.  Alternatives"]
[null,null,null,null,null,"No Action",null,null,null,null,"√ if RMS",null,"Alternative 1",null,null,null,null,"√ if RMS",null,"Alternative 2",null,null,null,null,"√ if RMS"]
[]
[]
[]
[]
[]
["Resource Concerns"]
["In Section \"F\" below, analyze, record, and address concerns identified through the Resources Inventory process (see FOTG Section 3 - Resource Concerns List and Planning Criteria for guidance). To integrate CART-Assessment Results into this worksheet, navigate to the  \"CART-Results\" tab or press the designated button (\"View CART-Results tab\"). Follow the instructions in that page to complete the process."]
[]
["F.  Resource Concerns and Existing/ Benchmark Conditions\n(Analyze and record the existing/benchmark conditions for each identified concern)",null,null,null,null,"I.   Effects of Alternatives"]
[null,null,null,null,null,"No Action",null,null,null,null,null,null,"Alternative 1",null,null,null,null,null,null,"Alternative 2"]
[null,null,null,null,null,"Amount, Status, Description\n(Document both short and long term impacts)",null,null,null,null,null,"√ if does NOT meet PC","Amount, Status, Description\n(Document both short and long term impacts)",null,null,null,null,null,"√ if does NOT meet PC","Amount, Status, Description\n(Document both short and long term impacts)",null,null,null,null,null,"√ if does NOT meet PC"]
[]
[]
[]
["Refer to Appendix A (CART-Resource Concerns Results) for a list of Resource Concerns assessed in CART, including analysis of Effects of Alternatives on Soil, Water, Air, Plants, Animals, and Energy (SWAPAE ) resources. Additional resource concerns not assessed in CART can be selected and analyzed below."]
["SOIL"]
[null,null,null,null,null,null,null,null,null,null,null,"\n\nNOT meet \nPC",null,null,null,null,null,null,"\n\nNOT meet \nPC",null,null,null,null,null,null,"\n\nNOT meet \nPC"]
[]
[]
[]
[]
[]
[null,null,null,null,null,null,null,null,null,null,null,"\n\nNOT meet \nPC",null,null,null,null,null,null,"\n\nNOT meet \nPC",null,null,null,null,null,null,"\n\nNOT meet \nPC"]
[]
[]
[]
[]
[]
[null,null,null,null,null,null,null,null,null,null,null,"\n\nNOT meet \nPC",null,null,null,null,null,null,"\n\nNOT meet \nPC",null,null,null,null,null,null,"\n\nNOT meet \nPC"]
[]
[]
[]
[]
[]
[null,null,null,null,null,null,null,null,null,null,null,"\n\nNOT meet \nPC",null,null,null,null,null,null,"\n\nNOT meet \nPC",null,null,null,null,null,null,"\n\nNOT meet \nPC"]
[]
[]
[]
[]
[]
["WATER"]
[null,null,null,null,null,null,null,null,null,null,null,"\n\nNOT meet \nPC",null,null,null,null,null,null,"\n\nNOT meet \nPC",null,null,null,null,null,null,"\n\nNOT meet \nPC"]
[]
[]
[]
[]
[]
[null,null,null,null,null,null,null,null,null,null,null,"\n\nNOT meet \nPC",null,null,null,null,null,null,"\n\nNOT meet \nPC",null,null,null,null,null,null,"\n\nNOT meet \nPC"]
[]
[]
[]
[]
[]
[null,null,null,null,null,null,null,null,null,null,null,"\n\nNOT meet \nPC",null,null,null,null,null,null,"\n\nNOT meet \nPC",null,null,null,null,null,null,"\n\nNOT meet \nPC"]
[]
[]
[]
[]
[]
["F.  Resource Concerns and Existing/ Benchmark Conditions\n(Analyze and record the existing/benchmark conditions for each identified concern)",null,null,null,null,"I.   Effects of Alternatives (continued)"]
[null,null,null,null,null,"No Action",null,null,null,null,null,null,"Alternative 1",null,null,null,null,null,null,"Alternative 2"]
[null,null,null,null,null,"Amount, Status, Description\n(Document both short and long term impacts)",null,null,null,null,null,"√ if does NOT meet PC","Amount, Status, Description\n(Document both short and long term impacts)",null,null,null,null,null,"√ if does NOT meet PC","Amount, Status, Description\n(Document both short and long term impacts)",null,null,null,null,null,"√ if does NOT meet PC"]
[]
[]
[]
["Refer to Appendix A (CART-Resource Concerns Results) for a list of Resource Concerns assessed in CART, including analysis of Effects of Alternatives on Soil, Water, Air, Plants, Animals, and Energy (SWAPAE ) resources. Additional resource concerns not assessed in CART can be selected and analyzed below."]
["AIR"]
[null,null,null,null,null,null,null,null,null,null,null,"\n\nNOT meet \nPC",null,null,null,null,null,null,"\n\nNOT meet \nPC",null,null,null,null,null,null,"\n\nNOT meet \nPC"]
[]
[]
[]
[]
[]
[null,null,null,null,null,null,null,null,null,null,null,"\n\nNOT meet \nPC",null,null,null,null,null,null,"\n\nNOT meet \nPC",null,null,null,null,null,null,"\n\nNOT meet \nPC"]
[]
[]
[]
[]
[]
["PLANTS"]
[null,null,null,null,null,null,null,null,null,null,null,"\n\nNOT meet \nPC",null,null,null,null,null,null,"\n\nNOT meet \nPC",null,null,null,null,null,null,"\n\nNOT meet \nPC"]
[]
[]
[]
[]
[]
[null,null,null,null,null,null,null,null,null,null,null,"\n\nNOT meet \nPC",null,null,null,null,null,null,"\n\nNOT meet \nPC",null,null,null,null,null,null,"\n\nNOT meet \nPC"]
[]
[]
[]
[]
[]
[null,null,null,null,null,null,null,null,null,null,null,"\n\nNOT meet \nPC",null,null,null,null,null,null,"\n\nNOT meet \nPC",null,null,null,null,null,null,"\n\nNOT meet \nPC"]
[]
[]
[]
[]
[]
["ANIMALS"]
[null,null,null,null,null,null,null,null,null,null,null,"\n\nNOT meet \nPC",null,null,null,null,null,null,"\n\nNOT meet \nPC",null,null,null,null,null,null,"\n\nNOT meet \nPC"]
[]
[]
[]
[]
[]
[null,null,null,null,null,null,null,null,null,null,null,"\n\nNOT meet \nPC",null,null,null,null,null,null,"\n\nNOT meet \nPC",null,null,null,null,null,null,"\n\nNOT meet \nPC"]
[]
[]
[]
[]
[]
[null,null,null,null,null,null,null,null,null,null,null,"\n\nNOT meet \nPC",null,null,null,null,null,null,"\n\nNOT meet \nPC",null,null,null,null,null,null,"\n\nNOT meet \nPC"]
[]
[]
[]
[]
[]
["ENERGY"]
[null,null,null,null,null,null,null,null,null,null,null,"\n\nNOT meet \nPC",null,null,null,null,null,null,"\n\nNOT meet \nPC",null,null,null,null,null,null,"\n\nNOT meet \nPC"]
[]
[]
[]
[]
[]
[null,null,null,null,null,null,null,null,null,null,null,"\n\nNOT meet \nPC",null,null,null,null,null,null,"\n\nNOT meet \nPC",null,null,null,null,null,null,"\n\nNOT meet \nPC"]
[]
[]
[]
[]
[]
["Human Economic and Social Considerations"]
["● Land Use"]
["● Capital"]
["● Labor"]
["● Management Level"]
["● Profitability"]
["● Risk"]
["● Public Health & Safety"]
["● Other"]
["Special Environmental Concerns: Environmental Laws, Executive Orders, Policies, etc."]
["In Section \"G\" complete and attach Environmental Procedures Guide Sheets for documentation as applicable.  Items with a \"●\" may require a federal permit or consultation/coordination between the lead agency and another government agency.  In these cases, effects may need to be determined in consultation with another agency.  Planning and practice implementation may proceed for practices not involved in consultation."]
[]
["G.  Special Environmental Concerns\n(Document existing/ benchmark conditions)",null,null,null,null,"J.   Impacts to Special Environmental Concerns"]
[null,null,null,null,null,"No Action",null,null,null,null,null,null,"Alternative 1",null,null,null,null,null,null,"Alternative 2"]
[null,null,null,null,null,"Document all impacts\n(Attach Guide Sheets as applicable)",null,null,null,null,null,"√ if needs further action","Document all impacts\n(Attach Guide Sheets as applicable)",null,null,null,null,null,"√ if needs further action","Document all impacts\n(Attach Guide Sheets as applicable)",null,null,null,null,null,"√ if needs further action"]
[]
["●Clean Air Act"]
["Guide Sheet"]
[]
[]
["●Clean Water Act / Waters of the U.S."]
[]
["Guide Sheet"]
[]
[]
["●Coastal Zone Management"]
["Guide Sheet"]
[]
[]
["Coral Reefs"]
["Guide Sheet"]
[]
[]
["●Cultural Resources / Historic Properties"]
[]
["Guide Sheet"]
[]
[]
["●Endangered and Threatened Species"]
[]
["Guide Sheet"]
[]
[]
["●Essential Fish Habitat"]
["Guide Sheet"]
[]
[]
["Floodplain Management"]
["Guide Sheet"]
[]
[]
["Invasive Species"]
["Guide Sheet"]
[]
[]
["●Migratory Birds/Bald and Golden Eagle Protection Act "]
[]
["Guide Sheet"]
[]
[]
["Natural Areas"]
["Guide Sheet"]
[]
[]
["Prime and Unique Farmlands"]
["Guide Sheet"]
[]
[]
["Riparian Area"]
["Guide Sheet"]
[]
[]
["Scenic Beauty"]
["Guide Sheet"]
[]
[]
["●Wetlands"]
["Guide Sheet"]
[]
[]
["●Wild and Scenic Rivers"]
["Guide Sheet"]
[]
[]
["K.  Other Agencies and Broad Public Concerns",null,null,null,null,"No Action",null,null,null,null,null,null,"Alternative 1",null,null,null,null,null,null,"Alternative 2"]
[]
["K.1 Easements, Permissions, Public Review, or Permits Required and Agencies Consulted."]
[]
[]
[]
["K.2 Cumulative Effects Narrative (Describe the cumulative impacts considered, including past, present and known future actions regardless of who performed the actions)"]
[]
[]
[]
[]
[]
["L.  Mitigation\n(Record actions to avoid, minimize, and compensate)"]
[]
[]
[]
[]
["M. Preferred Alternative",null,null,"√ preferred alternative"]
[]
[null,null,null,"Supporting reason"]
[]
[]
[]
["N.  Context (Record context of alternatives analysis)                The significance of an action must be analyzed in several contexts such as society as a whole (human, national), the affected region, the affected interests, and the locality. "]
[]
[]
["O.  Planner Signature - To the best of my knowledge, the data shown on this form is accurate and complete:"]
["An NRCS Certified Planner employee (Level 3 or above), must sign the second signature line to confirm and validate that the best available information was used to accurately complete the environmental evaluation. Any planner (not an NRCS Certified Planner employee (Level 3 or above)) who contributed or was actively engaged in the completion of this EE will sign and date the first signature line. When the preferred alternative is not a federal action where NRCS has control or responsibility, NRCS will sign only as the certified planner and provide a copy of this form to the lead agency responsible for documenting compliance with NEPA according to their own regulations and procedures."]
[]
[]
[]
[null," Signature (Other)",null,null,null,null,null,null,null,null,null,null,"Title",null,null,null,null,null,null,null,"Date"]
[]
[]
[null,"Signature (NRCS Certified Planner)",null,null,null,null,null,null,null,null,null,null,"Title",null,null,null,null,null,null,null,"Date"]
["If preferred alternative is not a federal action where NRCS has control or responsibility and this NRCS-CPA-52 is shared with someone other than the client, then indicate to whom this is being provided."]
[]
[]
["The following sections are to be completed by the Responsible Federal Official (RFO)"]
["NRCS is the RFO if the action is subject to NRCS control and responsibility (e.g., actions financed, funded, assisted, conducted, regulated, or approved by  NRCS). These actions do not include situations in which NRCS is only providing technical assistance because NRCS cannot control what the client ultimately does with that assistance and situations where NRCS is making a technical determination (such as Farm Bill HEL or wetland determinations) not associated with the planning process.   "]
[]
[]
[]
["P.  Determination of Significance or Extraordinary Circumstances"]
["To answer the questions below, consider the severity (intensity) of impacts in the contexts identified above. Impacts may be both beneficial and adverse. A significant effect may exist even if the Federal agency believes that on balance the effect will be beneficial.  Significance cannot be avoided by terming an action temporary or by breaking it down into small component parts."]
[]
[]
[]
["If you answer ANY of the below questions \"yes\" then contact the State Environmental Liaison as there may be extraordinary circumstances and significance issues to consider and a site specific NEPA analysis may be required."]
[]
["Yes",null,"No"]
[null,null,null,"●","1) Is the preferred alternative expected to cause significant effects on public health or safety?"]
[null,null,null,"●","2) Is the preferred alternative expected to significantly affect unique characteristics of the geographic area such as proximity to historic or cultural resources, park lands, prime farmlands, wetlands, wild and scenic rivers, or ecologically critical areas?"]
[]
[null,null,null,"●","3) Are the effects of the preferred alternative on the quality of the human environment likely to be highly controversial?"]
[null,null,null,"●","4) Does the preferred alternative have highly uncertain effects or involve unique or unknown risks on the human environment?"]
[]
[null,null,null,"●","5) Does the preferred alternative establish a precedent for future actions with significant impacts or represent a decision in principle about a future consideration?"]
[]
[null,null,null,"●","6) Is the preferred alternative known or reasonably expected to have potentially significant environment impacts to the quality of the human environment either individually or cumulatively over time?"]
[]
[null,null,null,"●","7) Will the preferred alternative likely have a significant adverse effect on ANY of the special environmental concerns?  Use the Evaluation Procedure Guide Sheets to assist in this determination. This includes, but is not limited to, concerns such as cultural or historical resources, endangered and threatened species, wetlands, floodplains, coastal zones, coral reefs, essential fish habitat, wild and scenic rivers, clean air, riparian areas, natural areas, and invasive species."]
[]
[]
[]
[null,null,null,"●","8) Will the preferred alternative threaten a violation of Federal, State, or local law or requirements for the protection of the environment?"]
[]
["Q.   NEPA Compliance Finding (check one)"]
["The preferred alternative:",null,null,null,null,null,null,null,null,null,null,null,null,null,null,null,null,null,null,"Action required"]
[null,null,null,"1)  is not a federal action where the agency has control or responsibility.",null,null,null,null,null,null,null,null,null,null,null,null,null,null,null,"Document in \"R.1\" below.\nNo additional analysis is required"]
[]
[]
[null,null,null,"2)  is a federal action ALL of which is categorically excluded from further environmental analysis AND there are no extraordinary circumstances as identified in Section \"P\".",null,null,null,null,null,null,null,null,null,null,null,null,null,null,null,"Document in \"R.2\" below.\nNo additional analysis is required"]
[]
[]
[null,null,null,"3)  is a federal action that has been sufficiently analyzed in an existing Agency state, regional, or national NEPA document and there are no predicted significant adverse environmental effects or extraordinary circumstances.",null,null,null,null,null,null,null,null,null,null,null,null,null,null,null,"Document in \"R.1\" below.\nNo additional analysis is required.  "]
[]
[]
[]
[null,null,null,"4) is a federal action that has been sufficiently analyzed in another Federal agency's NEPA document (EA or EIS) that addresses the proposed NRCS action and its' effects and has been formally adopted by NRCS.  NRCS is required to prepare and publish its own Finding of No Significant Impact for an EA or Record of Decision for an EIS when adopting another agency's EA or EIS document. (Note: This box is not applicable to FSA)",null,null,null,null,null,null,null,null,null,null,null,null,null,null,null,"Contact the State Environmental Compliance Liaison for list of NEPA documents formally adopted and available for tiering.  Document in \"R.1\" below. No additional analysis is required"]
[]
[]
[]
[]
[]
[null,null,null,"5)  is a federal action that has NOT been sufficiently analyzed or may involve predicted significant adverse environmental effects or extraordinary circumstances and may require an EA or EIS.",null,null,null,null,null,null,null,null,null,null,null,null,null,null,null,"Contact the State Environmental Compliance Liaison. Further NEPA analysis required. Explain in Notes Section."]
[]
[]
["R.  Rationale Supporting the Finding"]
["R.1"]
["Findings Documentation"]
[]
["R.2"]
["Applicable Categorical Exclusion(s)\n(more than one may apply) \n\n7 CFR Part 650 Compliance With NEPA, subpart 650.6 Categorical Exclusions states prior to determining that a proposed action is categorically excluded under paragraph (d) of this section, the proposed action must meet six sideboard criteria. See NECH 610.116."]
[]
[]
[]
[]
[]
[]
[]
[]
[]
[]
["I have considered the effects of the alternatives on the Resource Concerns, Economic and Social Considerations, Special Environmental Concerns, and Extraordinary Circumstances as defined by Agency regulation and policy and based on that made the finding indicated above."]
[]
[]
[]
["S.  Signature of Responsible Federal Official:"]
[]
[]
[]
[null,"Signature",null,null,null,null,null,null,null,null,null,null,"Title",null,null,null,null,null,null,null,"Date"]
["Additional Notes"]
[" "]

{"sheet":"CART-Results","index":4,"n_rows":98,"n_cols":14,"rows_kept":98,"cut":false,"hidden":false,"merged":[[0,1,1,12],[3,12,3,13],[8,12,8,13],[10,8,11,8],[10,9,11,9],[10,7,11,7],[9,1,9,9],[9,11,9,13],[4,12,4,13],[2,7,8,9],[2,5,8,6],[10,5,11,6],[5,12,5,13],[6,12,6,13],[7,12,7,13],[10,1,10,3],[2,1,8,4],[98,1,98,13]]}
[null,"                     CART-Resource Concerns Results",null,null,null,null,null,null,null,null,null,null,null,"Version: 2/2025 (1.01)"]
[null,null,null,null,null,null,null,null,null,null,null,null,null,"Appendix A"]
[null,"This page documents existing and planned SWAPAE resource conditions assessed in CART, and is provided as \"Appendix A\" to the NRCS-CPA-52 worksheet. The information provided here is intended to supplement Section F. - Resource Concerns and Existing/ Benchmark Conditions and Section I. - Effects of Alternatives. Refer to the main CPA-52 worksheet for a description of effects on Human Economic and Social Considerations."]
[null,null,null,null,null,null,null,null,null,null,null,null,"Client/Plan Information:"]
[null,null,null,null,null,null,null,null,null,null,null,"Client Name:",{"$f":"IF('CPA-52'!Q1=\"\", \"\", 'CPA-52'!Q1)","v":""}]
[null,null,null,null,null,null,null,null,null,null,null," Conservation Plan ID # :",{"$f":"IF('CPA-52'!V3=\"\", \"\", 'CPA-52'!V3)","v":""}]
[null,null,null,null,null,null,null,null,null,null,null,"  Program Authority :",{"$f":"IF('CPA-52'!T4=\"\", \"\", 'CPA-52'!T4)","v":""}]
[null,null,null,null,null,null,null,null,null,null,null,"Identification # :",{"$f":"IF('CPA-52'!M6=\"\", \"\", 'CPA-52'!M6)","v":""}]
[null,null,null,null,null,null,null,null,null,null,null,"CART-Assessment ID:"]
[null,"F. Resource Concerns and Existing/ Benchmark Conditions                                                                                                                                                                                                         (Analyze and record the condition for each identified and/or assessed Soil, Water, Air, Plants, Animals, and Energy (SWAPAE) resource concern category.                                                                                               For Human Economic and Social Considerations, describe any effects using the CPA-52 tab.)",null,null,null,null,null,null,null,null,null,"I.   Effects of Alternatives"]
[null,"Resource Concerns",null,null,"Existing/ Benchmark Conditions","CART-Planned Practices Effects",null,"Planning Criteria","Existing Override","Planned Override",null,"No Action","Alternative 1","Alternative 2"]
[null,"Resource Concern Category","Resource Concern","Resource Concern Component","CART-Existing Condition",null,null,null,null,null,null,"Amount, Status, Description\n(Document both short and long term impacts)","Amount, Status, Description\n(Document both short and long term impacts)","Amount, Status, Description\n(Document both short and long term impacts)"]
[{"$f":"IF(D13=\"\",0,1)","v":0}]
[0]
[0]
[0]
[0]
[0]
[0]
[0]
[0]
[0]
[0]
[0]
[0]
[0]
[0]
[0]
[0]
[0]
[0]
[0]
[0]
[0]
[0]
[0]
[0]
[0]
[0]
[0]
[0]
[0]
[0]
[0]
[0]
[0]
[0]
[0]
[0]
[0]
[0]
[0]
[0]
[0]
[0]
[0]
[0]
[0]
[0]
[0]
[0]
[0]
[0]
[0]
[0]
[0]
[0]
[0]
[0]
[0]
[0]
[0]
[0]
[0]
[0]
[0]
[{"$f":"IF(D77=\"\",0,1)","v":0}]
[0]
[0]
[0]
[0]
[0]
[0]
[0]
[0]
[0]
[0]
[0]
[0]
[0]
[0]
[0]
[0]
[0]
[0]
[0]
[0]
[0]

{"sheet":"CleanAir","index":5,"n_rows":86,"n_cols":33,"rows_kept":86,"cut":false,"hidden":false,"merged":[[3,6,3,8],[3,13,3,22],[0,13,0,22],[4,13,4,22],[2,0,2,12],[0,0,1,12],[3,0,4,5],[1,13,1,22],[2,13,2,22],[4,6,4,8],[4,9,4,11],[34,0,38,22],[40,3,46,22],[53,0,57,22],[59,3,59,22],[61,3,67,22],[6,23,6,25],[33,23,33,25],[50,23,50,25],[93,23,93,25],[85,0,85,22],[86,0,94,22],[78,3,83,22],[70,0,73,22],[75,3,76,22],[31,3,32,11],[52,0,52,2],[69,0,69,2],[6,0,14,22],[50,0,50,8],[17,0,22,22],[24,3,29,22],[20,32,20,36],[21,35,21,36],[12,32,12,36],[13,32,13,34],[13,35,13,36],[14,32,14,36],[15,32,15,34],[15,35,15,36],[16,32,16,36],[17,32,17,34],[17,35,17,36],[18,32,18,36],[19,32,19,34],[19,35,19,36],[21,32,21,34],[22,32,22,36],[23,32,23,34],[23,35,23,36],[24,32,24,36],[0,32,0,36],[1,32,1,34],[2,32,2,36],[3,32,3,34],[3,35,3,36],[4,32,4,36],[5,32,5,34],[5,35,5,36],[6,32,6,36],[7,32,7,34],[7,35,7,36],[8,32,8,36],[9,32,9,34],[9,35,9,36],[10,32,10,36],[11,32,11,34],[11,35,11,36],[25,35,25,36],[26,32,26,36],[27,32,27,34],[27,35,27,36],[28,32,28,36],[25,32,25,34],[33,35,33,36],[29,35,29,36],[30,32,30,36],[31,32,31,34],[31,35,31,36],[32,32,32,36],[33,32,33,34],[29,32,29,34]]}
["CLEAN AIR ACT\nNECH 610.21",null,null,null,null,null,null,null,null,null,null,null,null,"Client/Plan Information:",null,null,null,null,null,null,null,null,null,null,null,null,null,null,null,null,null,null,"●Clean Air Act"]
[null,null,null,null,null,null,null,null,null,null,null,null,null,{"$f":"'CPA-52'!Q1","v":0},null,null,null,null,null,null,null,null,null,null,null,null,null,null,null,null,null,null,"Guide Sheet"]
["Evaluation Procedure Guide Sheet",null,null,null,null,null,null,null,null,null,null,null,null,{"$f":"'CPA-52'!V3","v":0},null,null,null,null,null,null,null,null,null,null,null,null,null,null,null,null,null,null,"●Clean Water Act / Waters of the U.S."]
["Check all that apply to this Guide Sheet review:",null,null,null,null,null,null,null,null,null,null,null,null,{"$f":"'CPA-52'!T4","v":0},null,null,null,null,null,null,null,null,null,null,null,null,null,null,null,null,null,null,"Guide Sheet"]
[null,null,null,null,null,null,null,null,null,null,null,null,null,{"$f":"'CPA-52'!M6","v":0},null,null,null,null,null,null,null,null,null,null,null,null,null,null,null,null,null,null,"●Coastal Zone Management"]
[null,null,null,null,null,null,null,null,null,null,null,null,null,null,null,null,null,null,null,null,null,null,null,null,null,null,null,null,null,null,null,null,"Guide Sheet"]
["NOTE:  STEPS 1 and 2 help determine whether construction permitting is needed for the planned action or activity.  STEP 3 helps determine whether the opportunity for emissions reduction credits exist.  STEP 4 helps determine whether any other permitting, record keeping, reporting, monitoring, or testing requirements are applicable.  Each of these steps should be updated with more specific language as needed, since air quality permitting and regulatory requirements are different for each state.  In each step, if more information is needed or there is a question as to whether there are air quality requirements that need to be met, the planner or client should contact the appropriate air quality regulatory agency with permitting jurisdiction for the site to determine what air quality regulatory requirement must be met prior to implementing the planned action or activity.",null,null,null,null,null,null,null,null,null,null,null,null,null,null,null,null,null,null,null,null,null,null,null,null,null,null,null,null,null,null,null,"Coral Reefs"]
[null,null,null,null,null,null,null,null,null,null,null,null,null,null,null,null,null,null,null,null,null,null,null,null,null,null,null,null,null,null,null,null,"Guide Sheet"]
[null,null,null,null,null,null,null,null,null,null,null,null,null,null,null,null,null,null,null,null,null,null,null,null,null,null,null,null,null,null,null,null,"●Cultural Resources / Historic Properties"]
[null,null,null,null,null,null,null,null,null,null,null,null,null,null,null,null,null,null,null,null,null,null,null,null,null,null,null,null,null,null,null,null,"Guide Sheet"]
[null,null,null,null,null,null,null,null,null,null,null,null,null,null,null,null,null,null,null,null,null,null,null,null,null,null,null,null,null,null,null,null,"●Endangered and Threatened Species"]
[null,null,null,null,null,null,null,null,null,null,null,null,null,null,null,null,null,null,null,null,null,null,null,null,null,null,null,null,null,null,null,null,"Guide Sheet"]
[null,null,null,null,null,null,null,null,null,null,null,null,null,null,null,null,null,null,null,null,null,null,null,null,null,null,null,null,null,null,null,null,"Environmental Justice"]
[null,null,null,null,null,null,null,null,null,null,null,null,null,null,null,null,null,null,null,null,null,null,null,null,null,null,null,null,null,null,null,null,"Guide Sheet"]
[null,null,null,null,null,null,null,null,null,null,null,null,null,null,null,null,null,null,null,null,null,null,null,null,null,null,null,null,null,null,null,null,"●Essential Fish Habitat"]
[null,null,null,null,null,null,null,null,null,null,null,null,null,null,null,null,null,null,null,null,null,null,null,null,null,null,null,null,null,null,null,null,"Guide Sheet"]
["STEP 1.  ",null,null,null,null,null,null,null,null,null,null,null,null,null,null,null,null,null,null,null,null,null,null,null,null,null,null,null,null,null,null,null,"Floodplain Management"]
["Is the action(s) expected to increase the emission rate of any regulated air pollutant?  \nNOTE:  The definition of a “regulated air pollutant” differs depending on the air quality regulations in effect for a given site.  For a federal definition of “regulated air pollutant,” please refer to the 40 CFR 70.2.  Other definitions for “regulated air pollutant” found in state or local air quality regulations may be different.  States should tailor this question to the State air quality regulations and definitions since those will include any Federal requirements.",null,null,null,null,null,null,null,null,null,null,null,null,null,null,null,null,null,null,null,null,null,null,null,null,null,null,null,null,null,null,null,"Guide Sheet"]
[null,null,null,null,null,null,null,null,null,null,null,null,null,null,null,null,null,null,null,null,null,null,null,null,null,null,null,null,null,null,null,null,"Invasive Species"]
[null,null,null,null,null,null,null,null,null,null,null,null,null,null,null,null,null,null,null,null,null,null,null,null,null,null,null,null,null,null,null,null,"Guide Sheet"]
[null,null,null,null,null,null,null,null,null,null,null,null,null,null,null,null,null,null,null,null,null,null,null,null,null,null,null,null,null,null,null,null,"●Migratory Birds/Bald and Golden Eagle Protection Act "]
[null,null,null,null,null,null,null,null,null,null,null,null,null,null,null,null,null,null,null,null,null,null,null,null,null,null,null,null,null,null,null,null,"Guide Sheet"]
[null,null,null,null,null,null,null,null,null,null,null,null,null,null,null,null,null,null,null,null,null,null,null,null,null,null,null,null,null,null,null,null,"Natural Areas"]
[null,null,null,null,null,null,null,null,null,null,null,null,null,null,null,null,null,null,null,null,null,null,null,null,null,null,null,null,null,null,null,null,"Guide Sheet"]
[null,null,null,"If \"No,\" it is likely that no permitting or authorization is necessary to implement the proposed action or alternative.  Document on the NRCS-CPA-52, or notes section below, the finding, rationale, and information sources used and advise the client to contact the appropriate air quality regulatory agency with permitting jurisdiction for the site to either verify that no permitting or authorization is necessary or to determine what requirements must be met prior to implementing the planned action or activity. Go to step 3.",null,null,null,null,null,null,null,null,null,null,null,null,null,null,null,null,null,null,null,null,null,null,null,null,null,null,null,null,"Prime and Unique Farmlands"]
[null,null,null,null,null,null,null,null,null,null,null,null,null,null,null,null,null,null,null,null,null,null,null,null,null,null,null,null,null,null,null,null,"Guide Sheet"]
[null,null,null,null,null,null,null,null,null,null,null,null,null,null,null,null,null,null,null,null,null,null,null,null,null,null,null,null,null,null,null,null,"Riparian Area"]
[null,null,null,null,null,null,null,null,null,null,null,null,null,null,null,null,null,null,null,null,null,null,null,null,null,null,null,null,null,null,null,null,"Guide Sheet"]
[null,null,null,null,null,null,null,null,null,null,null,null,null,null,null,null,null,null,null,null,null,null,null,null,null,null,null,null,null,null,null,null,"Scenic Beauty"]
[null,null,null,null,null,null,null,null,null,null,null,null,null,null,null,null,null,null,null,null,null,null,null,null,null,null,null,null,null,null,null,null,"Guide Sheet"]
[null,null,null,null,null,null,null,null,null,null,null,null,null,null,null,null,null,null,null,null,null,null,null,null,null,null,null,null,null,null,null,null,"●Wetlands"]
[null,null,null,"If “Yes,”  go to Step 2. ",null,null,null,null,null,null,null,null,null,null,null,null,null,null,null,null,null,null,null,null,null,null,null,null,null,null,null,null,"Guide Sheet"]
[null,null,null,null,null,null,null,null,null,null,null,null,null,null,null,null,null,null,null,null,null,null,null,null,null,null,null,null,null,null,null,null,"●Wild and Scenic Rivers"]
["STEP 2.  ",null,null,null,null,null,null,null,null,null,null,null,null,null,null,null,null,null,null,null,null,null,null,null,null,null,null,null,null,null,null,null,"Guide Sheet"]
["Can the action(s) be modified to eliminate or reduce the increase in emission rate of the regulated air pollutants?  \nNOTE:  This Step is to prompt the planner to review the planned action or activity to see if there is an opportunity to either eliminate the emission rate increase (possibly remove a permitting requirement) or reduce the emission rate increase (possibly move to less stringent permitting)."]
[]
[null,null,null,null,null,null,null,null,null,null,null,null,null,null,null,null,null,null,null,null,null,null,null,null,null,null,null,null,null,null,null,null,"Return to start of NRCS-CPA-52"]
[]
[null,null,null,null,null,null,null,null,null,null,null,null,null,null,null,null,null,null,null,null,null,null,null,null,null,null,null,null,null,null,null,null,"Go to start of Form Instructions"]
[]
[null,null,null,"If \"No,\" it is likely that permitting or authorization from the appropriate air quality regulatory agency will be required prior to implementing the planned action or activity.  Document on the NRCS-CPA-52, or notes section below, the finding, rationale, and information sources used and advise the client to contact the appropriate air quality regulatory agency with permitting jurisdiction for the site to either verify that no permitting or authorization is necessary or to determine what requirements must be met prior to implementing the proposed action or alternative.  Go to Step 3."]
[]
[]
[]
[]
[]
[]
[]
[null,null,null,"If “Yes,”  modify the proposed action or alternative and repeat Step 1."]
[]
["CLEAN AIR ACT (continued)"]
[]
["STEP 3.  "]
["Is the action(s) expected to result in a decrease in the emission rate of any criteria air pollutant for which the area in which the site is located in an EPA designated nonattainment area for that criteria air pollutant? \nNOTE:  For an explanation of criteria air pollutants and nonattainment areas, refer to Section 610.21 of the NECH.  Further information regarding nonattainment areas can also be found on the U.S. EPA nonattainment area Web page."]
[]
[]
[]
[]
[]
[null,null,null,"If \"No,\" go to Step 4."]
[]
[null,null,null,"If “Yes,”  the opportunity for obtaining nonattainment pollutant emission credits may exist.  Document on the NRCS-CPA-52, or notes section below, the finding, rationale, and information sources used and  advise the client of that potential opportunity.  If the client is interested in registering nonattainment pollutant emission credits, advise him/her to contact the appropriate air quality regulatory agency with permitting jurisdiction for the site to determine if and how credits can be documented and/or registered for potential sale.  Go to Step 4."]
[]
[]
[]
[]
[]
[]
[]
["STEP 4.  "]
["Is the action(s) subject to any other federal (e.g.., New Source Performance Standards, National Emissions Standards for Hazardous Air Pollutants, etc.), State, or local air quality regulation (including odor, fugitive dust, or outdoor burning)?  \nNOTE:  Refer to Section 610.21 of the NECH for a further discussion of air quality regulations."]
[]
[]
[]
[]
[null,null,null,"If \"No,\"  document on the NRCS-CPA-52, or notes section below, the finding, rationale, and information sources used and proceed with planning."]
[]
[]
[null,null,null,"If “Yes,”  additional permits, authorizations, or controls may be needed before implementing the proposed action or alternative.  Document on the NRCS-CPA-52, or notes section below, the finding, rationale, and information sources used and advise the client to contact the appropriate air quality regulatory agency with permitting jurisdiction for the site to determine what requirements must be met prior to implementing the proposed action or alternative.    "]
[]
[]
[]
[]
[]
[]
["Notes:"]

{"sheet":"CleanWater","index":6,"n_rows":139,"n_cols":33,"rows_kept":139,"cut":false,"hidden":false,"merged":[[10,23,10,24],[49,23,49,25],[49,0,49,22],[40,0,41,22],[43,3,43,22],[45,3,47,22],[24,3,25,22],[27,3,27,22],[30,0,31,22],[33,3,33,22],[138,23,138,25],[74,23,74,25],[82,0,83,22],[112,0,113,22],[88,3,93,22],[109,0,109,15],[109,23,109,25],[129,0,129,22],[130,0,139,22],[116,3,121,22],[123,3,127,22],[85,3,86,22],[103,3,105,22],[6,0,9,22],[11,0,12,22],[14,0,14,22],[15,0,15,22],[18,0,22,22],[68,0,68,22],[69,0,76,22],[35,3,37,22],[78,0,78,22],[79,0,79,22],[5,23,5,25],[96,0,101,22],[0,13,0,22],[4,13,4,22],[2,0,2,12],[0,0,1,12],[3,0,4,5],[1,13,1,22],[2,13,2,22],[3,13,3,22],[3,6,3,8],[4,6,4,8],[4,9,4,11],[61,3,66,22],[52,0,53,22],[55,3,59,22],[0,32,0,36],[1,32,1,34],[2,32,2,36],[3,32,3,34],[3,35,3,36],[4,32,4,36],[5,32,5,34],[5,35,5,36],[6,32,6,36],[7,32,7,34],[7,35,7,36],[8,32,8,36],[9,32,9,34],[9,35,9,36],[10,32,10,36],[11,32,11,34],[11,35,11,36],[12,32,12,36],[13,32,13,34],[13,35,13,36],[14,32,14,36],[15,32,15,34],[15,35,15,36],[16,32,16,36],[17,32,17,34],[17,35,17,36],[18,32,18,36],[19,32,19,34],[19,35,19,36],[20,32,20,36],[21,32,21,34],[21,35,21,36],[22,32,22,36],[23,32,23,34],[23,35,23,36],[24,32,24,36],[25,32,25,34],[25,35,25,36],[27,32,27,36],[28,32,28,34],[28,35,28,36],[33,32,33,36],[34,32,34,34],[34,35,34,36],[29,32,29,36],[30,32,30,34],[30,35,30,36],[31,32,31,36],[32,32,32,34],[32,35,32,36]]}
["CLEAN WATER ACT/WATERS of the U.S.\nNECH 610.22",null,null,null,null,null,null,null,null,null,null,null,null,"Client/Plan Information:",null,null,null,null,null,null,null,null,null,null,null,null,null,null,null,null,null,null,"●Clean Air Act"]
[null,null,null,null,null,null,null,null,null,null,null,null,null,{"$f":"'CPA-52'!Q1","v":0},null,null,null,null,null,null,null,null,null,null,null,null,null,null,null,null,null,null,"Guide Sheet"]
["Evaluation Procedure Guide Sheet",null,null,null,null,null,null,null,null,null,null,null,null,{"$f":"'CPA-52'!V3","v":0},null,null,null,null,null,null,null,null,null,null,null,null,null,null,null,null,null,null,"●Clean Water Act / Waters of the U.S."]
["Check all that apply to this Guide Sheet review:",null,null,null,null,null,null,null,null,null,null,null,null,{"$f":"'CPA-52'!T4","v":0},null,null,null,null,null,null,null,null,null,null,null,null,null,null,null,null,null,null,"Guide Sheet"]
[null,null,null,null,null,null,null,null,null,null,null,null,null,{"$f":"'CPA-52'!M6","v":0},null,null,null,null,null,null,null,null,null,null,null,null,null,null,null,null,null,null,"●Coastal Zone Management"]
[null,null,null,null,null,null,null,null,null,null,null,null,null,null,null,null,null,null,null,null,null,null,null,null,null,null,null,null,null,null,null,null,"Guide Sheet"]
["NOTE: This guide sheet should be tailored to meet the specific needs of individual State and local regulatory and permitting requirements.  It is important for each State to coordinate with their individual State and Federal regulatory agencies to tailor State-specific protocols in order to prevent significant delays in processing permit applications.",null,null,null,null,null,null,null,null,null,null,null,null,null,null,null,null,null,null,null,null,null,null,null,null,null,null,null,null,null,null,null,"Coral Reefs"]
[null,null,null,null,null,null,null,null,null,null,null,null,null,null,null,null,null,null,null,null,null,null,null,null,null,null,null,null,null,null,null,null,"Guide Sheet"]
[null,null,null,null,null,null,null,null,null,null,null,null,null,null,null,null,null,null,null,null,null,null,null,null,null,null,null,null,null,null,null,null,"●Cultural Resources / Historic Properties"]
[null,null,null,null,null,null,null,null,null,null,null,null,null,null,null,null,null,null,null,null,null,null,null,null,null,null,null,null,null,null,null,null,"Guide Sheet"]
[null,null,null,null,null,null,null,null,null,null,null,null,null,null,null,null,null,null,null,null,null,null,null,"Waters of U.S.",null,null,null,null,null,null,null,null,"●Endangered and Threatened Species"]
["Complete both sections of this guide sheet to address Federal as well as State-administered regulatory requirements of the Clean Water Act (CWA).  ",null,null,null,null,null,null,null,null,null,null,null,null,null,null,null,null,null,null,null,null,null,null,null,null,null,null,null,null,null,null,null,"Guide Sheet"]
[null,null,null,null,null,null,null,null,null,null,null,null,null,null,null,null,null,null,null,null,null,null,null,null,null,null,null,null,null,null,null,null,"Environmental Justice"]
[null,null,null,null,null,null,null,null,null,null,null,null,null,null,null,null,null,null,null,null,null,null,null,null,null,null,null,null,null,null,null,null,"Guide Sheet"]
["SECTION I",null,null,null,null,null,null,null,null,null,null,null,null,null,null,null,null,null,null,null,null,null,null,null,null,null,null,null,null,null,null,null,"●Essential Fish Habitat"]
["Federally Administered Regulatory Program - Section 404 of the CWA",null,null,null,null,null,null,null,null,null,null,null,null,null,null,null,null,null,null,null,null,null,null,null,null,null,null,null,null,null,null,null,"Guide Sheet"]
[null,null,null,null,null,null,null,null,null,null,null,null,null,null,null,null,null,null,null,null,null,null,null,null,null,null,null,null,null,null,null,null,"Floodplain Management"]
["STEP 1.  ",null,null,null,null,null,null,null,null,null,null,null,null,null,null,null,null,null,null,null,null,null,null,null,null,null,null,null,null,null,null,null,"Guide Sheet"]
["Will the action(s) involve or likely result in the discharge or placement of dredged or fill material or other pollutants into areas that could be  waters of the United States (including lakes, ponds, impoundments, rivers, streams, channels, some wetlands, and some water conveyances, including some small ditches)?  More detailed information regarding waters of the United States and Federal permitting programs under CWA is found in the NECH 610.22 and the link above.",null,null,null,null,null,null,null,null,null,null,null,null,null,null,null,null,null,null,null,null,null,null,null,null,null,null,null,null,null,null,null,"Invasive Species"]
[null,null,null,null,null,null,null,null,null,null,null,null,null,null,null,null,null,null,null,null,null,null,null,null,null,null,null,null,null,null,null,null,"Guide Sheet"]
[null,null,null,null,null,null,null,null,null,null,null,null,null,null,null,null,null,null,null,null,null,null,null,null,null,null,null,null,null,null,null,null,"●Migratory Birds/Bald and Golden Eagle Protection Act "]
[null,null,null,null,null,null,null,null,null,null,null,null,null,null,null,null,null,null,null,null,null,null,null,null,null,null,null,null,null,null,null,null,"Guide Sheet"]
[null,null,null,null,null,null,null,null,null,null,null,null,null,null,null,null,null,null,null,null,null,null,null,null,null,null,null,null,null,null,null,null,"Natural Areas"]
[null,null,null,null,null,null,null,null,null,null,null,null,null,null,null,null,null,null,null,null,null,null,null,null,null,null,null,null,null,null,null,null,"Guide Sheet"]
[null,null,null,"If \"No,\" document on the NRCS-CPA-52, or notes section below, the finding, rationale, and information sources used and proceed with Section II below.",null,null,null,null,null,null,null,null,null,null,null,null,null,null,null,null,null,null,null,null,null,null,null,null,null,null,null,null,"Prime and Unique Farmlands"]
[null,null,null,null,null,null,null,null,null,null,null,null,null,null,null,null,null,null,null,null,null,null,null,null,null,null,null,null,null,null,null,null,"Guide Sheet"]
[]
[null,null,null,"If “Yes,”  go to Step 2. ",null,null,null,null,null,null,null,null,null,null,null,null,null,null,null,null,null,null,null,null,null,null,null,null,null,null,null,null,"Riparian Area"]
[null,null,null,null,null,null,null,null,null,null,null,null,null,null,null,null,null,null,null,null,null,null,null,null,null,null,null,null,null,null,null,null,"Guide Sheet"]
["STEP 2.  ",null,null,null,null,null,null,null,null,null,null,null,null,null,null,null,null,null,null,null,null,null,null,null,null,null,null,null,null,null,null,null,"Scenic Beauty"]
["Is the action(s) an activity exempt from section 404 regulations (40 CFR Part 232)?\nNote: the exemption should be verified with the local U.S. Army Corps of Engineers (Corps) district.",null,null,null,null,null,null,null,null,null,null,null,null,null,null,null,null,null,null,null,null,null,null,null,null,null,null,null,null,null,null,null,"Guide Sheet"]
[null,null,null,null,null,null,null,null,null,null,null,null,null,null,null,null,null,null,null,null,null,null,null,null,null,null,null,null,null,null,null,null,"●Wetlands"]
[null,null,null,null,null,null,null,null,null,null,null,null,null,null,null,null,null,null,null,null,null,null,null,null,null,null,null,null,null,null,null,null,"Guide Sheet"]
[null,null,null,"If “No,”  go to Step 3. ",null,null,null,null,null,null,null,null,null,null,null,null,null,null,null,null,null,null,null,null,null,null,null,null,null,null,null,null,"●Wild and Scenic Rivers"]
[null,null,null,null,null,null,null,null,null,null,null,null,null,null,null,null,null,null,null,null,null,null,null,null,null,null,null,null,null,null,null,null,"Guide Sheet"]
[null,null,null,"If \"Yes,\" document on the NRCS-CPA-52, or notes section below, the finding, rationale, and information sources used to verify the exemption applies and proceed with Section II below. "]
[]
[null,null,null,null,null,null,null,null,null,null,null,null,null,null,null,null,null,null,null,null,null,null,null,null,null,null,null,null,null,null,null,null,"Return to start of NRCS-CPA-52"]
[]
["STEP 3.  ",null,null,null,null,null,null,null,null,null,null,null,null,null,null,null,null,null,null,null,null,null,null,null,null,null,null,null,null,null,null,null,"Go to start of Form Instructions"]
["Can the action(s) be modified to avoid the discharge of dredged or fill material or other pollutants into waters of the United States?"]
[]
[]
[null,null,null,"If “No,”  go to Step 4. "]
[]
[null,null,null,"If \"Yes,\" modify the action to avoid discharge.  Document on the NRCS-CPA-52, or notes section below, the finding, rationale, and information sources used and proceed with Section II below."]
[]
[]
[]
["CLEAN WATER ACT/WATERS of the U.S. (continued)"]
[]
["STEP 4.  "]
["Has the client obtained a section 404 permit (individual, regional, or nationwide) or a determination of an exemption from the appropriate Corps office?"]
[]
[]
[null,null,null,"If \"No,\" determine if the client has applied for a permit.  If a permit has not been applied for, the client will need to do so. If a permit has been applied for, document this, and continue the planning process in consultation with the client and the regulatory agencies.  The permit authorization should be reflected in the final plan and documentation.  Continue planning, but a permit is required prior to implementation.  Complete Section II below."]
[]
[]
[]
[]
[]
[null,null,null,"If “Yes,” document on the NRCS-CPA-52, or notes section below, the finding, rationale, and information sources used and complete Section II below.  The final plan should not be contrary to the provisions of the permit authorization or exemption.  Changes made during the planning process that may impact the applicability of the permit, such as amount or location of fills or discharges of pollutants should be coordinated with the Corps. Complete Section II below."]
[]
[]
[]
[]
[]
[]
["Notes:"]
[]
[]
[]
[]
[]
[null,null,null,null,null,null,null,null,null,null,null,null,null,null,null,null,null,null,null,null,null,null,null,"Return to NRCS-CPA-52"]
[]
[]
[]
["SECTION II"]
["State Administered Regulatory Programs, Sections 303(d) and 402 of CWA"]
[]
["STEP 1"]
["Is the proposed action or alternative located in proximity to waters listed by the State as “impaired” under Section 303(d) of the CWA?"]
[]
[]
[null,null,null,"If “No,” document on the NRCS-CPA-52, or notes section below, the finding, rationale, and information sources used and proceed to Step 2."]
[]
[]
[null,null,null,"If “Yes,” insure consistency with any existing water quality or associated watershed action plans that have been established by the State for that stream segment.  Even if TMDLs have not been established by the State for that stream segment, ensure that the action will not contribute to further degradation of that stream segment.  Document on the NRCS-CPA-52, or notes section below, the finding, rationale, and information sources used and proceed to Step 2."]
[]
[]
[]
[]
[]
[]
["STEP 2"]
["Will the proposed action or alternative likely result in point-source discharges from developments, construction sites, or other areas of soil disturbance, or sewer discharges [e.g. projects involving stormwater ponds or point-source pollution, including concentrated animal feeding operations (CAFOs) for which comprehensive nutrient management plans (CNMPs) are being developed]?  Section 402 of the CWA requires a permit for these activities through the National Pollutant Discharge Elimination System (NPDES) program which the States administer."]
[]
[]
[]
[]
[]
[]
[null,null,null,"If “No,” document on the NRCS-CPA-52, or notes section below, the finding, rationale, and information sources used and proceed with planning."]
[]
[]
[null,null,null,"If “Yes,” go to Step 3.  "]
[]
[]
["CLEAN WATER ACT/WATERS of the U.S. (continued)",null,null,null,null,null,null,null,null,null,null,null,null,null,null,null,null,null,null,null,null,null,null,"Return to NRCS-CPA-52"]
[]
["STEP 3"]
["Has the client obtained a NPDES permit or a determination of an exemption from the appropriate EPA or State-regulatory office?"]
[]
[]
[]
[null,null,null,"If “No,” determine if the client has applied for any necessary permits. If a permit has not been applied for, the client will need to do so.  If they have applied, document this and continue the planning process in consultation with the client and the regulatory agency.  Continue the planning process in consultation with the client and the regulatory agencies. The permit authorization should be reflected in the final plan and documentation.  Continue planning, but a permit is required prior to implementation. "]
[]
[]
[]
[]
[]
[]
[null,null,null,"If “Yes,\" document on the NRCS-CPA-52, or notes section below, the finding, rationale, and information sources used and proceed with planning.  The final NRCS conservation plan should not be contrary to the provisions of the permit authorization or exemption.  Changes made during the planning process that may impact the applicability of the permit should be coordinated with the appropriate State regulatory agency.  "]
[]
[]
[]
[]
[]
["Notes:"]
[]
[]
[]
[]
[]
[]
[]
[]
[null,null,null,null,null,null,null,null,null,null,null,null,null,null,null,null,null,null,null,null,null,null,null,"Return to NRCS-CPA-52"]

{"sheet":"CoastalZone","index":7,"n_rows":41,"n_cols":33,"rows_kept":41,"cut":false,"hidden":false,"merged":[[40,0,40,22],[41,0,50,22],[42,32,42,34],[42,35,42,36],[49,23,49,25],[31,32,31,36],[32,3,39,22],[32,32,32,34],[32,35,32,36],[33,32,33,36],[34,32,34,34],[34,35,34,36],[24,0,24,22],[24,32,24,36],[25,32,25,34],[25,35,25,36],[26,3,30,22],[27,32,27,36],[28,32,28,34],[28,35,28,36],[29,32,29,36],[30,32,30,34],[30,35,30,36],[23,32,23,34],[23,35,23,36],[17,32,17,34],[17,35,17,36],[18,3,18,22],[18,32,18,36],[19,32,19,34],[19,35,19,36],[20,3,21,22],[20,32,20,36],[21,32,21,34],[21,35,21,36],[22,32,22,36],[15,0,16,22],[15,32,15,34],[15,35,15,36],[16,32,16,36],[9,3,10,22],[9,32,9,34],[9,35,9,36],[10,32,10,36],[11,32,11,34],[11,35,11,36],[12,3,12,22],[12,32,12,36],[13,32,13,34],[13,35,13,36],[14,32,14,36],[5,32,5,34],[5,35,5,36],[6,23,6,25],[6,32,6,36],[7,0,8,22],[7,32,7,34],[7,35,7,36],[8,32,8,36],[3,0,4,5],[3,6,3,8],[3,13,3,22],[3,32,3,34],[3,35,3,36],[4,6,4,8],[4,9,4,11],[4,13,4,22],[4,32,4,36],[2,0,2,12],[2,13,2,22],[2,32,2,36],[0,0,1,12],[0,13,0,22],[0,32,0,36],[1,13,1,22],[1,32,1,34]]}
["COASTAL ZONE MANAGEMENT AREAS\nNECH 610.23",null,null,null,null,null,null,null,null,null,null,null,null,"Client/Plan Information:",null,null,null,null,null,null,null,null,null,null,null,null,null,null,null,null,null,null,"●Clean Air Act"]
[null,null,null,null,null,null,null,null,null,null,null,null,null,{"$f":"'CPA-52'!Q1","v":0},null,null,null,null,null,null,null,null,null,null,null,null,null,null,null,null,null,null,"Guide Sheet"]
["Evaluation Procedure Guide Sheet",null,null,null,null,null,null,null,null,null,null,null,null,{"$f":"'CPA-52'!V3","v":0},null,null,null,null,null,null,null,null,null,null,null,null,null,null,null,null,null,null,"●Clean Water Act / Waters of the U.S."]
["Check all that apply to this Guide Sheet review:",null,null,null,null,null,null,null,null,null,null,null,null,{"$f":"'CPA-52'!T4","v":0},null,null,null,null,null,null,null,null,null,null,null,null,null,null,null,null,null,null,"Guide Sheet"]
[null,null,null,null,null,null,null,null,null,null,null,null,null,{"$f":"'CPA-52'!M6","v":0},null,null,null,null,null,null,null,null,null,null,null,null,null,null,null,null,null,null,"●Coastal Zone Management"]
[null,null,null,null,null,null,null,null,null,null,null,null,null,null,null,null,null,null,null,null,null,null,null,null,null,null,null,null,null,null,null,null,"Guide Sheet"]
["STEP 1.  ",null,null,null,null,null,null,null,null,null,null,null,null,null,null,null,null,null,null,null,null,null,null,null,null,null,null,null,null,null,null,null,"Coral Reefs"]
["Is the action(s) in an officially designated \"Coastal Zone Management Area\" or have the potential to affect coastal resources?                                                                                                                                                                                                                                                                                                                                                             ",null,null,null,null,null,null,null,null,null,null,null,null,null,null,null,null,null,null,null,null,null,null,null,null,null,null,null,null,null,null,null,"Guide Sheet"]
[null,null,null,null,null,null,null,null,null,null,null,null,null,null,null,null,null,null,null,null,null,null,null,null,null,null,null,null,null,null,null,null,"●Cultural Resources / Historic Properties"]
[null,null,null,"If \"No,\" document on the NRCS-CPA-52, or notes section below, the finding, rationale, and information sources used and proceed with planning.",null,null,null,null,null,null,null,null,null,null,null,null,null,null,null,null,null,null,null,null,null,null,null,null,null,null,null,null,"Guide Sheet"]
[null,null,null,null,null,null,null,null,null,null,null,null,null,null,null,null,null,null,null,null,null,null,null,null,null,null,null,null,null,null,null,null,"●Endangered and Threatened Species"]
[null,null,null,null,null,null,null,null,null,null,null,null,null,null,null,null,null,null,null,null,null,null,null,null,null,null,null,null,null,null,null,null,"Guide Sheet"]
[null,null,null,"If “Yes,”  go to Step 2. ",null,null,null,null,null,null,null,null,null,null,null,null,null,null,null,null,null,null,null,null,null,null,null,null,null,null,null,null,"Environmental Justice"]
[null,null,null,null,null,null,null,null,null,null,null,null,null,null,null,null,null,null,null,null,null,null,null,null,null,null,null,null,null,null,null,null,"Guide Sheet"]
["STEP 2.  ",null,null,null,null,null,null,null,null,null,null,null,null,null,null,null,null,null,null,null,null,null,null,null,null,null,null,null,null,null,null,null,"●Essential Fish Habitat"]
["Is the action(s) \"consistent\" with the goals and objectives of the State's Coastal Zone Management Program (as required by Section 307 of the Coastal Zone Management Act)?",null,null,null,null,null,null,null,null,null,null,null,null,null,null,null,null,null,null,null,null,null,null,null,null,null,null,null,null,null,null,null,"Guide Sheet"]
[null,null,null,null,null,null,null,null,null,null,null,null,null,null,null,null,null,null,null,null,null,null,null,null,null,null,null,null,null,null,null,null,"Floodplain Management"]
[null,null,null,null,null,null,null,null,null,null,null,null,null,null,null,null,null,null,null,null,null,null,null,null,null,null,null,null,null,null,null,null,"Guide Sheet"]
[null,null,null,"If \"No,\" go to Step 3.",null,null,null,null,null,null,null,null,null,null,null,null,null,null,null,null,null,null,null,null,null,null,null,null,null,null,null,null,"Invasive Species"]
[null,null,null,null,null,null,null,null,null,null,null,null,null,null,null,null,null,null,null,null,null,null,null,null,null,null,null,null,null,null,null,null,"Guide Sheet"]
[null,null,null,"If “Yes,”  document the finding, including the reasons, on the NRCS-CPA-52 and proceed with planning.",null,null,null,null,null,null,null,null,null,null,null,null,null,null,null,null,null,null,null,null,null,null,null,null,null,null,null,null,"●Migratory Birds/Bald and Golden Eagle Protection Act "]
[null,null,null,null,null,null,null,null,null,null,null,null,null,null,null,null,null,null,null,null,null,null,null,null,null,null,null,null,null,null,null,null,"Guide Sheet"]
[null,null,null,null,null,null,null,null,null,null,null,null,null,null,null,null,null,null,null,null,null,null,null,null,null,null,null,null,null,null,null,null,"Natural Areas"]
["STEP 3.  ",null,null,null,null,null,null,null,null,null,null,null,null,null,null,null,null,null,null,null,null,null,null,null,null,null,null,null,null,null,null,null,"Guide Sheet"]
["Is NRCS providing financial assistance or otherwise controlling the action?",null,null,null,null,null,null,null,null,null,null,null,null,null,null,null,null,null,null,null,null,null,null,null,null,null,null,null,null,null,null,null,"Prime and Unique Farmlands"]
[null,null,null,null,null,null,null,null,null,null,null,null,null,null,null,null,null,null,null,null,null,null,null,null,null,null,null,null,null,null,null,null,"Guide Sheet"]
[null,null,null,"If \"No,\" NRCS should provide the landowner with relevant information regarding any local and State compliance requirements and protocols (permitting, etc.) in special management areas as appropriate to comply with local Coastal Zone Management Programs.  Document on the NRCS-CPA-52, or notes section below, the finding, rationale, and information sources used and proceed with planning."]
[null,null,null,null,null,null,null,null,null,null,null,null,null,null,null,null,null,null,null,null,null,null,null,null,null,null,null,null,null,null,null,null,"Riparian Area"]
[null,null,null,null,null,null,null,null,null,null,null,null,null,null,null,null,null,null,null,null,null,null,null,null,null,null,null,null,null,null,null,null,"Guide Sheet"]
[null,null,null,null,null,null,null,null,null,null,null,null,null,null,null,null,null,null,null,null,null,null,null,null,null,null,null,null,null,null,null,null,"Scenic Beauty"]
[null,null,null,null,null,null,null,null,null,null,null,null,null,null,null,null,null,null,null,null,null,null,null,null,null,null,null,null,null,null,null,null,"Guide Sheet"]
[null,null,null,null,null,null,null,null,null,null,null,null,null,null,null,null,null,null,null,null,null,null,null,null,null,null,null,null,null,null,null,null,"●Wetlands"]
[null,null,null,"If “Yes,”  the NRCS District Conservationist or an NRCS State Office employee must contact the State's Coastal Zone Program Office before the action is implemented to discuss possible modifications to the proposed action.  NRCS may not provide assistance if the proposed action or alternative would result in a violation of a State's Coastal Zone Management Plan.  NRCS shall provide a consistency determination to the State agency no later than 90 days before final approval of the activity.  When concurrence is received from the State, document the agreed to items and reference or attach them to the NRCS-CPA-52.",null,null,null,null,null,null,null,null,null,null,null,null,null,null,null,null,null,null,null,null,null,null,null,null,null,null,null,null,"Guide Sheet"]
[null,null,null,null,null,null,null,null,null,null,null,null,null,null,null,null,null,null,null,null,null,null,null,null,null,null,null,null,null,null,null,null,"●Wild and Scenic Rivers"]
[null,null,null,null,null,null,null,null,null,null,null,null,null,null,null,null,null,null,null,null,null,null,null,null,null,null,null,null,null,null,null,null,"Guide Sheet"]
[]
[]
[null,null,null,null,null,null,null,null,null,null,null,null,null,null,null,null,null,null,null,null,null,null,null,null,null,null,null,null,null,null,null,null,"Return to start of NRCS-CPA-52"]
[]
[null,null,null,null,null,null,null,null,null,null,null,null,null,null,null,null,null,null,null,null,null,null,null,null,null,null,null,null,null,null,null,null,"Go to start of Form Instructions"]
["Notes:"]

{"sheet":"CoralReefs","index":8,"n_rows":45,"n_cols":33,"rows_kept":45,"cut":false,"hidden":false,"merged":[[32,32,32,34],[32,35,32,36],[33,32,33,36],[34,32,34,34],[34,35,34,36],[27,32,27,36],[28,32,28,34],[28,35,28,36],[29,32,29,36],[31,32,31,36],[23,32,23,34],[23,35,23,36],[24,32,24,36],[25,32,25,34],[25,35,25,36],[18,32,18,36],[19,32,19,34],[19,35,19,36],[20,32,20,36],[22,32,22,36],[52,23,52,25],[9,32,9,34],[9,35,9,36],[10,32,10,36],[15,32,15,34],[15,35,15,36],[16,32,16,36],[21,32,21,34],[21,35,21,36],[30,32,30,34],[30,35,30,36],[12,32,12,36],[13,32,13,34],[17,32,17,34],[17,35,17,36],[44,32,44,36],[18,3,19,22],[12,3,13,22],[33,0,33,22],[15,0,16,22],[21,3,21,22],[35,3,38,22],[44,0,44,22],[45,0,54,22],[26,3,28,22],[23,0,23,2],[32,0,32,2],[40,3,43,22],[24,0,24,22],[30,3,30,22],[6,23,6,25],[16,23,16,25],[0,13,0,22],[4,13,4,22],[7,0,7,22],[9,3,10,22],[2,0,2,12],[0,0,1,12],[3,0,4,5],[1,13,1,22],[2,13,2,22],[3,13,3,22],[3,6,3,8],[4,9,4,11],[4,6,4,8],[0,32,0,36],[1,32,1,34],[2,32,2,36],[3,32,3,34],[3,35,3,36],[4,32,4,36],[14,32,14,36],[5,32,5,34],[5,35,5,36],[6,32,6,36],[7,32,7,34],[7,35,7,36],[8,32,8,36],[11,32,11,34],[11,35,11,36],[13,35,13,36],[45,32,45,34],[45,35,45,36],[43,32,43,34],[43,35,43,36],[42,32,42,36]]}
["CORAL REEFS\nNECH 610.24",null,null,null,null,null,null,null,null,null,null,null,null,"Client/Plan Information:",null,null,null,null,null,null,null,null,null,null,null,null,null,null,null,null,null,null,"●Clean Air Act"]
[null,null,null,null,null,null,null,null,null,null,null,null,null,{"$f":"'CPA-52'!Q1","v":0},null,null,null,null,null,null,null,null,null,null,null,null,null,null,null,null,null,null,"Guide Sheet"]
["Evaluation Procedure Guide Sheet",null,null,null,null,null,null,null,null,null,null,null,null,{"$f":"'CPA-52'!V3","v":0},null,null,null,null,null,null,null,null,null,null,null,null,null,null,null,null,null,null,"●Clean Water Act / Waters of the U.S."]
["Check all that apply to this Guide Sheet review:",null,null,null,null,null,null,null,null,null,null,null,null,{"$f":"'CPA-52'!T4","v":0},null,null,null,null,null,null,null,null,null,null,null,null,null,null,null,null,null,null,"Guide Sheet"]
[null,null,null,null,null,null,null,null,null,null,null,null,null,{"$f":"'CPA-52'!M6","v":0},null,null,null,null,null,null,null,null,null,null,null,null,null,null,null,null,null,null,"●Coastal Zone Management"]
[null,null,null,null,null,null,null,null,null,null,null,null,null,null,null,null,null,null,null,null,null,null,null,null,null,null,null,null,null,null,null,null,"Guide Sheet"]
["STEP 1.  ",null,null,null,null,null,null,null,null,null,null,null,null,null,null,null,null,null,null,null,null,null,null,null,null,null,null,null,null,null,null,null,"Coral Reefs"]
["Are coral reefs or associated water bodies (e.g. embayment areas) present in or near the planning area?",null,null,null,null,null,null,null,null,null,null,null,null,null,null,null,null,null,null,null,null,null,null,null,null,null,null,null,null,null,null,null,"Guide Sheet"]
[null,null,null,null,null,null,null,null,null,null,null,null,null,null,null,null,null,null,null,null,null,null,null,null,null,null,null,null,null,null,null,null,"●Cultural Resources / Historic Properties"]
[null,null,null,"If \"No,\" document on the NRCS-CPA-52, or notes section below, the finding, rationale, and information sources used and proceed with planning.",null,null,null,null,null,null,null,null,null,null,null,null,null,null,null,null,null,null,null,null,null,null,null,null,null,null,null,null,"Guide Sheet"]
[null,null,null,null,null,null,null,null,null,null,null,null,null,null,null,null,null,null,null,null,null,null,null,null,null,null,null,null,null,null,null,null,"●Endangered and Threatened Species"]
[null,null,null,null,null,null,null,null,null,null,null,null,null,null,null,null,null,null,null,null,null,null,null,null,null,null,null,null,null,null,null,null,"Guide Sheet"]
[null,null,null,"If “Yes,” go to Step 2. ",null,null,null,null,null,null,null,null,null,null,null,null,null,null,null,null,null,null,null,null,null,null,null,null,null,null,null,null,"Environmental Justice"]
[null,null,null,null,null,null,null,null,null,null,null,null,null,null,null,null,null,null,null,null,null,null,null,null,null,null,null,null,null,null,null,null,"Guide Sheet"]
["STEP 2.  ",null,null,null,null,null,null,null,null,null,null,null,null,null,null,null,null,null,null,null,null,null,null,null,null,null,null,null,null,null,null,null,"●Essential Fish Habitat"]
["Is there a potential for the action(s) to degrade the conditions of the coral reef ecosystem? (Refer to U.S. coral Reef Task Force Web site for local action strategies in your area.)",null,null,null,null,null,null,null,null,null,null,null,null,null,null,null,null,null,null,null,null,null,null,null,null,null,null,null,null,null,null,null,"Guide Sheet"]
[null,null,null,null,null,null,null,null,null,null,null,null,null,null,null,null,null,null,null,null,null,null,null,"U.S. Coral Reef Task Force",null,null,null,null,null,null,null,null,"Floodplain Management"]
[null,null,null,null,null,null,null,null,null,null,null,null,null,null,null,null,null,null,null,null,null,null,null,null,null,null,null,null,null,null,null,null,"Guide Sheet"]
[null,null,null,"If \"No,\" document on the NRCS-CPA-52, or notes section below, the finding, rationale, and information sources used and proceed with planning.",null,null,null,null,null,null,null,null,null,null,null,null,null,null,null,null,null,null,null,null,null,null,null,null,null,null,null,null,"Invasive Species"]
[null,null,null,null,null,null,null,null,null,null,null,null,null,null,null,null,null,null,null,null,null,null,null,null,null,null,null,null,null,null,null,null,"Guide Sheet"]
[null,null,null,null,null,null,null,null,null,null,null,null,null,null,null,null,null,null,null,null,null,null,null,null,null,null,null,null,null,null,null,null,"●Migratory Birds/Bald and Golden Eagle Protection Act "]
[null,null,null,"If “Yes,”  go to Step 3. ",null,null,null,null,null,null,null,null,null,null,null,null,null,null,null,null,null,null,null,null,null,null,null,null,null,null,null,null,"Guide Sheet"]
[null,null,null,null,null,null,null,null,null,null,null,null,null,null,null,null,null,null,null,null,null,null,null,null,null,null,null,null,null,null,null,null,"Natural Areas"]
["STEP 3.  ",null,null,null,null,null,null,null,null,null,null,null,null,null,null,null,null,null,null,null,null,null,null,null,null,null,null,null,null,null,null,null,"Guide Sheet"]
["Can the action(s) be modified to reduce or avoid degradation to the coral reef ecosystem?",null,null,null,null,null,null,null,null,null,null,null,null,null,null,null,null,null,null,null,null,null,null,null,null,null,null,null,null,null,null,null,"Prime and Unique Farmlands"]
[null,null,null,null,null,null,null,null,null,null,null,null,null,null,null,null,null,null,null,null,null,null,null,null,null,null,null,null,null,null,null,null,"Guide Sheet"]
[null,null,null,"If \"No,\" identify the component(s) of the system which will cause the potential impacts.  Document on the NRCS-CPA-52, or notes section below, the finding, rationale, and information sources used.  Go to Step 4."]
[null,null,null,null,null,null,null,null,null,null,null,null,null,null,null,null,null,null,null,null,null,null,null,null,null,null,null,null,null,null,null,null,"Riparian Area"]
[null,null,null,null,null,null,null,null,null,null,null,null,null,null,null,null,null,null,null,null,null,null,null,null,null,null,null,null,null,null,null,null,"Guide Sheet"]
[null,null,null,null,null,null,null,null,null,null,null,null,null,null,null,null,null,null,null,null,null,null,null,null,null,null,null,null,null,null,null,null,"Scenic Beauty"]
[null,null,null,"If “Yes,”  modify the action or alternative and repeat Step 2.",null,null,null,null,null,null,null,null,null,null,null,null,null,null,null,null,null,null,null,null,null,null,null,null,null,null,null,null,"Guide Sheet"]
[null,null,null,null,null,null,null,null,null,null,null,null,null,null,null,null,null,null,null,null,null,null,null,null,null,null,null,null,null,null,null,null,"●Wetlands"]
["STEP 4.  ",null,null,null,null,null,null,null,null,null,null,null,null,null,null,null,null,null,null,null,null,null,null,null,null,null,null,null,null,null,null,null,"Guide Sheet"]
["Is NRCS providing financial assistance or otherwise controlling the action(s)?",null,null,null,null,null,null,null,null,null,null,null,null,null,null,null,null,null,null,null,null,null,null,null,null,null,null,null,null,null,null,null,"●Wild and Scenic Rivers"]
[null,null,null,null,null,null,null,null,null,null,null,null,null,null,null,null,null,null,null,null,null,null,null,null,null,null,null,null,null,null,null,null,"Guide Sheet"]
[null,null,null,"If \"No,\" and degradation of the reefs is unavoidable, provide the client with information regarding the current status of U.S. coral reefs and the documented causes of degradation (including sedimentation and nutrient runoff), and the beneficial aspects of maintaining coral reefs."]
[]
[null,null,null,null,null,null,null,null,null,null,null,null,null,null,null,null,null,null,null,null,null,null,null,null,null,null,null,null,null,null,null,null,"Return to start of NRCS-CPA-52"]
[]
[null,null,null,null,null,null,null,null,null,null,null,null,null,null,null,null,null,null,null,null,null,null,null,null,null,null,null,null,null,null,null,null,"Go to start of Form Instructions"]
[null,null,null,"If “Yes,”  the significance of the impacts must be determined.  An Environmental Assessment (EA) or Environmental Impact Statement (EIS) may be required.  Contact your State Office for assistance."]
[]
[]
[]
["Notes:"]

{"sheet":"CulturalResources","index":9,"n_rows":124,"n_cols":33,"rows_kept":124,"cut":false,"hidden":false,"merged":[[21,32,21,34],[21,35,21,36],[27,32,27,36],[28,32,28,34],[28,35,28,36],[31,32,31,36],[32,32,32,34],[32,35,32,36],[33,32,33,36],[30,35,30,36],[23,35,23,36],[25,35,25,36],[22,32,22,36],[23,32,23,34],[24,32,24,36],[25,32,25,34],[29,32,29,36],[30,32,30,34],[27,1,27,12],[37,1,37,12],[92,0,95,22],[80,1,83,22],[97,4,98,22],[0,13,0,22],[4,13,4,22],[2,0,2,12],[0,0,1,12],[3,0,4,5],[1,13,1,22],[2,13,2,22],[3,6,3,8],[3,13,3,22],[4,6,4,8],[4,9,4,11],[6,23,6,25],[113,0,115,22],[120,4,122,22],[117,4,118,22],[39,1,40,22],[29,1,30,12],[32,1,33,12],[62,0,62,10],[77,1,78,12],[69,1,69,12],[71,1,71,12],[73,1,74,12],[49,0,49,2],[112,0,112,2],[91,0,91,2],[6,0,13,22],[14,0,20,22],[23,0,24,22],[25,1,26,12],[75,1,75,12],[46,4,47,22],[104,0,104,22],[100,4,101,22],[103,0,103,2],[15,35,15,36],[16,32,16,36],[17,32,17,34],[17,35,17,36],[18,32,18,36],[19,32,19,34],[19,35,19,36],[20,32,20,36],[124,0,127,22],[35,1,36,22],[49,25,49,27],[126,23,126,25],[62,23,62,25],[42,0,42,2],[60,4,60,22],[65,0,68,22],[43,0,44,22],[48,4,48,22],[50,0,56,22],[57,4,58,22],[123,0,123,22],[108,4,110,22],[85,1,90,22],[106,4,106,22],[34,32,34,34],[34,35,34,36],[0,32,0,36],[1,32,1,34],[2,32,2,36],[3,32,3,34],[3,35,3,36],[4,32,4,36],[5,32,5,34],[5,35,5,36],[6,32,6,36],[7,32,7,34],[7,35,7,36],[8,32,8,36],[9,32,9,34],[9,35,9,36],[10,32,10,36],[11,32,11,34],[11,35,11,36],[12,32,12,36],[13,32,13,34],[13,35,13,36],[14,32,14,36],[15,32,15,34]]}
["CULTURAL RESOURCES / HISTORIC PROPERTIES                   NECH 610.25",null,null,null,null,null,null,null,null,null,null,null,null,"Client/Plan Information:",null,null,null,null,null,null,null,null,null,null,null,null,null,null,null,null,null,null,"●Clean Air Act"]
[null,null,null,null,null,null,null,null,null,null,null,null,null,{"$f":"'CPA-52'!Q1","v":0},null,null,null,null,null,null,null,null,null,null,null,null,null,null,null,null,null,null,"Guide Sheet"]
["Evaluation Procedure Guide Sheet",null,null,null,null,null,null,null,null,null,null,null,null,{"$f":"'CPA-52'!V3","v":0},null,null,null,null,null,null,null,null,null,null,null,null,null,null,null,null,null,null,"●Clean Water Act / Waters of the U.S."]
["Check all that apply to this Guide Sheet review:",null,null,null,null,null,null,null,null,null,null,null,null,{"$f":"'CPA-52'!T4","v":0},null,null,null,null,null,null,null,null,null,null,null,null,null,null,null,null,null,null,"Guide Sheet"]
[null,null,null,null,null,null,null,null,null,null,null,null,null,{"$f":"'CPA-52'!M6","v":0},null,null,null,null,null,null,null,null,null,null,null,null,null,null,null,null,null,null,"●Coastal Zone Management"]
[null,null,null,null,null,null,null,null,null,null,null,null,null,null,null,null,null,null,null,null,null,null,null,null,null,null,null,null,null,null,null,null,"Guide Sheet"]
["NOTE:  This guidesheet provides general guidance to field planners and managers.  States may need to tailor this Evaluation Procedure Guide Sheet to reflect State Level Agreements (SLAs) with SHPOs or Tribal consultation protocols or operating procedures pertinent to your State or other State-specific protocols that reflect the terms of the current National Programmatic Agreement among NRCS, the Advisory Council on Historic Preservation, and the National Conference of SHPOs.  For additional information regarding compliance with Section 106 of the NHPA and NRCS cultural resource policy refer to Title 420, General Manual (GM), Part 401, Cultural Resources; for current operating procedures see Title 190, National Cultural Resource Procedures Handbook (NCRPH), Part 601.",null,null,null,null,null,null,null,null,null,null,null,null,null,null,null,null,null,null,null,null,null,null,null,null,null,null,null,null,null,null,null,"Coral Reefs"]
[null,null,null,null,null,null,null,null,null,null,null,null,null,null,null,null,null,null,null,null,null,null,null,null,null,null,null,null,null,null,null,null,"Guide Sheet"]
[null,null,null,null,null,null,null,null,null,null,null,null,null,null,null,null,null,null,null,null,null,null,null,null,null,null,null,null,null,null,null,null,"●Cultural Resources / Historic Properties"]
[null,null,null,null,null,null,null,null,null,null,null,null,null,null,null,null,null,null,null,null,null,null,null,null,null,null,null,null,null,null,null,null,"Guide Sheet"]
[null,null,null,null,null,null,null,null,null,null,null,null,null,null,null,null,null,null,null,null,null,null,null,null,null,null,null,null,null,null,null,null,"●Endangered and Threatened Species"]
[null,null,null,null,null,null,null,null,null,null,null,null,null,null,null,null,null,null,null,null,null,null,null,null,null,null,null,null,null,null,null,null,"Guide Sheet"]
[null,null,null,null,null,null,null,null,null,null,null,null,null,null,null,null,null,null,null,null,null,null,null,null,null,null,null,null,null,null,null,null,"Environmental Justice"]
[null,null,null,null,null,null,null,null,null,null,null,null,null,null,null,null,null,null,null,null,null,null,null,null,null,null,null,null,null,null,null,null,"Guide Sheet"]
["NOTE regarding consultations:  When dealing with undertakings with the potential to affect cultural resources or historic properties, it is important to follow NRCS policy and the regulations that implement Section 106 and complete consultation with mandatory (SHPOs, THPOs, federally recognized Tribes, and native Hawaiians) and identified consulting parties during the course of planning.  This consultation is not documented on this guide sheet but would occur with Steps 2, 3, 4, and 6 and these must be conducted in accordance with NRCS State Office operating procedures to ensure appropriate oversight by Cultural Resources Specialists who meet the Secretary of Interior's Qualification Standards. ",null,null,null,null,null,null,null,null,null,null,null,null,null,null,null,null,null,null,null,null,null,null,null,null,null,null,null,null,null,null,null,"●Essential Fish Habitat"]
[null,null,null,null,null,null,null,null,null,null,null,null,null,null,null,null,null,null,null,null,null,null,null,null,null,null,null,null,null,null,null,null,"Guide Sheet"]
[null,null,null,null,null,null,null,null,null,null,null,null,null,null,null,null,null,null,null,null,null,null,null,null,null,null,null,null,null,null,null,null,"Floodplain Management"]
[null,null,null,null,null,null,null,null,null,null,null,null,null,null,null,null,null,null,null,null,null,null,null,null,null,null,null,null,null,null,null,null,"Guide Sheet"]
[null,null,null,null,null,null,null,null,null,null,null,null,null,null,null,null,null,null,null,null,null,null,null,null,null,null,null,null,null,null,null,null,"Invasive Species"]
[null,null,null,null,null,null,null,null,null,null,null,null,null,null,null,null,null,null,null,null,null,null,null,null,null,null,null,null,null,null,null,null,"Guide Sheet"]
[null,null,null,null,null,null,null,null,null,null,null,null,null,null,null,null,null,null,null,null,null,null,null,null,null,null,null,null,null,null,null,null,"●Migratory Birds/Bald and Golden Eagle Protection Act "]
[null,null,null,null,null,null,null,null,null,null,null,null,null,null,null,null,null,null,null,null,null,null,null,null,null,null,null,null,null,null,null,null,"Guide Sheet"]
["STEP 1.  ",null,null,null,null,null,null,null,null,null,null,null,null,null,null,null,null,null,null,null,null,null,null,null,null,null,null,null,null,null,null,null,"Natural Areas"]
["Is the action(s) funded in whole or part or under the control of NRCS?  To make this determination, answer the following:",null,null,null,null,null,null,null,null,null,null,null,null,null,null,null,null,null,null,null,null,null,null,null,null,null,null,null,null,null,null,null,"Guide Sheet"]
[null,null,null,null,null,null,null,null,null,null,null,null,null,null,null,null,null,null,null,null,null,null,null,null,null,null,null,null,null,null,null,null,"Prime and Unique Farmlands"]
[null,"Is technical assistance carried out by or on behalf of NRCS?",null,null,null,null,null,null,null,null,null,null,null,null,null,null,null,null,null,null,null,null,null,null,null,null,null,null,null,null,null,null,"Guide Sheet"]
[]
[null,"Is it carried out with NRCS financial assistance?",null,null,null,null,null,null,null,null,null,null,null,null,null,null,null,null,null,null,null,null,null,null,null,null,null,null,null,null,null,null,"Riparian Area"]
[null,null,null,null,null,null,null,null,null,null,null,null,null,null,null,null,null,null,null,null,null,null,null,null,null,null,null,null,null,null,null,null,"Guide Sheet"]
[null,"Does it require Federal approval with NRCS as the lead federal agency (permit, license, approval, etc.)?",null,null,null,null,null,null,null,null,null,null,null,null,null,null,null,null,null,null,null,null,null,null,null,null,null,null,null,null,null,null,"Scenic Beauty"]
[null,null,null,null,null,null,null,null,null,null,null,null,null,null,null,null,null,null,null,null,null,null,null,null,null,null,null,null,null,null,null,null,"Guide Sheet"]
[null,null,null,null,null,null,null,null,null,null,null,null,null,null,null,null,null,null,null,null,null,null,null,null,null,null,null,null,null,null,null,null,"●Wetlands"]
[null,"Is it a joint project with another Federal, State, or local entity with NRCS functioning as lead federal agency?",null,null,null,null,null,null,null,null,null,null,null,null,null,null,null,null,null,null,null,null,null,null,null,null,null,null,null,null,null,null,"Guide Sheet"]
[null,null,null,null,null,null,null,null,null,null,null,null,null,null,null,null,null,null,null,null,null,null,null,null,null,null,null,null,null,null,null,null,"●Wild and Scenic Rivers"]
[null,null,null,null,null,null,null,null,null,null,null,null,null,null,null,null,null,null,null,null,null,null,null,null,null,null,null,null,null,null,null,null,"Guide Sheet"]
["●","If all of your responses are \"No,\" document on the NRCS-CPA-52, or notes section below, the finding, rationale, and information sources used and proceed with planning."]
[]
["●","If any responses are \"Yes,\" go to Step 2.",null,null,null,null,null,null,null,null,null,null,null,null,null,null,null,null,null,null,null,null,null,null,null,null,null,null,null,null,null,null,"Return to start of NRCS-CPA-52"]
[]
["●","If \"Unknown,\" consult with your State Cultural Resources Coordinator or Specialist (CRC or CRS) to determine if this is an action/undertaking that requires review and then complete Step 1.",null,null,null,null,null,null,null,null,null,null,null,null,null,null,null,null,null,null,null,null,null,null,null,null,null,null,null,null,null,null,"Go to start of Form Instructions"]
[]
[]
["STEP 2.  "]
["Is the action(s) identified as an \"undertaking\" (as defined in the 190-NCRPH and 420-GM) with the potential to cause effects to cultural resources/historic properties?  "]
[]
[]
[null,null,null,null,"If \"No,\" document on the NRCS-CPA-52, or notes section below, the finding, rationale, and information sources used and proceed with planning."]
[]
[null,null,null,null,"If “Yes,”  go to Step 3."]
["STEP 3.  "]
["Has the undertaking's Area of Potential Effect (APE) been determined?  NOTE:  Include all areas to be altered or affected, directly or indirectly: access and haul roads, equipment lots, borrow areas, surface grading areas, locations for disposition of sediment, streambank stabilization areas, building removal and relocation sites, disposition of removed concrete, as well as the area of the actual conservation practice.  Consultation is essential during determination of the APE so that all historic properties (buildings, structures, sites, landscapes, objects, and properties of cultural or religious importance to American Indian tribal governments and native Hawaiians) are included.  "]
[]
[]
[]
[]
[]
[]
[null,null,null,null,"If \"No,\" or \"Unknown,\" consult with your state specific protocols or the CRC or CRS to determine the APE."]
[]
[]
[null,null,null,null,"If “Yes,”  go to Step 4."]
[]
["CULTURAL RESOURCES (continued)"]
[]
["STEP 4.  "]
["Have the appropriate records (National, State and local registers and lists) been checked or interviews conducted to determine whether any known cultural or historic resources are within or in close proximity to the proposed APE or project area?  Note:  This record checking does not substitute for mandatory consultation with SHPO, THPO, Tribes, and other identified consulting parties. "]
[]
[]
[]
[null,"National Register of Historic Places?"]
[]
[null,"State Register of Historic Places?"]
[]
[null,"The SHPO's statewide inventory or data base?"]
[]
[null,"Local/county historical society or commission lists?"]
[]
[null,"Client knowledge of existing artifacts, historic structures, or cultural features?"]
[]
[]
["●","If any responses are \"No\" or \"Unknown,\" work with your CRC or CRS to be sure these files are checked (sometimes the SHPO will let only the CRS or CRC review the files).  Follow all other operating procedures as required by NRCS policy and procedures, SLA, and Tribal consultation protocols or operating procedures, as appropriate."]
[]
[]
[]
[]
["●","If all responses are \"Yes,\"  and NRCS providing technical assistance only, then use any known information, notify the landowner of any potential affects, and provide recommendations for consideration.  Document on the NRCS-CPA-52, or notes section below, the finding, rationale, and information sources used and proceed with planning.  If NRCS is providing more than technical assistance go to Step 5."]
[]
[]
[]
[]
[]
["STEP 5.  "]
["Did Step 4 reveal the existence of any known or potential cultural resources in the APE, or were any cultural resource indicators observed during the field inspection of the APE?  NOTE:  Field inspections or cultural resource survey will need to be conducted by qualified personnel in your state. Check with your State Cultural Resources Specialist to determine qualification criteria. "]
[]
[]
[]
[]
[null,null,null,null,"If \"No,\" document on the NRCS-CPA-52, or notes section below, the finding, rationale, and information sources used and proceed with planning."]
[]
[]
[null,null,null,null,"If \"Yes,\" contact the CRC or CRS.  Do NOT proceed with finalizing project design or project implementation until the final CRS response is received. Go to Step 6."]
[]
[]
["STEP 6.  "]
["Can the proposed actions or alternatives be modified to avoid effects on the known cultural resources?"]
[]
[null,null,null,null,"If \"No,\" go to Step 7."]
[]
[null,null,null,null,"If \"Yes,\" modify the planned actions or activities and proceed according to CRS guidance and document this on the NRCS-CPA-52, or notes section below and continue with planning."]
[]
[]
[]
["STEP 7.  "]
["Has consultation with appropriate and interested parties been completed and documented?  NOTE: The field planner completing the NRCS-CPA-52 generally does not do the consultation unless it is the CRS or CRC.  Refer to the appropriate specialist for the documentation information."]
[]
[]
[]
[null,null,null,null,"If \"No\" refer to State CRC or CRS for further consultation and recommendations to the State Conservationist."]
[]
[]
[null,null,null,null,"If \"Yes,\" and all necessary historic preservation activities of identification, evaluation, and treatment have been completed, document any consultation and proceed with planning.  "]
[]
[]
["Notes:"]

{"sheet":"EandTSpecies","index":10,"n_rows":189,"n_cols":33,"rows_kept":189,"cut":false,"hidden":false,"merged":[[172,3,179,22],[181,3,187,22],[188,0,188,22],[189,0,192,22],[191,23,191,25],[157,0,157,22],[159,0,160,22],[162,7,165,22],[167,7,167,22],[169,0,169,2],[170,0,170,22],[139,0,140,22],[142,6,145,22],[147,6,150,22],[152,0,152,22],[153,0,155,22],[153,23,153,25],[130,0,130,22],[131,0,136,22],[131,23,131,25],[137,0,137,22],[137,23,137,25],[138,0,138,2],[101,0,101,2],[102,0,102,22],[104,3,108,22],[110,3,118,22],[119,3,122,22],[123,3,128,22],[86,0,86,16],[87,0,87,22],[87,23,87,25],[90,0,91,22],[93,6,96,22],[98,6,99,22],[43,3,47,22],[49,3,58,22],[60,3,63,22],[65,3,70,22],[72,0,72,22],[73,0,85,22],[34,4,36,22],[34,32,34,34],[34,35,34,36],[38,0,38,22],[40,0,40,2],[41,0,41,22],[30,32,30,34],[30,35,30,36],[31,4,33,22],[31,32,31,36],[32,32,32,34],[32,35,32,36],[33,32,33,36],[25,32,25,34],[25,35,25,36],[27,0,29,22],[27,32,27,36],[28,32,28,34],[28,35,28,36],[29,32,29,36],[22,32,22,36],[23,32,23,34],[23,35,23,36],[24,0,24,22],[24,23,24,25],[24,32,24,36],[18,32,18,36],[19,32,19,34],[19,35,19,36],[20,32,20,36],[21,32,21,34],[21,35,21,36],[15,32,15,34],[15,35,15,36],[16,3,17,22],[16,32,16,36],[17,32,17,34],[17,35,17,36],[11,32,11,34],[11,35,11,36],[12,32,12,36],[13,3,14,22],[13,32,13,34],[13,35,13,36],[14,32,14,36],[5,32,5,34],[5,35,5,36],[6,32,6,36],[7,0,11,22],[7,32,7,34],[7,35,7,36],[8,32,8,36],[9,32,9,34],[9,35,9,36],[10,32,10,36],[0,0,1,12],[0,13,0,22],[0,32,0,36],[1,13,1,22],[1,32,1,34],[2,0,2,12],[2,13,2,22],[2,32,2,36],[3,0,4,5],[3,6,3,8],[3,13,3,22],[3,32,3,34],[3,35,3,36],[4,6,4,8],[4,9,4,11],[4,13,4,22],[4,23,4,25],[4,32,4,36]]}
["ENDANGERED AND THREATENED SPECIES                     NECH 610.26",null,null,null,null,null,null,null,null,null,null,null,null,"Client/Plan Information:",null,null,null,null,null,null,null,null,null,null,null,null,null,null,null,null,null,null,"●Clean Air Act"]
[null,null,null,null,null,null,null,null,null,null,null,null,null,{"$f":"'CPA-52'!Q1","v":0},null,null,null,null,null,null,null,null,null,null,null,null,null,null,null,null,null,null,"Guide Sheet"]
["Evaluation Procedure Guide Sheet",null,null,null,null,null,null,null,null,null,null,null,null,{"$f":"'CPA-52'!V3","v":0},null,null,null,null,null,null,null,null,null,null,null,null,null,null,null,null,null,null,"●Clean Water Act / Waters of the U.S."]
["Check all that apply to this Guide Sheet review:",null,null,null,null,null,null,null,null,null,null,null,null,{"$f":"'CPA-52'!T4","v":0},null,null,null,null,null,null,null,null,null,null,null,null,null,null,null,null,null,null,"Guide Sheet"]
[null,null,null,null,null,null,null,null,null,null,null,null,null,{"$f":"'CPA-52'!M6","v":0},null,null,null,null,null,null,null,null,null,null,null,null,null,null,null,null,null,null,"●Coastal Zone Management"]
[null,null,null,null,null,null,null,null,null,null,null,null,null,null,null,null,null,null,null,null,null,null,null,null,null,null,null,null,null,null,null,null,"Guide Sheet"]
["STEP 1.  ",null,null,null,null,null,null,null,null,null,null,null,null,null,null,null,null,null,null,null,null,null,null,null,null,null,null,null,null,null,null,null,"Coral Reefs"]
["Are protected species and their habitat or designed Critical Habitat present in the area of potential effect?   \nNote: protected species include federally listed, proposed, and candidate species, as well as State and Tribal species protected by law or regulation.  In addition, if a species' listing or status changes before implementation, you must complete this review again.",null,null,null,null,null,null,null,null,null,null,null,null,null,null,null,null,null,null,null,null,null,null,null,null,null,null,null,null,null,null,null,"Guide Sheet"]
[null,null,null,null,null,null,null,null,null,null,null,null,null,null,null,null,null,null,null,null,null,null,null,null,null,null,null,null,null,null,null,null,"●Cultural Resources / Historic Properties"]
[null,null,null,null,null,null,null,null,null,null,null,null,null,null,null,null,null,null,null,null,null,null,null,null,null,null,null,null,null,null,null,null,"Guide Sheet"]
[null,null,null,null,null,null,null,null,null,null,null,null,null,null,null,null,null,null,null,null,null,null,null,null,null,null,null,null,null,null,null,null,"●Endangered and Threatened Species"]
[null,null,null,null,null,null,null,null,null,null,null,null,null,null,null,null,null,null,null,null,null,null,null,null,null,null,null,null,null,null,null,null,"Guide Sheet"]
[null,null,null,null,null,null,null,null,null,null,null,null,null,null,null,null,null,null,null,null,null,null,null,null,null,null,null,null,null,null,null,null,"Environmental Justice"]
[null,null,null,"If \"No,\" document on the NRCS-CPA-52, or notes section below, the finding, rationale, and information sources used and proceed with planning.",null,null,null,null,null,null,null,null,null,null,null,null,null,null,null,null,null,null,null,null,null,null,null,null,null,null,null,null,"Guide Sheet"]
[null,null,null,null,null,null,null,null,null,null,null,null,null,null,null,null,null,null,null,null,null,null,null,null,null,null,null,null,null,null,null,null,"●Essential Fish Habitat"]
[null,null,null,null,null,null,null,null,null,null,null,null,null,null,null,null,null,null,null,null,null,null,null,null,null,null,null,null,null,null,null,null,"Guide Sheet"]
[null,null,null,"If “Yes,” document the species or area of designated Critical Habitat, and relevant benchmark data on NRCS-CPA-52, then proceed to the applicable section(s) listed below: \n",null,null,null,null,null,null,null,null,null,null,null,null,null,null,null,null,null,null,null,null,null,null,null,null,null,null,null,null,"Floodplain Management"]
[null,null,null,null,null,null,null,null,null,null,null,null,null,null,null,null,null,null,null,null,null,null,null,null,null,null,null,null,null,null,null,null,"Guide Sheet"]
[null,null,null,null,null,null,null,null,null,null,null,null,null,null,null,null,null,null,null,null,null,null,null,null,null,null,null,null,null,null,null,null,"Invasive Species"]
[null,null,null,null,"● Section 1- Federally listed endangered or threatened species/habitats  ",null,null,null,null,null,null,null,null,null,null,null,null,null,null,null,null,null,null,null,null,null,null,null,null,null,null,null,"Guide Sheet"]
[null,null,null,null,"● Section 2- Federally proposed species/habitats  ",null,null,null,null,null,null,null,null,null,null,null,null,null,null,null,null,null,null,null,null,null,null,null,null,null,null,null,"●Migratory Birds/Bald and Golden Eagle Protection Act "]
[null,null,null,null,"● Section 3- Federal candidate species/habitats",null,null,null,null,null,null,null,null,null,null,null,null,null,null,null,null,null,null,null,null,null,null,null,null,null,null,null,"Guide Sheet"]
[null,null,null,null,"● Section 4- State/Tribal species/habitats",null,null,null,null,null,null,null,null,null,null,null,null,null,null,null,null,null,null,null,null,null,null,null,null,null,null,null,"Natural Areas"]
[null,null,null,null,null,null,null,null,null,null,null,null,null,null,null,null,null,null,null,null,null,null,null,null,null,null,null,null,null,null,null,null,"Guide Sheet"]
["SECTION 1:  Federally listed endangered or threatened species/habitats",null,null,null,null,null,null,null,null,null,null,null,null,null,null,null,null,null,null,null,null,null,null,null,null,null,null,null,null,null,null,null,"Prime and Unique Farmlands"]
[null,null,null,null,null,null,null,null,null,null,null,null,null,null,null,null,null,null,null,null,null,null,null,null,null,null,null,null,null,null,null,null,"Guide Sheet"]
["STEP 1.  "]
["What is the effect (i.e. beneficial/adverse, short-term/long-term, etc.) of the action(s) on endangered or threatened species or their habitat?",null,null,null,null,null,null,null,null,null,null,null,null,null,null,null,null,null,null,null,null,null,null,null,null,null,null,null,null,null,null,null,"Riparian Area"]
[null,null,null,null,null,null,null,null,null,null,null,null,null,null,null,null,null,null,null,null,null,null,null,null,null,null,null,null,null,null,null,null,"Guide Sheet"]
[null,null,null,null,null,null,null,null,null,null,null,null,null,null,null,null,null,null,null,null,null,null,null,null,null,null,null,null,null,null,null,null,"Scenic Beauty"]
[null,null,null,null,null,null,null,null,null,null,null,null,null,null,null,null,null,null,null,null,null,null,null,null,null,null,null,null,null,null,null,null,"Guide Sheet"]
[null,null,null,null,"If “No effect, \"document on the NRCS-CPA-52, or notes section below, the finding, rationale, and information sources used and proceed with planning.",null,null,null,null,null,null,null,null,null,null,null,null,null,null,null,null,null,null,null,null,null,null,null,null,null,null,null,"●Wetlands"]
[null,null,null,null,null,null,null,null,null,null,null,null,null,null,null,null,null,null,null,null,null,null,null,null,null,null,null,null,null,null,null,null,"Guide Sheet"]
[null,null,null,null,null,null,null,null,null,null,null,null,null,null,null,null,null,null,null,null,null,null,null,null,null,null,null,null,null,null,null,null,"●Wild and Scenic Rivers"]
[null,null,null,null,"If \"May affect,\" meaning that the action might affect endangered and threatened species or their habitat in some way, or may have an adverse effect to designated Critical Habitat, go to Step 2. ",null,null,null,null,null,null,null,null,null,null,null,null,null,null,null,null,null,null,null,null,null,null,null,null,null,null,null,"Guide Sheet"]
[]
[]
[null,null,null,null,null,null,null,null,null,null,null,null,null,null,null,null,null,null,null,null,null,null,null,null,null,null,null,null,null,null,null,null,"Return to start of NRCS-CPA-52"]
["Federally listed  endangered or threatened species/habitats (continued)"]
[null,null,null,null,null,null,null,null,null,null,null,null,null,null,null,null,null,null,null,null,null,null,null,null,null,null,null,null,null,null,null,null,"Go to start of Form Instructions"]
["STEP 2.  "]
["Is NRCS providing financial assistance or otherwise controlling the action(s)?"]
[]
[null,null,null,"If \"No,\" and the effects are purely benign or beneficial, continue with planning but ensure the client is aware endangered and threatened species or Critical Habitat exists and conservation practices must be applied in a manner that avoids adverse effects. Document on the NRCS-CPA-52, or notes section below, the finding, rationale, and information sources used and proceed with planning."]
[]
[]
[]
[]
[]
[null,null,null,"If \"No,\" and there is a possibility of short-term or long-term adverse effects then inform the client of NRCS's policy concerning endangered and threatened species and the need to use alternative conservation treatments to avoid adverse effects on these species or their habitat.  Further, NRCS assistance will be provided only if one of the conservation alternatives is selected that avoids adverse effects or the client obtains a \"take\" permit from the FWS/NMFS.  Refer the client to FWS/NMFS to address the client’s responsibilities under Sections 9 & 10 of the ESA, for Federally listed species. Document on the NRCS-CPA-52, or notes section below, the finding, rationale, and information sources used.  If assistance is continued, document how the alternative conservation treatments avoid adverse effects and proceed with planning."]
[]
[]
[]
[]
[]
[]
[]
[]
[]
[]
[null,null,null,"If “Yes,”  and the action will be implemented according to an existing informal consultation, biological opinion, or 4(d) special rule, document on the NRCS-CPA-52, or notes section below, the finding, rationale, and information sources used and proceed with planning."]
[]
[]
[]
[]
[null,null,null,"If “Yes,”  and the action cannot be modified to avoid the effect, inform client that in order to proceed with the action NRCS must consult with FWS/NMFS.  Contact your area or State biologist for consultation procedures. The action can only be implemented according to the terms of the consultation.  When consultation is complete, attach the consultation documents to NRCS-CPA-52 or reference them in the notes section below and proceed with planning."]
[]
[]
[]
[]
[]
[]
["Notes for Federally listed endangered or threatened species/habitats:"]
[]
[]
[]
[]
[]
[]
[]
[]
[]
[]
[]
[]
[]
[]
["SECTION 2:  Federally proposed species/habitats"]
[]
["STEP 1.  "]
["What is the effect (i.e. beneficial/adverse, short-term/long-term, etc.) of the action(s) on proposed species or their habitat?"]
[]
[]
[null,null,null,null,null,null,"If “No effect,\" additional evaluation is not needed concerning proposed species or proposed critical habitat.  Document on the NRCS-CPA-52, or notes section below, the finding, rationale, and information sources used and proceed with planning."]
[]
[]
[]
[]
[null,null,null,null,null,null,"If \"May affect,” meaning that the action might affect endangered and threatened species or proposed critical habitat in any way, go to Step 2. "]
[]
[]
["STEP 2.  "]
["Is NRCS providing financial assistance or otherwise controlling the action?"]
[]
[null,null,null,"If \"No,\" and the effects are purely benign or beneficial, continue with planning but ensure the client is aware proposed species or their habitat exists and conservation practices must be applied in a manner as to avoid adverse effects. Document on the NRCS-CPA-52, or notes section below, the finding, rationale, and information sources used and proceed with planning."]
[]
[]
[]
[]
[]
[null,null,null,"If \"No,\" and there is a possibility of short-term or long-term adverse effects then inform the client of NRCS's policy concerning proposed species and the need to use alternative conservation treatments to avoid adverse effects on these species or their habitat.  Further, NRCS assistance will be provided only if one of the conservation alternatives is selected that avoids adverse effects, and to the extent practicable, provide long-term benefits to species and habitat.  Should the client or landowner refuse to apply the recommended alternative conservation treatment, NRCS will inform the client and landowner of the NRCS policy and shall not provide assistance for the action or portion of the action affecting the proposed species."]
[]
[]
[]
[]
[]
[]
[]
[]
[null,null,null,"If “Yes,” and the action will be implemented according to an existing conference report or conference opinion.  Document on the NRCS-CPA-52, or notes section below, the finding, rationale, and information sources used and proceed with planning."]
[]
[]
[]
[null,null,null,"If “Yes,” and the action cannot be modified to avoid the effect, inform client that the NRCS must conference with FWS/NMFS.  Contact your area or State biologist for conference procedures. Further NRCS assistance can only be provided only if the client agrees to implement the conference recommendations to the extent practicable.  When the conference is complete, attach the conference documents to NRCS-CPA-52, or reference them in the notes section below, and proceed with planning."]
[]
[]
[]
[]
[]
[]
["Notes for Federally proposed species/habitats:"]
[]
[]
[]
[]
[]
[]
["SECTION 3:  Federal candidate species/habitats"]
["STEP 1.  "]
["What is the effect (i.e. beneficial/adverse, short-term/long-term, etc.) of the action(s) on candidate species or their habitat?"]
[]
[]
[null,null,null,null,null,null,"If “No adverse effect,\" additional evaluation is not needed concerning proposed species.  Document on the NRCS-CPA-52, or notes section below, the finding, rationale, and information sources used and proceed with planning."]
[]
[]
[]
[]
[null,null,null,null,null,null,"If “May adversely affect,\" recommend alternative treatments that avoid or minimize the adverse effects and, to the extent practicable, provide long-term benefit to the species. Document the effects of the selected alternative on the NRCS-CPA-52 and proceed with planning."]
[]
[]
[]
[]
["Notes for Federally proposed species/habitats:"]
[]
[]
[]
[]
["SECTION 4:  State/Tribal species/habitats"]
["STEP 1.  "]
["What is the effect (i.e. beneficial/adverse, short-term/long-term, etc.) of the proposed action or alternative on State/Tribal species or their habitat?"]
[]
[]
[null,null,null,null,null,null,null,"If “No adverse effect,\" additional evaluation is not needed concerning State or Tribal species of concern.  Document on the NRCS-CPA-52, or notes section below, the finding, rationale, and information sources used and proceed with planning."]
[]
[]
[]
[]
[null,null,null,null,null,null,null,"If “May adversely affect,\" go to Step 2."]
[]
["STEP 2.  "]
["Is NRCS providing financial assistance or otherwise controlling the action?"]
[]
[null,null,null,"If \"No,\" and there is a possibility of short-term or long-term adverse effects then inform the client of NRCS's policy concerning State and Tribal species and the need to use alternative conservation treatments to avoid or minimize adverse effects on these species or their habitat.  Further, NRCS assistance will be provided only if one of the conservation alternatives is selected that avoids or minimizes adverse effects to the extent practicable.  Document on the NRCS-CPA-52, or notes section below, the finding, rationale, and information sources used. If assistance is continued, document how the alternative conservation treatments avoid or minimize those adverse effects and proceed with planning."]
[]
[]
[]
[]
[]
[]
[]
[]
[null,null,null,"If “Yes,” and the action cannot be modified to avoid the adverse effect, inform client that the NRCS must coordinate with State/Tribal government and receive concurrence on recommended alternatives.  Contact your area or State biologist for coordination procedures. Further NRCS assistance will be provided only if the client agrees to implement a concurred upon alternative and obtains any required permits.   Document on the NRCS-CPA-52, or notes section below, the finding, rationale, and information sources used and proceed with planning."]
[]
[]
[]
[]
[]
[]
["Notes for State/Tribal species/habitats:"]

{"sheet":"EssentialFishHabitat","index":11,"n_rows":52,"n_cols":33,"rows_kept":52,"cut":false,"hidden":false,"merged":[[18,32,18,36],[19,32,19,34],[19,35,19,36],[20,32,20,36],[21,32,21,34],[21,35,21,36],[14,32,14,36],[15,32,15,34],[15,35,15,36],[16,32,16,36],[17,32,17,34],[17,35,17,36],[34,32,34,34],[34,35,34,36],[31,32,31,36],[32,32,32,34],[32,35,32,36],[29,32,29,36],[30,32,30,34],[30,35,30,36],[33,32,33,36],[24,32,24,36],[25,32,25,34],[25,35,25,36],[27,32,27,36],[28,32,28,34],[28,35,28,36],[22,32,22,36],[23,32,23,34],[23,35,23,36],[0,13,0,22],[4,13,4,22],[0,32,0,36],[1,32,1,34],[2,32,2,36],[3,32,3,34],[3,35,3,36],[4,32,4,36],[5,32,5,34],[5,35,5,36],[6,32,6,36],[7,32,7,34],[7,35,7,36],[2,0,2,12],[0,0,1,12],[3,0,4,5],[1,13,1,22],[2,13,2,22],[3,13,3,22],[3,6,3,8],[4,6,4,8],[4,9,4,11],[53,23,53,25],[26,23,26,25],[6,23,6,25],[15,23,15,27],[45,23,45,27],[19,23,19,24],[37,23,37,24],[41,23,41,25],[52,0,55,22],[37,0,38,22],[7,0,10,22],[12,3,13,22],[18,0,19,22],[21,3,24,22],[15,3,15,22],[29,0,29,22],[34,3,34,22],[51,0,51,22],[28,0,28,2],[36,0,36,2],[45,3,49,22],[40,3,44,22],[31,3,32,22],[26,3,26,22],[12,32,12,36],[13,32,13,34],[13,35,13,36],[8,32,8,36],[9,32,9,34],[9,35,9,36],[10,32,10,36],[11,32,11,34],[11,35,11,36]]}
["ESSENTIAL FISH HABITAT\nNECH 610.28",null,null,null,null,null,null,null,null,null,null,null,null,"Client/Plan Information:",null,null,null,null,null,null,null,null,null,null,null,null,null,null,null,null,null,null,"●Clean Air Act"]
[null,null,null,null,null,null,null,null,null,null,null,null,null,{"$f":"'CPA-52'!Q1","v":0},null,null,null,null,null,null,null,null,null,null,null,null,null,null,null,null,null,null,"Guide Sheet"]
["Evaluation Procedure Guide Sheet",null,null,null,null,null,null,null,null,null,null,null,null,{"$f":"'CPA-52'!V3","v":0},null,null,null,null,null,null,null,null,null,null,null,null,null,null,null,null,null,null,"●Clean Water Act / Waters of the U.S."]
["Check all that apply to this Guide Sheet review:",null,null,null,null,null,null,null,null,null,null,null,null,{"$f":"'CPA-52'!T4","v":0},null,null,null,null,null,null,null,null,null,null,null,null,null,null,null,null,null,null,"Guide Sheet"]
[null,null,null,null,null,null,null,null,null,null,null,null,null,{"$f":"'CPA-52'!M6","v":0},null,null,null,null,null,null,null,null,null,null,null,null,null,null,null,null,null,null,"●Coastal Zone Management"]
[null,null,null,null,null,null,null,null,null,null,null,null,null,null,null,null,null,null,null,null,null,null,null,null,null,null,null,null,null,null,null,null,"Guide Sheet"]
["STEP 1.  ",null,null,null,null,null,null,null,null,null,null,null,null,null,null,null,null,null,null,null,null,null,null,null,null,null,null,null,null,null,null,null,"Coral Reefs"]
["Is the action(s) in an area designated as Essential Fish Habitat (EFH) or in an area where effects could indirectly or cumulatively affect EFH?  \nNOTE:  Additional information regarding EFH Descriptions and Identification can be found on NMFS's website.",null,null,null,null,null,null,null,null,null,null,null,null,null,null,null,null,null,null,null,null,null,null,null,null,null,null,null,null,null,null,null,"Guide Sheet"]
[null,null,null,null,null,null,null,null,null,null,null,null,null,null,null,null,null,null,null,null,null,null,null,null,null,null,null,null,null,null,null,null,"●Cultural Resources / Historic Properties"]
[null,null,null,null,null,null,null,null,null,null,null,null,null,null,null,null,null,null,null,null,null,null,null,null,null,null,null,null,null,null,null,null,"Guide Sheet"]
[null,null,null,null,null,null,null,null,null,null,null,null,null,null,null,null,null,null,null,null,null,null,null,null,null,null,null,null,null,null,null,null,"●Endangered and Threatened Species"]
[null,null,null,null,null,null,null,null,null,null,null,null,null,null,null,null,null,null,null,null,null,null,null,null,null,null,null,null,null,null,null,null,"Guide Sheet"]
[null,null,null,"If \"No,\" document on the NRCS-CPA-52, or notes section below, the finding, rationale, and information sources used and proceed with planning.",null,null,null,null,null,null,null,null,null,null,null,null,null,null,null,null,null,null,null,null,null,null,null,null,null,null,null,null,"Environmental Justice"]
[null,null,null,null,null,null,null,null,null,null,null,null,null,null,null,null,null,null,null,null,null,null,null,null,null,null,null,null,null,null,null,null,"Guide Sheet"]
[null,null,null,null,null,null,null,null,null,null,null,null,null,null,null,null,null,null,null,null,null,null,null,null,null,null,null,null,null,null,null,null,"●Essential Fish Habitat"]
[null,null,null,"If “Yes,” go to Step 2. ",null,null,null,null,null,null,null,null,null,null,null,null,null,null,null,null,null,null,null,"Essential Fish Habitat",null,null,null,null,null,null,null,null,"Guide Sheet"]
[null,null,null,null,null,null,null,null,null,null,null,null,null,null,null,null,null,null,null,null,null,null,null,null,null,null,null,null,null,null,null,null,"Floodplain Management"]
["STEP 2.  ",null,null,null,null,null,null,null,null,null,null,null,null,null,null,null,null,null,null,null,null,null,null,null,null,null,null,null,null,null,null,null,"Guide Sheet"]
["Will the action(s) result in short-term or long-term disruptions or alterations that may result in an \"adverse effect\" to EFH? [16 U.S.C. 1855(b)(2); Magnuson Stevens Act (MSA) Section 305(b)(2)]",null,null,null,null,null,null,null,null,null,null,null,null,null,null,null,null,null,null,null,null,null,null,null,null,null,null,null,null,null,null,null,"Invasive Species"]
[null,null,null,null,null,null,null,null,null,null,null,null,null,null,null,null,null,null,null,null,null,null,null,"MSA",null,null,null,null,null,null,null,null,"Guide Sheet"]
[null,null,null,null,null,null,null,null,null,null,null,null,null,null,null,null,null,null,null,null,null,null,null,null,null,null,null,null,null,null,null,null,"●Migratory Birds/Bald and Golden Eagle Protection Act "]
[null,null,null,"If \"No,\" consultation with NMFS and further evaluation is not needed concerning EFH unless otherwise specified by the State Biologist.  Document on the NRCS-CPA-52, or notes section below, the finding, rationale, and information sources used and proceed with planning.",null,null,null,null,null,null,null,null,null,null,null,null,null,null,null,null,null,null,null,null,null,null,null,null,null,null,null,null,"Guide Sheet"]
[null,null,null,null,null,null,null,null,null,null,null,null,null,null,null,null,null,null,null,null,null,null,null,null,null,null,null,null,null,null,null,null,"Natural Areas"]
[null,null,null,null,null,null,null,null,null,null,null,null,null,null,null,null,null,null,null,null,null,null,null,null,null,null,null,null,null,null,null,null,"Guide Sheet"]
[null,null,null,null,null,null,null,null,null,null,null,null,null,null,null,null,null,null,null,null,null,null,null,null,null,null,null,null,null,null,null,null,"Prime and Unique Farmlands"]
[null,null,null,null,null,null,null,null,null,null,null,null,null,null,null,null,null,null,null,null,null,null,null,null,null,null,null,null,null,null,null,null,"Guide Sheet"]
[null,null,null,"If “Yes,” go to Step 3. "]
[null,null,null,null,null,null,null,null,null,null,null,null,null,null,null,null,null,null,null,null,null,null,null,null,null,null,null,null,null,null,null,null,"Riparian Area"]
["STEP 3.  ",null,null,null,null,null,null,null,null,null,null,null,null,null,null,null,null,null,null,null,null,null,null,null,null,null,null,null,null,null,null,null,"Guide Sheet"]
["Can the action(s) be modified to avoid the potential adverse effect?",null,null,null,null,null,null,null,null,null,null,null,null,null,null,null,null,null,null,null,null,null,null,null,null,null,null,null,null,null,null,null,"Scenic Beauty"]
[null,null,null,null,null,null,null,null,null,null,null,null,null,null,null,null,null,null,null,null,null,null,null,null,null,null,null,null,null,null,null,null,"Guide Sheet"]
[null,null,null,"If \"No,\" document on the NRCS-CPA-52, or notes section below, the finding, rationale, and information sources used.  Go to Step 4.",null,null,null,null,null,null,null,null,null,null,null,null,null,null,null,null,null,null,null,null,null,null,null,null,null,null,null,null,"●Wetlands"]
[null,null,null,null,null,null,null,null,null,null,null,null,null,null,null,null,null,null,null,null,null,null,null,null,null,null,null,null,null,null,null,null,"Guide Sheet"]
[null,null,null,null,null,null,null,null,null,null,null,null,null,null,null,null,null,null,null,null,null,null,null,null,null,null,null,null,null,null,null,null,"●Wild and Scenic Rivers"]
[null,null,null,"If “Yes,”  modify the action or activity and repeat Step 2.",null,null,null,null,null,null,null,null,null,null,null,null,null,null,null,null,null,null,null,null,null,null,null,null,null,null,null,null,"Guide Sheet"]
[]
["STEP 4.  "]
["Is NRCS providing assistance that would result in the funding, authorization, or undertaking of the action(s)? [MSA Section 305(b)]",null,null,null,null,null,null,null,null,null,null,null,null,null,null,null,null,null,null,null,null,null,null,"MSA",null,null,null,null,null,null,null,null,"Return to start of NRCS-CPA-52"]
[]
[null,null,null,null,null,null,null,null,null,null,null,null,null,null,null,null,null,null,null,null,null,null,null,null,null,null,null,null,null,null,null,null,"Go to start of Form Instructions"]
[null,null,null,"If \"No,\" an alternative conservation system that avoids the adverse effect must be identified as the proposed action or NRCS must discontinue assistance.  If assistance is terminated, indicate the circumstances in the Remarks section of the NRCS-CPA-52 or contact the NRCS State Office for assistance.  (Title 190, General Manual, Part 410, Subpart A, Section 410.3)"]
[null,null,null,null,null,null,null,null,null,null,null,null,null,null,null,null,null,null,null,null,null,null,null,"GM 190, Part 410.3"]
[]
[]
[]
[null,null,null,"If “Yes,” inform the client that the NRCS District Conservationist or NRCS State Biologist must consult with NMFS before further action or activity can proceed [MSA, Section 305(b)(2)].  \nNote:  For specific information regarding consultation for EFH, see NMFS \"Essential Fish Habitat Consultation Guidance,\" April 2004, available online.",null,null,null,null,null,null,null,null,null,null,null,null,null,null,null,null,null,null,null,"Essential Fish Habitat"]
[]
[]
[]
[]
[]
["Notes:"]

{"sheet":"FloodplainManagement","index":12,"n_rows":90,"n_cols":33,"rows_kept":90,"cut":false,"hidden":false,"merged":[[34,3,36,22],[41,0,41,2],[38,3,39,22],[30,32,30,34],[30,35,30,36],[31,32,31,36],[32,32,32,34],[32,35,32,36],[33,32,33,36],[34,32,34,34],[34,35,34,36],[46,3,47,22],[3,13,3,22],[0,13,0,22],[4,13,4,22],[2,0,2,12],[0,0,1,12],[3,0,4,5],[1,13,1,22],[2,13,2,22],[3,6,3,8],[4,6,4,8],[4,9,4,11],[42,0,44,22],[23,0,24,22],[28,3,28,22],[31,0,32,22],[6,23,6,25],[26,3,26,22],[18,4,20,22],[76,0,76,22],[78,3,81,22],[57,0,57,2],[58,0,58,22],[30,0,30,2],[75,0,75,2],[55,0,55,11],[65,3,67,22],[6,0,8,22],[16,3,16,22],[11,0,11,22],[13,3,14,22],[49,3,53,22],[69,3,73,22],[60,3,63,22],[95,23,95,25],[55,23,55,25],[89,0,89,22],[90,0,96,22],[83,3,87,22],[0,32,0,36],[1,32,1,34],[2,32,2,36],[3,32,3,34],[3,35,3,36],[4,32,4,36],[5,32,5,34],[5,35,5,36],[6,32,6,36],[7,32,7,34],[7,35,7,36],[8,32,8,36],[9,32,9,34],[9,35,9,36],[10,32,10,36],[11,32,11,34],[11,35,11,36],[12,32,12,36],[13,32,13,34],[13,35,13,36],[14,32,14,36],[15,32,15,34],[15,35,15,36],[16,32,16,36],[17,32,17,34],[17,35,17,36],[18,32,18,36],[19,32,19,34],[19,35,19,36],[20,32,20,36],[27,32,27,36],[28,32,28,34],[28,35,28,36],[29,32,29,36],[21,32,21,34],[21,35,21,36],[22,32,22,36],[23,32,23,34],[23,35,23,36],[24,32,24,36],[25,32,25,34],[25,35,25,36]]}
["FLOODPLAIN MANAGEMENT\nNECH 610.29",null,null,null,null,null,null,null,null,null,null,null,null,"Client/Plan Information:",null,null,null,null,null,null,null,null,null,null,null,null,null,null,null,null,null,null,"●Clean Air Act"]
[null,null,null,null,null,null,null,null,null,null,null,null,null,{"$f":"'CPA-52'!Q1","v":0},null,null,null,null,null,null,null,null,null,null,null,null,null,null,null,null,null,null,"Guide Sheet"]
["Evaluation Procedure Guide Sheet",null,null,null,null,null,null,null,null,null,null,null,null,{"$f":"'CPA-52'!V3","v":0},null,null,null,null,null,null,null,null,null,null,null,null,null,null,null,null,null,null,"●Clean Water Act / Waters of the U.S."]
["Check all that apply to this Guide Sheet review:",null,null,null,null,null,null,null,null,null,null,null,null,{"$f":"'CPA-52'!T4","v":0},null,null,null,null,null,null,null,null,null,null,null,null,null,null,null,null,null,null,"Guide Sheet"]
[null,null,null,null,null,null,null,null,null,null,null,null,null,{"$f":"'CPA-52'!M6","v":0},null,null,null,null,null,null,null,null,null,null,null,null,null,null,null,null,null,null,"●Coastal Zone Management"]
[null,null,null,null,null,null,null,null,null,null,null,null,null,null,null,null,null,null,null,null,null,null,null,null,null,null,null,null,null,null,null,null,"Guide Sheet"]
["NOTE:  This Guide Sheet is intended for evaluation of \"non-project\" technical and financial assistance only (individual projects).  For \"project\" assistance criteria (those assisting local sponsoring organizations), consult Title 190, General Manual, Part 410, Subpart B, Section 410.25.",null,null,null,null,null,null,null,null,null,null,null,null,null,null,null,null,null,null,null,null,null,null,null,null,null,null,null,null,null,null,null,"Coral Reefs"]
[null,null,null,null,null,null,null,null,null,null,null,null,null,null,null,null,null,null,null,null,null,null,null,null,null,null,null,null,null,null,null,null,"Guide Sheet"]
[null,null,null,null,null,null,null,null,null,null,null,null,null,null,null,null,null,null,null,null,null,null,null,null,null,null,null,null,null,null,null,null,"●Cultural Resources / Historic Properties"]
[null,null,null,null,null,null,null,null,null,null,null,null,null,null,null,null,null,null,null,null,null,null,null,null,null,null,null,null,null,null,null,null,"Guide Sheet"]
["STEP 1.  ",null,null,null,null,null,null,null,null,null,null,null,null,null,null,null,null,null,null,null,null,null,null,null,null,null,null,null,null,null,null,null,"●Endangered and Threatened Species"]
["Is the project area in or near a 100-year floodplain?",null,null,null,null,null,null,null,null,null,null,null,null,null,null,null,null,null,null,null,null,null,null,null,null,null,null,null,null,null,null,null,"Guide Sheet"]
[null,null,null,null,null,null,null,null,null,null,null,null,null,null,null,null,null,null,null,null,null,null,null,null,null,null,null,null,null,null,null,null,"Environmental Justice"]
[null,null,null,"If \"No,\"  document on the NRCS-CPA-52, or notes section below, the finding, rationale, and information sources used and go to Step 4.",null,null,null,null,null,null,null,null,null,null,null,null,null,null,null,null,null,null,null,null,null,null,null,null,null,null,null,null,"Guide Sheet"]
[null,null,null,null,null,null,null,null,null,null,null,null,null,null,null,null,null,null,null,null,null,null,null,null,null,null,null,null,null,null,null,null,"●Essential Fish Habitat"]
[null,null,null,null,null,null,null,null,null,null,null,null,null,null,null,null,null,null,null,null,null,null,null,null,null,null,null,null,null,null,null,null,"Guide Sheet"]
[null,null,null,"If “Yes,”  go to Step 2. ",null,null,null,null,null,null,null,null,null,null,null,null,null,null,null,null,null,null,null,null,null,null,null,null,null,null,null,null,"Floodplain Management"]
[null,null,null,null,null,null,null,null,null,null,null,null,null,null,null,null,null,null,null,null,null,null,null,null,null,null,null,null,null,null,null,null,"Guide Sheet"]
[null,null,null,null,"If \"Unknown,\" review the HUD/FEMA flood insurance maps and other available data such as soils information relating to flood frequency.  If still \"Unknown\", contact the appropriate field or hydraulic engineer.  Repeat Step 1.",null,null,null,null,null,null,null,null,null,null,null,null,null,null,null,null,null,null,null,null,null,null,null,null,null,null,null,"Invasive Species"]
[null,null,null,null,null,null,null,null,null,null,null,null,null,null,null,null,null,null,null,null,null,null,null,null,null,null,null,null,null,null,null,null,"Guide Sheet"]
[null,null,null,null,null,null,null,null,null,null,null,null,null,null,null,null,null,null,null,null,null,null,null,null,null,null,null,null,null,null,null,null,"●Migratory Birds/Bald and Golden Eagle Protection Act "]
[null,null,null,null,null,null,null,null,null,null,null,null,null,null,null,null,null,null,null,null,null,null,null,null,null,null,null,null,null,null,null,null,"Guide Sheet"]
["STEP 2.  ",null,null,null,null,null,null,null,null,null,null,null,null,null,null,null,null,null,null,null,null,null,null,null,null,null,null,null,null,null,null,null,"Natural Areas"]
["Is the planning area in the floodplain an agricultural area that has been used to produce food, fiber, feed, forage or oilseed for at least 3 of the last 5 years before the request for assistance?",null,null,null,null,null,null,null,null,null,null,null,null,null,null,null,null,null,null,null,null,null,null,null,null,null,null,null,null,null,null,null,"Guide Sheet"]
[null,null,null,null,null,null,null,null,null,null,null,null,null,null,null,null,null,null,null,null,null,null,null,null,null,null,null,null,null,null,null,null,"Prime and Unique Farmlands"]
[null,null,null,null,null,null,null,null,null,null,null,null,null,null,null,null,null,null,null,null,null,null,null,null,null,null,null,null,null,null,null,null,"Guide Sheet"]
[null,null,null,"If \"No,\" go to Step 4."]
[null,null,null,null,null,null,null,null,null,null,null,null,null,null,null,null,null,null,null,null,null,null,null,null,null,null,null,null,null,null,null,null,"Riparian Area"]
[null,null,null,"If “Yes,” document the agricultural use history and go to Step 3.",null,null,null,null,null,null,null,null,null,null,null,null,null,null,null,null,null,null,null,null,null,null,null,null,null,null,null,null,"Guide Sheet"]
[null,null,null,null,null,null,null,null,null,null,null,null,null,null,null,null,null,null,null,null,null,null,null,null,null,null,null,null,null,null,null,null,"Scenic Beauty"]
["STEP 3.  ",null,null,null,null,null,null,null,null,null,null,null,null,null,null,null,null,null,null,null,null,null,null,null,null,null,null,null,null,null,null,null,"Guide Sheet"]
["Is the floodplain’s agricultural production in accordance with official state or designated area water quality plans?",null,null,null,null,null,null,null,null,null,null,null,null,null,null,null,null,null,null,null,null,null,null,null,null,null,null,null,null,null,null,null,"●Wetlands"]
[null,null,null,null,null,null,null,null,null,null,null,null,null,null,null,null,null,null,null,null,null,null,null,null,null,null,null,null,null,null,null,null,"Guide Sheet"]
[null,null,null,null,null,null,null,null,null,null,null,null,null,null,null,null,null,null,null,null,null,null,null,null,null,null,null,null,null,null,null,null,"●Wild and Scenic Rivers"]
[null,null,null,"If \"No,\" advise the client of conservation practices or other measures that will bring the land into accordance with water quality plans and incorporate these into the conservation plan.  Go to Step 4.",null,null,null,null,null,null,null,null,null,null,null,null,null,null,null,null,null,null,null,null,null,null,null,null,null,null,null,null,"Guide Sheet"]
[]
[]
[null,null,null,null,null,null,null,null,null,null,null,null,null,null,null,null,null,null,null,null,null,null,null,null,null,null,null,null,null,null,null,null,"Return to start of NRCS-CPA-52"]
[null,null,null,"If “Yes,” document on the NRCS-CPA-52, or notes section below, the finding, rationale, and information sources used and go to Step 4."]
[null,null,null,null,null,null,null,null,null,null,null,null,null,null,null,null,null,null,null,null,null,null,null,null,null,null,null,null,null,null,null,null,"Go to start of Form Instructions"]
[]
["STEP 4.  "]
["Over the short or long term, will the proposed action or alternative likely result in an increased flood hazard, incompatible development, or other adverse effect to the existing natural and beneficial values of the floodplain or lands adjacent or downstream?"]
[]
[]
[]
[null,null,null,"If “No,” document on the NRCS-CPA-52, or notes section below, the finding, rationale, and information sources used and proceed with planning."]
[]
[]
[null,null,null,"If “Yes,” modify the action if possible to avoid adverse effects.  Inform landuser of the hazards of locating actions in the floodplain and discuss alternative methods of achieving the objective and/or alternative locations outside the 100-year floodplain.  If the action can be modified, describe the modification on the NRCS-CPA-52 and repeat 4.  If the action cannot be modified to eliminate adverse effects, go to Step 5."]
[]
[]
[]
[]
[]
["FLOODPLAIN MANAGEMENT (continued)"]
[]
["STEP 5.  "]
["Is one or more of the alternative methods or locations practical?"]
[]
[null,null,null,"If \"No,\" the District Conservationist will carefully evaluate and document the potential extent of the adverse effects and any increased flood risk before making a determination of whether to continue providing assistance.  Document on the NRCS-CPA-52, or notes section below, the finding, rationale, and information sources used and go to Step 6."]
[]
[]
[]
[]
[null,null,null,"If “Yes,” and the client agrees to implement the alternative methods or locations outside the floodplain, document on the NRCS-CPA-52, or notes section below, the finding, rationale, and information sources used and proceed with planning."]
[]
[]
[]
[null,null,null,"If “Yes,” and the client DOES NOT AGREE to implement the alternative methods or locations, advise the client that NRCS may not continue to provide technical and/or financial assistance where there are practicable alternatives.  Document on the NRCS-CPA-52, or notes section below, the finding, rationale, and information sources used and go to  Step 6."]
[]
[]
[]
[]
[]
["STEP 6.  "]
["Will assistance continue to be provided?"]
[]
[null,null,null,"If \"No,\" provide written notification of the decision to terminate assistance to the client and the local conservation district, if one exists.   Document on the NRCS-CPA-52, or notes section below, the finding, rationale, and information sources used and proceed with planning."]
[]
[]
[]
[]
[null,null,null,"If “Yes,” the district conservationist should design or modify the proposed action or alternative to minimize the adverse effects to the extent possible.  Circulate a written public notice locally explaining why the action is proposed to be located in the 100-year floodplain.  Document on the NRCS-CPA-52, or notes section below, the finding, rationale, and information sources used and proceed with planning."]
[]
[]
[]
[]
[]
["Notes:"]

{"sheet":"InvasiveSpecies","index":13,"n_rows":45,"n_cols":33,"rows_kept":45,"cut":false,"hidden":false,"merged":[[23,35,23,36],[24,32,24,36],[25,32,25,34],[25,35,25,36],[17,3,18,22],[21,32,21,34],[21,35,21,36],[22,32,22,36],[23,32,23,34],[23,0,27,22],[27,32,27,36],[2,0,2,12],[0,0,1,12],[3,0,4,5],[1,13,1,22],[2,13,2,22],[3,13,3,22],[3,6,3,8],[4,9,4,11],[4,6,4,8],[49,23,49,25],[6,23,6,25],[35,23,35,26],[0,13,0,22],[4,13,4,22],[45,0,51,22],[42,3,43,22],[38,3,40,22],[34,0,34,2],[35,0,36,22],[32,3,32,22],[29,3,30,22],[20,3,21,11],[44,0,44,22],[6,0,8,22],[11,0,15,22],[0,32,0,36],[1,32,1,34],[2,32,2,36],[3,32,3,34],[3,35,3,36],[4,32,4,36],[5,32,5,34],[5,35,5,36],[6,32,6,36],[7,32,7,34],[7,35,7,36],[8,32,8,36],[9,32,9,34],[9,35,9,36],[10,32,10,36],[11,32,11,34],[11,35,11,36],[12,32,12,36],[13,32,13,34],[13,35,13,36],[14,32,14,36],[15,32,15,34],[15,35,15,36],[16,32,16,36],[20,32,20,36],[17,32,17,34],[17,35,17,36],[18,32,18,36],[19,32,19,34],[19,35,19,36],[31,32,31,36],[32,32,32,34],[32,35,32,36],[33,32,33,36],[34,32,34,34],[34,35,34,36],[28,32,28,34],[28,35,28,36],[29,32,29,36],[30,32,30,34],[30,35,30,36]]}
["INVASIVE SPECIES\nNECH 610.30",null,null,null,null,null,null,null,null,null,null,null,null,"Client/Plan Information:",null,null,null,null,null,null,null,null,null,null,null,null,null,null,null,null,null,null,"●Clean Air Act"]
[null,null,null,null,null,null,null,null,null,null,null,null,null,{"$f":"'CPA-52'!Q1","v":0},null,null,null,null,null,null,null,null,null,null,null,null,null,null,null,null,null,null,"Guide Sheet"]
["Evaluation Procedure Guide Sheet",null,null,null,null,null,null,null,null,null,null,null,null,{"$f":"'CPA-52'!V3","v":0},null,null,null,null,null,null,null,null,null,null,null,null,null,null,null,null,null,null,"●Clean Water Act / Waters of the U.S."]
["Check all that apply to this Guide Sheet review:",null,null,null,null,null,null,null,null,null,null,null,null,{"$f":"'CPA-52'!T4","v":0},null,null,null,null,null,null,null,null,null,null,null,null,null,null,null,null,null,null,"Guide Sheet"]
[null,null,null,null,null,null,null,null,null,null,null,null,null,{"$f":"'CPA-52'!M6","v":0},null,null,null,null,null,null,null,null,null,null,null,null,null,null,null,null,null,null,"●Coastal Zone Management"]
[null,null,null,null,null,null,null,null,null,null,null,null,null,null,null,null,null,null,null,null,null,null,null,null,null,null,null,null,null,null,null,null,"Guide Sheet"]
["NOTE:  Executive Order 13112  states that “a Federal agency shall not authorize, fund, or carry out actions that it believes are likely to cause or promote the introduction and spread of invasive species in the U.S. or elsewhere.\"  Remember that invasive species can include plants, fish, animals, insects, etc. ",null,null,null,null,null,null,null,null,null,null,null,null,null,null,null,null,null,null,null,null,null,null,null,null,null,null,null,null,null,null,null,"Coral Reefs"]
[null,null,null,null,null,null,null,null,null,null,null,null,null,null,null,null,null,null,null,null,null,null,null,null,null,null,null,null,null,null,null,null,"Guide Sheet"]
[null,null,null,null,null,null,null,null,null,null,null,null,null,null,null,null,null,null,null,null,null,null,null,null,null,null,null,null,null,null,null,null,"●Cultural Resources / Historic Properties"]
[null,null,null,null,null,null,null,null,null,null,null,null,null,null,null,null,null,null,null,null,null,null,null,null,null,null,null,null,null,null,null,null,"Guide Sheet"]
["STEP 1.  ",null,null,null,null,null,null,null,null,null,null,null,null,null,null,null,null,null,null,null,null,null,null,null,null,null,null,null,null,null,null,null,"●Endangered and Threatened Species"]
["Is the action(s) in an area where invasive species are known to occur or where risk of an invasion exists?  \nNOTE: Executive Order 13112 (1999) directs Federal agencies to \"prevent the introduction of invasive species, provide for their control, and to minimize the economic, ecological, and human health impacts that invasive species cause.\"",null,null,null,null,null,null,null,null,null,null,null,null,null,null,null,null,null,null,null,null,null,null,null,null,null,null,null,null,null,null,null,"Guide Sheet"]
[null,null,null,null,null,null,null,null,null,null,null,null,null,null,null,null,null,null,null,null,null,null,null,null,null,null,null,null,null,null,null,null,"Environmental Justice"]
[null,null,null,null,null,null,null,null,null,null,null,null,null,null,null,null,null,null,null,null,null,null,null,null,null,null,null,null,null,null,null,null,"Guide Sheet"]
[null,null,null,null,null,null,null,null,null,null,null,null,null,null,null,null,null,null,null,null,null,null,null,null,null,null,null,null,null,null,null,null,"●Essential Fish Habitat"]
[null,null,null,null,null,null,null,null,null,null,null,null,null,null,null,null,null,null,null,null,null,null,null,null,null,null,null,null,null,null,null,null,"Guide Sheet"]
[null,null,null,null,null,null,null,null,null,null,null,null,null,null,null,null,null,null,null,null,null,null,null,null,null,null,null,null,null,null,null,null,"Floodplain Management"]
[null,null,null,"If \"No,\" document on the NRCS-CPA-52, or notes section below, the finding, rationale, and information sources used and proceed with planning.",null,null,null,null,null,null,null,null,null,null,null,null,null,null,null,null,null,null,null,null,null,null,null,null,null,null,null,null,"Guide Sheet"]
[null,null,null,null,null,null,null,null,null,null,null,null,null,null,null,null,null,null,null,null,null,null,null,null,null,null,null,null,null,null,null,null,"Invasive Species"]
[null,null,null,null,null,null,null,null,null,null,null,null,null,null,null,null,null,null,null,null,null,null,null,null,null,null,null,null,null,null,null,null,"Guide Sheet"]
[null,null,null,"If “Yes,”  go to Step 2. ",null,null,null,null,null,null,null,null,null,null,null,null,null,null,null,null,null,null,null,null,null,null,null,null,null,null,null,null,"●Migratory Birds/Bald and Golden Eagle Protection Act "]
[null,null,null,null,null,null,null,null,null,null,null,null,null,null,null,null,null,null,null,null,null,null,null,null,null,null,null,null,null,null,null,null,"Guide Sheet"]
["STEP 2.  ",null,null,null,null,null,null,null,null,null,null,null,null,null,null,null,null,null,null,null,null,null,null,null,null,null,null,null,null,null,null,null,"Natural Areas"]
["Conduct an inventory of the invasive species and identify areas at risk for future invasions (Title 190, General Manual, Part 414, Subpart D, Section 414.30).    Delineate these areas on the conservation plan map and document management considerations in the plan or assistance notes.  Have all appropriate tools, techniques, management strategies, and risks for invasive species prevention, control, and management been considered in the planning process?",null,null,null,null,null,null,null,null,null,null,null,null,null,null,null,null,null,null,null,null,null,null,null,null,null,null,null,null,null,null,null,"Guide Sheet"]
[null,null,null,null,null,null,null,null,null,null,null,null,null,null,null,null,null,null,null,null,null,null,null,null,null,null,null,null,null,null,null,null,"Prime and Unique Farmlands"]
[null,null,null,null,null,null,null,null,null,null,null,null,null,null,null,null,null,null,null,null,null,null,null,null,null,null,null,null,null,null,null,null,"Guide Sheet"]
[]
[null,null,null,null,null,null,null,null,null,null,null,null,null,null,null,null,null,null,null,null,null,null,null,null,null,null,null,null,null,null,null,null,"Riparian Area"]
[null,null,null,null,null,null,null,null,null,null,null,null,null,null,null,null,null,null,null,null,null,null,null,null,null,null,null,null,null,null,null,null,"Guide Sheet"]
[null,null,null,"If \"No,\" you must consider and include all appropriate factors relating to the existing and potential invasive species for the planning area and repeat Step 2.",null,null,null,null,null,null,null,null,null,null,null,null,null,null,null,null,null,null,null,null,null,null,null,null,null,null,null,null,"Scenic Beauty"]
[null,null,null,null,null,null,null,null,null,null,null,null,null,null,null,null,null,null,null,null,null,null,null,null,null,null,null,null,null,null,null,null,"Guide Sheet"]
[null,null,null,null,null,null,null,null,null,null,null,null,null,null,null,null,null,null,null,null,null,null,null,null,null,null,null,null,null,null,null,null,"●Wetlands"]
[null,null,null,"If “Yes,” describe strategies, techniques, and reasons on NRCS-CPA-52 and go to Step 3.",null,null,null,null,null,null,null,null,null,null,null,null,null,null,null,null,null,null,null,null,null,null,null,null,null,null,null,null,"Guide Sheet"]
[null,null,null,null,null,null,null,null,null,null,null,null,null,null,null,null,null,null,null,null,null,null,null,null,null,null,null,null,null,null,null,null,"●Wild and Scenic Rivers"]
["STEP 3.  ",null,null,null,null,null,null,null,null,null,null,null,null,null,null,null,null,null,null,null,null,null,null,null,null,null,null,null,null,null,null,null,"Guide Sheet"]
["Is the action(s) consistent with the Executive Order 13112, the national invasive species management plan, and any applicable State or local invasive species management plan?  ",null,null,null,null,null,null,null,null,null,null,null,null,null,null,null,null,null,null,null,null,null,null,"Invasive species"]
[]
[null,null,null,null,null,null,null,null,null,null,null,null,null,null,null,null,null,null,null,null,null,null,null,null,null,null,null,null,null,null,null,null,"Return to start of NRCS-CPA-52"]
[null,null,null,"If \"No,\" modify the action and repeat Step 3.   If the client is unwilling to modify the proposed action, NRCS must discontinue assistance.  Document the circumstances on the NRCS-CPA-52, or notes section below, and in the case file.  "]
[null,null,null,null,null,null,null,null,null,null,null,null,null,null,null,null,null,null,null,null,null,null,null,null,null,null,null,null,null,null,null,null,"Go to start of Form Instructions"]
[]
[]
[null,null,null,"If “Yes,”  document on the NRCS-CPA-52, or notes section below, the finding, rationale, and information sources used and proceed with planning."]
[]
["Notes:"]

{"sheet":"MigratoryBirds&Eagles","index":14,"n_rows":106,"n_cols":33,"rows_kept":106,"cut":false,"hidden":false,"merged":[[2,0,2,12],[2,13,2,22],[2,32,2,36],[0,0,1,12],[0,13,0,22],[0,32,0,36],[1,13,1,22],[1,32,1,34],[3,0,4,5],[3,6,3,8],[3,13,3,22],[3,32,3,34],[3,35,3,36],[4,6,4,8],[4,9,4,11],[4,13,4,22],[4,32,4,36],[5,32,5,34],[5,35,5,36],[6,0,9,22],[6,23,6,25],[6,32,6,36],[7,32,7,34],[7,35,7,36],[8,32,8,36],[9,32,9,34],[9,35,9,36],[10,0,10,22],[10,32,10,36],[11,0,14,22],[11,32,11,34],[11,35,11,36],[12,23,13,26],[12,32,12,36],[13,32,13,34],[13,35,13,36],[14,32,14,36],[15,32,15,34],[15,35,15,36],[16,0,19,22],[16,23,16,25],[16,32,16,36],[17,32,17,34],[17,35,17,36],[18,32,18,36],[19,32,19,34],[19,35,19,36],[24,32,24,36],[25,3,26,11],[25,32,25,34],[25,35,25,36],[27,32,27,36],[20,32,20,36],[21,3,23,22],[21,32,21,34],[21,35,21,36],[22,32,22,36],[23,32,23,34],[23,35,23,36],[28,0,29,22],[28,32,28,34],[28,35,28,36],[29,32,29,36],[33,32,33,36],[30,32,30,34],[30,35,30,36],[31,3,32,22],[31,32,31,36],[32,32,32,34],[32,35,32,36],[34,3,35,22],[34,32,34,34],[34,35,34,36],[37,0,37,2],[64,4,65,22],[55,3,56,22],[58,3,62,22],[52,0,53,22],[46,2,48,21],[49,0,49,22],[49,23,49,25],[51,0,51,2],[38,0,42,22],[44,2,44,21],[66,0,66,22],[67,0,69,22],[100,3,103,22],[101,23,101,25],[71,0,71,22],[73,0,80,22],[105,0,105,22],[106,0,108,22],[76,23,76,27],[80,23,80,25],[82,3,83,22],[85,3,85,22],[92,3,98,22],[88,0,90,22]]}
["MIGRATORY BIRDS,  BALD AND GOLDEN EAGLE PROTECTION ACT,  NECH 610.31",null,null,null,null,null,null,null,null,null,null,null,null,"Client/Plan Information:",null,null,null,null,null,null,null,null,null,null,null,null,null,null,null,null,null,null,"●Clean Air Act"]
[null,null,null,null,null,null,null,null,null,null,null,null,null,{"$f":"'CPA-52'!Q1","v":0},null,null,null,null,null,null,null,null,null,null,null,null,null,null,null,null,null,null,"Guide Sheet"]
["Evaluation Procedure Guide Sheet",null,null,null,null,null,null,null,null,null,null,null,null,{"$f":"'CPA-52'!V3","v":0},null,null,null,null,null,null,null,null,null,null,null,null,null,null,null,null,null,null,"●Clean Water Act / Waters of the U.S."]
["Check all that apply to this Guide Sheet review:",null,null,null,null,null,null,null,null,null,null,null,null,{"$f":"'CPA-52'!T4","v":0},null,null,null,null,null,null,null,null,null,null,null,null,null,null,null,null,null,null,"Guide Sheet"]
[null,null,null,null,null,null,null,null,null,null,null,null,null,{"$f":"'CPA-52'!M6","v":0},null,null,null,null,null,null,null,null,null,null,null,null,null,null,null,null,null,null,"●Coastal Zone Management"]
[null,null,null,null,null,null,null,null,null,null,null,null,null,null,null,null,null,null,null,null,null,null,null,null,null,null,null,null,null,null,null,null,"Guide Sheet"]
["NOTE:  This guide sheet includes evaluation guidance for compliance with the Migratory Bird Treaty Act, Executive Order 13186 (2001), and the Bald and Golden Eagle Protection Act.  Both sections must be completed if eagles are identified within the area of potential effect.",null,null,null,null,null,null,null,null,null,null,null,null,null,null,null,null,null,null,null,null,null,null,"Return to NRCS-CPA-52",null,null,null,null,null,null,null,null,"Coral Reefs"]
[null,null,null,null,null,null,null,null,null,null,null,null,null,null,null,null,null,null,null,null,null,null,null,null,null,null,null,null,null,null,null,null,"Guide Sheet"]
[null,null,null,null,null,null,null,null,null,null,null,null,null,null,null,null,null,null,null,null,null,null,null,null,null,null,null,null,null,null,null,null,"●Cultural Resources / Historic Properties"]
[null,null,null,null,null,null,null,null,null,null,null,null,null,null,null,null,null,null,null,null,null,null,null,null,null,null,null,null,null,null,null,null,"Guide Sheet"]
["SECTION I:  MIGRATORY BIRD TREATY ACT & E.O 13186",null,null,null,null,null,null,null,null,null,null,null,null,null,null,null,null,null,null,null,null,null,null,null,null,null,null,null,null,null,null,null,"●Endangered and Threatened Species"]
["In the lower 48 states, all wild birds except introduced species (House Sparrow, Rock Pigeon, European Starling, Eurasian Collared-dove) and resident game birds managed by State Wildlife Agencies are protected under the MBTA. ",null,null,null,null,null,null,null,null,null,null,null,null,null,null,null,null,null,null,null,null,null,null,null,null,null,null,null,null,null,null,null,"Guide Sheet"]
[null,null,null,null,null,null,null,null,null,null,null,null,null,null,null,null,null,null,null,null,null,null,null,"Migratory Bird Treaty Act, Bald and Golden Eagle Protection Act",null,null,null,null,null,null,null,null,"Environmental Justice"]
[null,null,null,null,null,null,null,null,null,null,null,null,null,null,null,null,null,null,null,null,null,null,null,null,null,null,null,null,null,null,null,null,"Guide Sheet"]
[null,null,null,null,null,null,null,null,null,null,null,null,null,null,null,null,null,null,null,null,null,null,null,null,null,null,null,null,null,null,null,null,"●Essential Fish Habitat"]
["STEP 1.  ",null,null,null,null,null,null,null,null,null,null,null,null,null,null,null,null,null,null,null,null,null,null,null,null,null,null,null,null,null,null,null,"Guide Sheet"]
["Could the action(s) result in a take (intentionally or unintentionally) to any migratory bird, occupied nest or egg?  The term \"take\" means to pursue, hunt, shoot, wound, kill, trap, capture, or collect, or attempt to pursue, hunt, shoot, wound, kill, trap, capture, or collect (50 CFR Section 10.12).  \n",null,null,null,null,null,null,null,null,null,null,null,null,null,null,null,null,null,null,null,null,null,null,"Permits",null,null,null,null,null,null,null,null,"Floodplain Management"]
[null,null,null,null,null,null,null,null,null,null,null,null,null,null,null,null,null,null,null,null,null,null,null,null,null,null,null,null,null,null,null,null,"Guide Sheet"]
[null,null,null,null,null,null,null,null,null,null,null,null,null,null,null,null,null,null,null,null,null,null,null,null,null,null,null,null,null,null,null,null,"Invasive Species"]
[null,null,null,null,null,null,null,null,null,null,null,null,null,null,null,null,null,null,null,null,null,null,null,null,null,null,null,null,null,null,null,null,"Guide Sheet"]
[null,null,null,null,null,null,null,null,null,null,null,null,null,null,null,null,null,null,null,null,null,null,null,null,null,null,null,null,null,null,null,null,"●Migratory Birds/Bald and Golden Eagle Protection Act "]
[null,null,null,"If \"No,\" document on the NRCS-CPA-52, or notes section below, the finding, rationale, and information sources used and proceed with planning. Go to Section II.",null,null,null,null,null,null,null,null,null,null,null,null,null,null,null,null,null,null,null,null,null,null,null,null,null,null,null,null,"Guide Sheet"]
[null,null,null,null,null,null,null,null,null,null,null,null,null,null,null,null,null,null,null,null,null,null,null,null,null,null,null,null,null,null,null,null,"Natural Areas"]
[null,null,null,null,null,null,null,null,null,null,null,null,null,null,null,null,null,null,null,null,null,null,null,null,null,null,null,null,null,null,null,null,"Guide Sheet"]
[null,null,null,null,null,null,null,null,null,null,null,null,null,null,null,null,null,null,null,null,null,null,null,null,null,null,null,null,null,null,null,null,"Prime and Unique Farmlands"]
[null,null,null,"If “Yes,”  go to Step 2. ",null,null,null,null,null,null,null,null,null,null,null,null,null,null,null,null,null,null,null,null,null,null,null,null,null,null,null,null,"Guide Sheet"]
[]
["STEP 2.  ",null,null,null,null,null,null,null,null,null,null,null,null,null,null,null,null,null,null,null,null,null,null,null,null,null,null,null,null,null,null,null,"Riparian Area"]
["Have adverse effects on migratory birds been mitigated (avoided, reduced, or minimized) to the maximum practicable extent?",null,null,null,null,null,null,null,null,null,null,null,null,null,null,null,null,null,null,null,null,null,null,null,null,null,null,null,null,null,null,null,"Guide Sheet"]
[null,null,null,null,null,null,null,null,null,null,null,null,null,null,null,null,null,null,null,null,null,null,null,null,null,null,null,null,null,null,null,null,"Scenic Beauty"]
[null,null,null,null,null,null,null,null,null,null,null,null,null,null,null,null,null,null,null,null,null,null,null,null,null,null,null,null,null,null,null,null,"Guide Sheet"]
[null,null,null,"If \"No,\" modify the action and repeat Step 1.  ",null,null,null,null,null,null,null,null,null,null,null,null,null,null,null,null,null,null,null,null,null,null,null,null,null,null,null,null,"●Wetlands"]
[null,null,null,null,null,null,null,null,null,null,null,null,null,null,null,null,null,null,null,null,null,null,null,null,null,null,null,null,null,null,null,null,"Guide Sheet"]
[null,null,null,null,null,null,null,null,null,null,null,null,null,null,null,null,null,null,null,null,null,null,null,null,null,null,null,null,null,null,null,null,"●Wild and Scenic Rivers"]
[null,null,null,"If “Yes,” document mitigation measures on the NRCS-CPA-52, or notes section below, and in the plan.  Go to Step 3.",null,null,null,null,null,null,null,null,null,null,null,null,null,null,null,null,null,null,null,null,null,null,null,null,null,null,null,null,"Guide Sheet"]
[]
[]
["STEP 3.  ",null,null,null,null,null,null,null,null,null,null,null,null,null,null,null,null,null,null,null,null,null,null,null,null,null,null,null,null,null,null,null,"Return to start of NRCS-CPA-52"]
["Is it the purpose of the action(s) to intentionally \"take\" a migratory bird or any part, nest or egg (such as, but not limited to: controlling depredation by a migratory bird, or removal of occupied nests of nuisance migratory birds)? \n NOTE:  Migratory game birds taken under state and Federal hunting regulations are exempt. "]
[null,null,null,null,null,null,null,null,null,null,null,null,null,null,null,null,null,null,null,null,null,null,null,null,null,null,null,null,null,null,null,null,"Go to start of Form Instructions"]
[]
[]
[]
[]
[null,null,"If \"No,\" go to Step 4."]
[]
[null,null,"If “Yes,” document the effects, including the reasons, on the NRCS-CPA-52, or notes section below.  Inform the client that they must obtain all required permits before the action is implemented."]
[]
[]
["MIGRATORY BIRDS TREATY ACT /  BALD AND GOLDEN EAGLE PROTECTION ACT (continued)"]
[]
["STEP 4.  "]
["Will unintentional take of migratory birds result in a measurable negative effect on a migratory bird species' population?"]
[]
[]
[null,null,null,"If \"No,\" document on the NRCS-CPA-52, or notes section below, the finding, rationale, and information sources used and go to Section II. "]
[]
[]
[null,null,null,"If “Yes,”  additional principles, standards and practices shall be developed in coordination with USFWS to further lessen the amount of unintentional take (E.O. 13186(3)(e)(9)). Repeat Step 1. Document the effects, including the reasons, on the NRCS-CPA-52, or notes section below."]
[]
[]
[]
[]
[]
[]
[]
["Notes:"]
[]
[]
[]
[]
["SECTION II:  BALD & GOLDEN EAGLE PROTECTION ACT"]
["STEP 1.  "]
["Will the action(s) result in the take, possession, sale, purchase, barter, or offer to sell, purchase, or barter, export or import \"of any bald or golden eagle, alive or dead, including any part, nest, or egg, unless allowed by permit”? (The term \"take\" is defined as \"pursue, shoot, shoot at, poison, wound, kill, capture, trap, collect, molest or disturb\" a bald or golden eagle.  The term \"disturb\" under this act means to agitate or bother a bald or golden eagle to a degree that causes, or is likely to cause, based on the best scientific information available, injury to an eagle; a decrease in its productivity by substantially interfering with normal breeding, feeding, or sheltering behavior; or nest abandonment by substantially interfering with normal breeding, feeding, or sheltering behavior.)"]
[]
[]
[null,null,null,null,null,null,null,null,null,null,null,null,null,null,null,null,null,null,null,null,null,null,null,"National Bald Eagle Management Guidelines"]
[]
[]
[]
[null,null,null,null,null,null,null,null,null,null,null,null,null,null,null,null,null,null,null,null,null,null,null,"Permits"]
[]
[null,null,null,"If \"No,\" document on the NRCS-CPA-52, or notes section below, the finding, rationale, and information sources used and proceed with planning."]
[]
[]
[null,null,null,"If “Yes,” go to Step 2. "]
[]
["STEP 2.  "]
["Can the action(s) be modified to avoid the adverse effect?  Refer to the National Bald Eagle Management Guidelines for measures that can be taken to avoid disturbing nesting bald eagles and their young."]
[]
[]
[]
[null,null,null,"If \"No,\" document the finding, including the reasons, on the NRCS-CPA-52, or notes section below.  Contact the NRCS State Biologist or appropriate NRCS official about working with the client and USFWS to permit the action or finding another alternative action to avoid adverse effects prior to providing final designs or implementing the proposed action or alternative.  No permit authorizes the sale, purchase, barter, trade, importation, or exportation of eagles, or their parts or feathers.  The regulations governing eagle permits can be found in 50 CFR Part 22."]
[]
[]
[]
[]
[]
[]
[]
[null,null,null,"If “Yes,” modify the alternative and repeat Step 1.  If the client is unwilling to modify the action then NRCS may need to discontinue assistance.  Contact the NRCS State environmental specialist or wildlife biologist for assistance.  Document the effects, including the reasons, on the NRCS-CPA-52, or notes section below."]
[]
[]
[]
[]
["Notes:"]

{"sheet":"NaturalAreas","index":15,"n_rows":41,"n_cols":33,"rows_kept":41,"cut":false,"hidden":false,"merged":[[6,23,6,25],[10,32,10,36],[11,32,11,34],[11,35,11,36],[12,32,12,36],[9,32,9,34],[9,35,9,36],[40,0,40,22],[41,0,46,22],[20,0,20,22],[22,3,23,22],[27,0,27,2],[31,3,35,22],[37,3,38,22],[28,0,29,22],[0,0,1,12],[0,13,0,22],[1,13,1,22],[2,0,2,12],[2,13,2,22],[3,0,4,5],[3,6,3,8],[3,13,3,22],[4,6,4,8],[4,9,4,11],[4,13,4,22],[6,0,9,22],[12,0,12,22],[14,3,15,22],[17,3,17,22],[0,32,0,36],[1,32,1,34],[2,32,2,36],[3,32,3,34],[3,35,3,36],[4,32,4,36],[5,32,5,34],[5,35,5,36],[6,32,6,36],[7,32,7,34],[7,35,7,36],[8,32,8,36],[13,32,13,34],[13,35,13,36],[14,32,14,36],[15,32,15,34],[15,35,15,36],[16,32,16,36],[17,32,17,34],[17,35,17,36],[18,32,18,36],[19,32,19,34],[19,35,19,36],[20,32,20,36],[21,32,21,34],[21,35,21,36],[22,32,22,36],[23,32,23,34],[23,35,23,36],[24,32,24,36],[27,32,27,36],[28,32,28,34],[28,35,28,36],[25,32,25,34],[25,35,25,36],[33,32,33,36],[34,32,34,34],[34,35,34,36],[29,32,29,36],[30,32,30,34],[30,35,30,36],[31,32,31,36],[32,32,32,34],[32,35,32,36]]}
["NATURAL AREAS\nNECH 610.32",null,null,null,null,null,null,null,null,null,null,null,null,"Client/Plan Information:",null,null,null,null,null,null,null,null,null,null,null,null,null,null,null,null,null,null,"●Clean Air Act"]
[null,null,null,null,null,null,null,null,null,null,null,null,null,{"$f":"'CPA-52'!Q1","v":0},null,null,null,null,null,null,null,null,null,null,null,null,null,null,null,null,null,null,"Guide Sheet"]
["Evaluation Procedure Guide Sheet",null,null,null,null,null,null,null,null,null,null,null,null,{"$f":"'CPA-52'!V3","v":0},null,null,null,null,null,null,null,null,null,null,null,null,null,null,null,null,null,null,"●Clean Water Act / Waters of the U.S."]
["Check all that apply to this Guide Sheet review:",null,null,null,null,null,"Alternative 1",null,null,null,null,null,null,{"$f":"'CPA-52'!T4","v":0},null,null,null,null,null,null,null,null,null,null,null,null,null,null,null,null,null,null,"Guide Sheet"]
[null,null,null,null,null,null,"Alternative 2",null,null,"Other",null,null,null,{"$f":"'CPA-52'!M6","v":0},null,null,null,null,null,null,null,null,null,null,null,null,null,null,null,null,null,null,"●Coastal Zone Management"]
[null,null,null,null,null,null,null,null,null,null,null,null,null,null,null,null,null,null,null,null,null,null,null,null,null,null,null,null,null,null,null,null,"Guide Sheet"]
["Natural Areas are defined as land and water units where natural conditions are maintained.  They may be areas designated on Federal government, non-federal government, or on private land.  Designation may be provided under Federal regulations, by foundations or conservation organizations, or by private landowners that specify it as such (GM 190. Part 410.23).",null,null,null,null,null,null,null,null,null,null,null,null,null,null,null,null,null,null,null,null,null,null,null,null,null,null,null,null,null,null,null,"Coral Reefs"]
[null,null,null,null,null,null,null,null,null,null,null,null,null,null,null,null,null,null,null,null,null,null,null,null,null,null,null,null,null,null,null,null,"Guide Sheet"]
[null,null,null,null,null,null,null,null,null,null,null,null,null,null,null,null,null,null,null,null,null,null,null,null,null,null,null,null,null,null,null,null,"●Cultural Resources / Historic Properties"]
[null,null,null,null,null,null,null,null,null,null,null,null,null,null,null,null,null,null,null,null,null,null,null,null,null,null,null,null,null,null,null,null,"Guide Sheet"]
[null,null,null,null,null,null,null,null,null,null,null,null,null,null,null,null,null,null,null,null,null,null,null,null,null,null,null,null,null,null,null,null,"●Endangered and Threatened Species"]
["STEP 1.  ",null,null,null,null,null,null,null,null,null,null,null,null,null,null,null,null,null,null,null,null,null,null,null,null,null,null,null,null,null,null,null,"Guide Sheet"]
["Are there any designated natural areas present in or near the planning area?",null,null,null,null,null,null,null,null,null,null,null,null,null,null,null,null,null,null,null,null,null,null,null,null,null,null,null,null,null,null,null,"Environmental Justice"]
[null,null,null,null,null,null,null,null,null,null,null,null,null,null,null,null,null,null,null,null,null,null,null,null,null,null,null,null,null,null,null,null,"Guide Sheet"]
[null,null,null,"If \"No, \"document on the NRCS-CPA-52, or notes section below, the finding, rationale, and information sources used and proceed with planning.",null,null,null,null,null,null,null,null,null,null,null,null,null,null,null,null,null,null,null,null,null,null,null,null,null,null,null,null,"●Essential Fish Habitat"]
[null,null,null,null,null,null,null,null,null,null,null,null,null,null,null,null,null,null,null,null,null,null,null,null,null,null,null,null,null,null,null,null,"Guide Sheet"]
[null,null,null,null,null,null,null,null,null,null,null,null,null,null,null,null,null,null,null,null,null,null,null,null,null,null,null,null,null,null,null,null,"Floodplain Management"]
[null,null,null,"If “Yes,”  go to Step 2. ",null,null,null,null,null,null,null,null,null,null,null,null,null,null,null,null,null,null,null,null,null,null,null,null,null,null,null,null,"Guide Sheet"]
[null,null,null,null,null,null,null,null,null,null,null,null,null,null,null,null,null,null,null,null,null,null,null,null,null,null,null,null,null,null,null,null,"Invasive Species"]
["STEP 2.  ",null,null,null,null,null,null,null,null,null,null,null,null,null,null,null,null,null,null,null,null,null,null,null,null,null,null,null,null,null,null,null,"Guide Sheet"]
["Will the action(s) affect the natural area?",null,null,null,null,null,null,null,null,null,null,null,null,null,null,null,null,null,null,null,null,null,null,null,null,null,null,null,null,null,null,null,"●Migratory Birds/Bald and Golden Eagle Protection Act "]
[null,null,null,null,null,null,null,null,null,null,null,null,null,null,null,null,null,null,null,null,null,null,null,null,null,null,null,null,null,null,null,null,"Guide Sheet"]
[null,null,null,"If \"No,\" document on the NRCS-CPA-52, or notes section below, the finding, rationale, and information sources used and proceed with planning.",null,null,null,null,null,null,null,null,null,null,null,null,null,null,null,null,null,null,null,null,null,null,null,null,null,null,null,null,"Natural Areas"]
[null,null,null,null,null,null,null,null,null,null,null,null,null,null,null,null,null,null,null,null,null,null,null,null,null,null,null,null,null,null,null,null,"Guide Sheet"]
[null,null,null,null,null,null,null,null,null,null,null,null,null,null,null,null,null,null,null,null,null,null,null,null,null,null,null,null,null,null,null,null,"Prime and Unique Farmlands"]
[null,null,null,"If “Yes,”  go to Step 3.",null,null,null,null,null,null,null,null,null,null,null,null,null,null,null,null,null,null,null,null,null,null,null,null,null,null,null,null,"Guide Sheet"]
[]
["STEP 3.  ",null,null,null,null,null,null,null,null,null,null,null,null,null,null,null,null,null,null,null,null,null,null,null,null,null,null,null,null,null,null,null,"Riparian Area"]
["Are the effects consistent with maintaining, protecting, and preserving the integrity of the natural characteristics?",null,null,null,null,null,null,null,null,null,null,null,null,null,null,null,null,null,null,null,null,null,null,null,null,null,null,null,null,null,null,null,"Guide Sheet"]
[null,null,null,null,null,null,null,null,null,null,null,null,null,null,null,null,null,null,null,null,null,null,null,null,null,null,null,null,null,null,null,null,"Scenic Beauty"]
[null,null,null,null,null,null,null,null,null,null,null,null,null,null,null,null,null,null,null,null,null,null,null,null,null,null,null,null,null,null,null,null,"Guide Sheet"]
[null,null,null,"If \"No,\" Inform the client about the effects of the proposed action or alternatives on the identified natural areas.  You must also encourage the client to consult with concerned parties to arrive at a mutually satisfactory alternative [GM 190, Part 410.23(c)4].  Document the effects of the action and any communications with the client on the NRCS-CPA-52, or notes section below, and proceed with planning.",null,null,null,null,null,null,null,null,null,null,null,null,null,null,null,null,null,null,null,null,null,null,null,null,null,null,null,null,"●Wetlands"]
[null,null,null,null,null,null,null,null,null,null,null,null,null,null,null,null,null,null,null,null,null,null,null,null,null,null,null,null,null,null,null,null,"Guide Sheet"]
[null,null,null,null,null,null,null,null,null,null,null,null,null,null,null,null,null,null,null,null,null,null,null,null,null,null,null,null,null,null,null,null,"●Wild and Scenic Rivers"]
[null,null,null,null,null,null,null,null,null,null,null,null,null,null,null,null,null,null,null,null,null,null,null,null,null,null,null,null,null,null,null,null,"Guide Sheet"]
[]
[]
[null,null,null,"If “Yes,” document on the NRCS-CPA-52, or notes section below, the finding, rationale, and information sources used and proceed with planning.",null,null,null,null,null,null,null,null,null,null,null,null,null,null,null,null,null,null,null,null,null,null,null,null,null,null,null,null,"Return to start of NRCS-CPA-52"]
[]
[null,null,null,null,null,null,null,null,null,null,null,null,null,null,null,null,null,null,null,null,null,null,null,null,null,null,null,null,null,null,null,null,"Go to start of Form Instructions"]
["Notes:"]

{"sheet":"PrimeUniqueFarmlands","index":16,"n_rows":40,"n_cols":33,"rows_kept":40,"cut":false,"hidden":false,"merged":[[3,13,3,22],[3,6,3,8],[4,6,4,8],[4,9,4,11],[0,13,0,22],[4,13,4,22],[2,0,2,12],[0,0,1,12],[3,0,4,5],[1,13,1,22],[2,13,2,22],[44,23,44,25],[5,23,5,25],[8,23,8,27],[38,0,38,22],[39,0,45,22],[28,0,28,2],[29,0,29,22],[7,0,12,22],[14,3,15,22],[20,0,21,22],[23,3,24,22],[17,3,17,22],[34,3,36,22],[31,3,32,22],[0,32,0,36],[1,32,1,34],[2,32,2,36],[3,32,3,34],[3,35,3,36],[4,32,4,36],[5,32,5,34],[5,35,5,36],[6,32,6,36],[7,32,7,34],[7,35,7,36],[8,32,8,36],[9,32,9,34],[9,35,9,36],[10,32,10,36],[11,32,11,34],[11,35,11,36],[12,32,12,36],[13,32,13,34],[13,35,13,36],[14,32,14,36],[15,32,15,34],[15,35,15,36],[16,32,16,36],[17,32,17,34],[17,35,17,36],[18,32,18,36],[19,32,19,34],[19,35,19,36],[20,32,20,36],[21,32,21,34],[21,35,21,36],[22,32,22,36],[23,32,23,34],[23,35,23,36],[24,32,24,36],[25,32,25,34],[25,35,25,36],[27,32,27,36],[28,32,28,34],[28,35,28,36],[33,32,33,36],[34,32,34,34],[34,35,34,36],[29,32,29,36],[30,32,30,34],[30,35,30,36],[31,32,31,36],[32,32,32,34],[32,35,32,36]]}
["PRIME AND UNIQUE FARMLANDS\nNECH 610.33",null,null,null,null,null,null,null,null,null,null,null,null,"Client/Plan Information:",null,null,null,null,null,null,null,null,null,null,null,null,null,null,null,null,null,null,"●Clean Air Act"]
[null,null,null,null,null,null,null,null,null,null,null,null,null,{"$f":"'CPA-52'!Q1","v":0},null,null,null,null,null,null,null,null,null,null,null,null,null,null,null,null,null,null,"Guide Sheet"]
["Evaluation Procedure Guide Sheet",null,null,null,null,null,null,null,null,null,null,null,null,{"$f":"'CPA-52'!V3","v":0},null,null,null,null,null,null,null,null,null,null,null,null,null,null,null,null,null,null,"●Clean Water Act / Waters of the U.S."]
["Check all that apply to this Guide Sheet review:",null,null,null,null,null,null,null,null,null,null,null,null,{"$f":"'CPA-52'!T4","v":0},null,null,null,null,null,null,null,null,null,null,null,null,null,null,null,null,null,null,"Guide Sheet"]
[null,null,null,null,null,null,null,null,null,null,null,null,null,{"$f":"'CPA-52'!M6","v":0},null,null,null,null,null,null,null,null,null,null,null,null,null,null,null,null,null,null,"●Coastal Zone Management"]
[null,null,null,null,null,null,null,null,null,null,null,null,null,null,null,null,null,null,null,null,null,null,null,null,null,null,null,null,null,null,null,null,"Guide Sheet"]
["STEP 1.  ",null,null,null,null,null,null,null,null,null,null,null,null,null,null,null,null,null,null,null,null,null,null,null,null,null,null,null,null,null,null,null,"Coral Reefs"]
["Using the criteria found in the FPPA Rule (7 CFR Part 658.5), does the action(s) convert farmland to a nonagricultural use?  NOTE:  Conversion does not include construction of on-farm structures necessary for farm operations.  Also, form AD-1006 entitled \"Farmland Conversion Impact Rating\" and form NRCS-CPA-106 entitled \"Farmland Conversion Impact Rating for Corridor Type Projects\" are used to document effects of proposed projects that may convert farmland.  If you are uncertain about the effects on prime and unique farmlands in your planning area, consult the State Soil Scientist.",null,null,null,null,null,null,null,null,null,null,null,null,null,null,null,null,null,null,null,null,null,null,null,null,null,null,null,null,null,null,null,"Guide Sheet"]
[null,null,null,null,null,null,null,null,null,null,null,null,null,null,null,null,null,null,null,null,null,null,null,"Farmland Protection Policy Act",null,null,null,null,null,null,null,null,"●Cultural Resources / Historic Properties"]
[null,null,null,null,null,null,null,null,null,null,null,null,null,null,null,null,null,null,null,null,null,null,null,null,null,null,null,null,null,null,null,null,"Guide Sheet"]
[null,null,null,null,null,null,null,null,null,null,null,null,null,null,null,null,null,null,null,null,null,null,null,null,null,null,null,null,null,null,null,null,"●Endangered and Threatened Species"]
[null,null,null,null,null,null,null,null,null,null,null,null,null,null,null,null,null,null,null,null,null,null,null,null,null,null,null,null,null,null,null,null,"Guide Sheet"]
[null,null,null,null,null,null,null,null,null,null,null,null,null,null,null,null,null,null,null,null,null,null,null,null,null,null,null,null,null,null,null,null,"Environmental Justice"]
[null,null,null,null,null,null,null,null,null,null,null,null,null,null,null,null,null,null,null,null,null,null,null,null,null,null,null,null,null,null,null,null,"Guide Sheet"]
[null,null,null,"If \"No,\" document on the NRCS-CPA-52, or notes section below, the finding, rationale, and information sources used and proceed with planning.",null,null,null,null,null,null,null,null,null,null,null,null,null,null,null,null,null,null,null,null,null,null,null,null,null,null,null,null,"●Essential Fish Habitat"]
[null,null,null,null,null,null,null,null,null,null,null,null,null,null,null,null,null,null,null,null,null,null,null,null,null,null,null,null,null,null,null,null,"Guide Sheet"]
[null,null,null,null,null,null,null,null,null,null,null,null,null,null,null,null,null,null,null,null,null,null,null,null,null,null,null,null,null,null,null,null,"Floodplain Management"]
[null,null,null,"If “Yes,”  go to Step 2. ",null,null,null,null,null,null,null,null,null,null,null,null,null,null,null,null,null,null,null,null,null,null,null,null,null,null,null,null,"Guide Sheet"]
[null,null,null,null,null,null,null,null,null,null,null,null,null,null,null,null,null,null,null,null,null,null,null,null,null,null,null,null,null,null,null,null,"Invasive Species"]
["STEP 2.  ",null,null,null,null,null,null,null,null,null,null,null,null,null,null,null,null,null,null,null,null,null,null,null,null,null,null,null,null,null,null,null,"Guide Sheet"]
["Are prime or unique farmlands or farmlands of statewide or local importance present in or near the area that will be affected by the action(s)?",null,null,null,null,null,null,null,null,null,null,null,null,null,null,null,null,null,null,null,null,null,null,null,null,null,null,null,null,null,null,null,"●Migratory Birds/Bald and Golden Eagle Protection Act "]
[null,null,null,null,null,null,null,null,null,null,null,null,null,null,null,null,null,null,null,null,null,null,null,null,null,null,null,null,null,null,null,null,"Guide Sheet"]
[null,null,null,null,null,null,null,null,null,null,null,null,null,null,null,null,null,null,null,null,null,null,null,null,null,null,null,null,null,null,null,null,"Natural Areas"]
[null,null,null,"If \"No,\" document on the NRCS-CPA-52, or notes section below, the finding, rationale, and information sources used and proceed with planning.",null,null,null,null,null,null,null,null,null,null,null,null,null,null,null,null,null,null,null,null,null,null,null,null,null,null,null,null,"Guide Sheet"]
[null,null,null,null,null,null,null,null,null,null,null,null,null,null,null,null,null,null,null,null,null,null,null,null,null,null,null,null,null,null,null,null,"Prime and Unique Farmlands"]
[null,null,null,null,null,null,null,null,null,null,null,null,null,null,null,null,null,null,null,null,null,null,null,null,null,null,null,null,null,null,null,null,"Guide Sheet"]
[null,null,null,"If “Yes,”  go to Step 3."]
[null,null,null,null,null,null,null,null,null,null,null,null,null,null,null,null,null,null,null,null,null,null,null,null,null,null,null,null,null,null,null,null,"Riparian Area"]
["STEP 3.  ",null,null,null,null,null,null,null,null,null,null,null,null,null,null,null,null,null,null,null,null,null,null,null,null,null,null,null,null,null,null,null,"Guide Sheet"]
["Can the action(s) be modified to avoid adverse effects or conversion?",null,null,null,null,null,null,null,null,null,null,null,null,null,null,null,null,null,null,null,null,null,null,null,null,null,null,null,null,null,null,null,"Scenic Beauty"]
[null,null,null,null,null,null,null,null,null,null,null,null,null,null,null,null,null,null,null,null,null,null,null,null,null,null,null,null,null,null,null,null,"Guide Sheet"]
[null,null,null,"If \"No,\" document the adverse effects on the NRCS-CPA-52, or notes section below, and proceed with planning.",null,null,null,null,null,null,null,null,null,null,null,null,null,null,null,null,null,null,null,null,null,null,null,null,null,null,null,null,"●Wetlands"]
[null,null,null,null,null,null,null,null,null,null,null,null,null,null,null,null,null,null,null,null,null,null,null,null,null,null,null,null,null,null,null,null,"Guide Sheet"]
[null,null,null,null,null,null,null,null,null,null,null,null,null,null,null,null,null,null,null,null,null,null,null,null,null,null,null,null,null,null,null,null,"●Wild and Scenic Rivers"]
[null,null,null,"If “Yes,”  modify and repeat Step 1 or contact the State Soil Scientist for further assistance.  Document on the NRCS-CPA-52, or notes section below, the finding, rationale, and information sources used and proceed with planning.",null,null,null,null,null,null,null,null,null,null,null,null,null,null,null,null,null,null,null,null,null,null,null,null,null,null,null,null,"Guide Sheet"]
[]
[]
[null,null,null,null,null,null,null,null,null,null,null,null,null,null,null,null,null,null,null,null,null,null,null,null,null,null,null,null,null,null,null,null,"Return to start of NRCS-CPA-52"]
["Notes:"]
[null,null,null,null,null,null,null,null,null,null,null,null,null,null,null,null,null,null,null,null,null,null,null,null,null,null,null,null,null,null,null,null,"Go to start of Form Instructions"]

{"sheet":"RiparianArea","index":17,"n_rows":40,"n_cols":33,"rows_kept":40,"cut":false,"hidden":false,"merged":[[4,6,4,8],[28,3,33,22],[0,13,0,22],[4,13,4,22],[2,0,2,12],[0,0,1,12],[3,0,4,5],[1,13,1,22],[2,13,2,22],[3,6,3,8],[3,13,3,22],[12,3,13,11],[23,0,24,22],[25,3,26,22],[4,9,4,11],[44,23,44,25],[7,23,7,25],[9,3,10,22],[20,3,20,22],[36,0,45,22],[35,0,35,22],[7,0,8,22],[15,0,16,22],[17,3,19,22],[0,32,0,36],[1,32,1,34],[2,32,2,36],[3,32,3,34],[3,35,3,36],[4,32,4,36],[5,32,5,34],[5,35,5,36],[6,32,6,36],[7,32,7,34],[7,35,7,36],[8,32,8,36],[9,32,9,34],[9,35,9,36],[10,32,10,36],[11,32,11,34],[11,35,11,36],[12,32,12,36],[13,32,13,34],[13,35,13,36],[14,32,14,36],[15,32,15,34],[15,35,15,36],[16,32,16,36],[17,32,17,34],[17,35,17,36],[18,32,18,36],[19,32,19,34],[19,35,19,36],[20,32,20,36],[21,32,21,34],[21,35,21,36],[22,32,22,36],[23,32,23,34],[23,35,23,36],[24,32,24,36],[25,32,25,34],[25,35,25,36],[27,32,27,36],[28,32,28,34],[28,35,28,36],[33,32,33,36],[34,32,34,34],[34,35,34,36],[29,32,29,36],[30,32,30,34],[30,35,30,36],[31,32,31,36],[32,32,32,34],[32,35,32,36]]}
["RIPARIAN AREA\nNECH 610.34",null,null,null,null,null,null,null,null,null,null,null,null,"Client/Plan Information:",null,null,null,null,null,null,null,null,null,null,null,null,null,null,null,null,null,null,"●Clean Air Act"]
[null,null,null,null,null,null,null,null,null,null,null,null,null,{"$f":"'CPA-52'!Q1","v":0},null,null,null,null,null,null,null,null,null,null,null,null,null,null,null,null,null,null,"Guide Sheet"]
["Evaluation Procedure Guide Sheet",null,null,null,null,null,null,null,null,null,null,null,null,{"$f":"'CPA-52'!V3","v":0},null,null,null,null,null,null,null,null,null,null,null,null,null,null,null,null,null,null,"●Clean Water Act / Waters of the U.S."]
["Check all that apply to this Guide Sheet review:",null,null,null,null,null,null,null,null,null,null,null,null,{"$f":"'CPA-52'!T4","v":0},null,null,null,null,null,null,null,null,null,null,null,null,null,null,null,null,null,null,"Guide Sheet"]
[null,null,null,null,null,null,null,null,null,null,null,null,null,{"$f":"'CPA-52'!M6","v":0},null,null,null,null,null,null,null,null,null,null,null,null,null,null,null,null,null,null,"●Coastal Zone Management"]
[null,null,null,null,null,null,null,null,null,null,null,null,null,null,null,null,null,null,null,null,null,null,null,null,null,null,null,null,null,null,null,null,"Guide Sheet"]
["STEP 1.  ",null,null,null,null,null,null,null,null,null,null,null,null,null,null,null,null,null,null,null,null,null,null,null,null,null,null,null,null,null,null,null,"Coral Reefs"]
["Is a riparian area present in or near the planning area?  (Definition can be found in Title 190, General Manual, Part 411.)",null,null,null,null,null,null,null,null,null,null,null,null,null,null,null,null,null,null,null,null,null,null,null,null,null,null,null,null,null,null,null,"Guide Sheet"]
[null,null,null,null,null,null,null,null,null,null,null,null,null,null,null,null,null,null,null,null,null,null,null,null,null,null,null,null,null,null,null,null,"●Cultural Resources / Historic Properties"]
[null,null,null,"If \"No,\" document on the NRCS-CPA-52, or notes section below, the finding, rationale, and information sources used and proceed with planning.",null,null,null,null,null,null,null,null,null,null,null,null,null,null,null,null,null,null,null,null,null,null,null,null,null,null,null,null,"Guide Sheet"]
[null,null,null,null,null,null,null,null,null,null,null,null,null,null,null,null,null,null,null,null,null,null,null,null,null,null,null,null,null,null,null,null,"●Endangered and Threatened Species"]
[null,null,null,null,null,null,null,null,null,null,null,null,null,null,null,null,null,null,null,null,null,null,null,null,null,null,null,null,null,null,null,null,"Guide Sheet"]
[null,null,null,"If “Yes,”  go to Step 2. ",null,null,null,null,null,null,null,null,null,null,null,null,null,null,null,null,null,null,null,null,null,null,null,null,null,null,null,null,"Environmental Justice"]
[null,null,null,null,null,null,null,null,null,null,null,null,null,null,null,null,null,null,null,null,null,null,null,null,null,null,null,null,null,null,null,null,"Guide Sheet"]
["STEP 2.  ",null,null,null,null,null,null,null,null,null,null,null,null,null,null,null,null,null,null,null,null,null,null,null,null,null,null,null,null,null,null,null,"●Essential Fish Habitat"]
["Do the action(s) address maintenance or improvement of water quality, water quantity, and fish and wildlife benefits provided by the riparian area?",null,null,null,null,null,null,null,null,null,null,null,null,null,null,null,null,null,null,null,null,null,null,null,null,null,null,null,null,null,null,null,"Guide Sheet"]
[null,null,null,null,null,null,null,null,null,null,null,null,null,null,null,null,null,null,null,null,null,null,null,null,null,null,null,null,null,null,null,null,"Floodplain Management"]
[null,null,null,"If \"No,\" revise the plan to maintain or improve  water quality, water quantity, and fish and wildlife benefits. Document the benchmark conditions and effects on the NRCS-CPA-52, or notes section below, go to Step 3.",null,null,null,null,null,null,null,null,null,null,null,null,null,null,null,null,null,null,null,null,null,null,null,null,null,null,null,null,"Guide Sheet"]
[null,null,null,null,null,null,null,null,null,null,null,null,null,null,null,null,null,null,null,null,null,null,null,null,null,null,null,null,null,null,null,null,"Invasive Species"]
[null,null,null,null,null,null,null,null,null,null,null,null,null,null,null,null,null,null,null,null,null,null,null,null,null,null,null,null,null,null,null,null,"Guide Sheet"]
[null,null,null,"If “Yes,”, go to Step 3.",null,null,null,null,null,null,null,null,null,null,null,null,null,null,null,null,null,null,null,null,null,null,null,null,null,null,null,null,"●Migratory Birds/Bald and Golden Eagle Protection Act "]
[null,null,null,null,null,null,null,null,null,null,null,null,null,null,null,null,null,null,null,null,null,null,null,null,null,null,null,null,null,null,null,null,"Guide Sheet"]
["STEP 3.  ",null,null,null,null,null,null,null,null,null,null,null,null,null,null,null,null,null,null,null,null,null,null,null,null,null,null,null,null,null,null,null,"Natural Areas"]
["Do the action(s) conflict with the conservation values/functions of the riparian area?",null,null,null,null,null,null,null,null,null,null,null,null,null,null,null,null,null,null,null,null,null,null,null,null,null,null,null,null,null,null,null,"Guide Sheet"]
[null,null,null,null,null,null,null,null,null,null,null,null,null,null,null,null,null,null,null,null,null,null,null,null,null,null,null,null,null,null,null,null,"Prime and Unique Farmlands"]
[null,null,null,"If \"No,\" document on the NRCS-CPA-52, or notes section below, the finding, rationale, and information sources used and proceed with planning.",null,null,null,null,null,null,null,null,null,null,null,null,null,null,null,null,null,null,null,null,null,null,null,null,null,null,null,null,"Guide Sheet"]
[]
[null,null,null,null,null,null,null,null,null,null,null,null,null,null,null,null,null,null,null,null,null,null,null,null,null,null,null,null,null,null,null,null,"Riparian Area"]
[null,null,null,"If “Yes,” inform the client of the values and functions of riparian areas, including their contribution to floodplain function, stream bank stability and integrity, nutrient cycling, pollutant filtering, sediment retention, and biological diversity, and present alternatives that will resolve the conflict.  Document on the NRCS-CPA-52, or notes section below, the finding, rationale, and information sources used and proceed with planning.",null,null,null,null,null,null,null,null,null,null,null,null,null,null,null,null,null,null,null,null,null,null,null,null,null,null,null,null,"Guide Sheet"]
[null,null,null,null,null,null,null,null,null,null,null,null,null,null,null,null,null,null,null,null,null,null,null,null,null,null,null,null,null,null,null,null,"Scenic Beauty"]
[null,null,null,null,null,null,null,null,null,null,null,null,null,null,null,null,null,null,null,null,null,null,null,null,null,null,null,null,null,null,null,null,"Guide Sheet"]
[null,null,null,null,null,null,null,null,null,null,null,null,null,null,null,null,null,null,null,null,null,null,null,null,null,null,null,null,null,null,null,null,"●Wetlands"]
[null,null,null,null,null,null,null,null,null,null,null,null,null,null,null,null,null,null,null,null,null,null,null,null,null,null,null,null,null,null,null,null,"Guide Sheet"]
[null,null,null,null,null,null,null,null,null,null,null,null,null,null,null,null,null,null,null,null,null,null,null,null,null,null,null,null,null,null,null,null,"●Wild and Scenic Rivers"]
[null,null,null,null,null,null,null,null,null,null,null,null,null,null,null,null,null,null,null,null,null,null,null,null,null,null,null,null,null,null,null,null,"Guide Sheet"]
["Notes:"]
[]
[null,null,null,null,null,null,null,null,null,null,null,null,null,null,null,null,null,null,null,null,null,null,null,null,null,null,null,null,null,null,null,null,"Return to start of NRCS-CPA-52"]
[]
[null,null,null,null,null,null,null,null,null,null,null,null,null,null,null,null,null,null,null,null,null,null,null,null,null,null,null,null,null,null,null,null,"Go to start of Form Instructions"]

{"sheet":"ScenicBeauty","index":18,"n_rows":40,"n_cols":33,"rows_kept":40,"cut":false,"hidden":false,"merged":[[2,23,2,25],[30,23,30,25],[27,0,27,22],[28,0,32,22],[4,13,4,22],[7,0,9,22],[11,3,12,22],[14,3,15,11],[17,0,19,22],[21,3,23,22],[3,0,4,5],[3,6,3,8],[3,13,3,22],[4,6,4,8],[4,9,4,11],[0,0,1,12],[0,13,0,22],[1,13,1,22],[2,0,2,12],[2,13,2,22],[0,32,0,36],[1,32,1,34],[2,32,2,36],[3,32,3,34],[3,35,3,36],[4,32,4,36],[5,32,5,34],[5,35,5,36],[6,32,6,36],[7,32,7,34],[7,35,7,36],[8,32,8,36],[9,32,9,34],[9,35,9,36],[10,32,10,36],[11,32,11,34],[11,35,11,36],[12,32,12,36],[13,32,13,34],[13,35,13,36],[14,32,14,36],[15,32,15,34],[15,35,15,36],[16,32,16,36],[17,32,17,34],[17,35,17,36],[18,32,18,36],[19,32,19,34],[19,35,19,36],[20,32,20,36],[21,32,21,34],[21,35,21,36],[22,32,22,36],[23,32,23,34],[23,35,23,36],[24,32,24,36],[25,32,25,34],[25,35,25,36],[27,32,27,36],[28,32,28,34],[28,35,28,36],[33,32,33,36],[34,32,34,34],[34,35,34,36],[29,32,29,36],[30,32,30,34],[30,35,30,36],[31,32,31,36],[32,32,32,34],[32,35,32,36]]}
["SCENIC BEAUTY\nNECH 610.35",null,null,null,null,null,null,null,null,null,null,null,null,"Client/Plan Information:",null,null,null,null,null,null,null,null,null,null,null,null,null,null,null,null,null,null,"●Clean Air Act"]
[null,null,null,null,null,null,null,null,null,null,null,null,null,{"$f":"'CPA-52'!Q1","v":0},null,null,null,null,null,null,null,null,null,null,null,null,null,null,null,null,null,null,"Guide Sheet"]
["Evaluation Procedure Guide Sheet",null,null,null,null,null,null,null,null,null,null,null,null,{"$f":"'CPA-52'!V3","v":0},null,null,null,null,null,null,null,null,null,null,null,null,null,null,null,null,null,null,"●Clean Water Act / Waters of the U.S."]
["Check all that apply to this Guide Sheet review:",null,null,null,null,null,"Alternative 1",null,null,null,null,null,null,{"$f":"'CPA-52'!T4","v":0},null,null,null,null,null,null,null,null,null,null,null,null,null,null,null,null,null,null,"Guide Sheet"]
[null,null,null,null,null,null,"Alternative 2",null,null,"Other",null,null,null,{"$f":"'CPA-52'!M6","v":0},null,null,null,null,null,null,null,null,null,null,null,null,null,null,null,null,null,null,"●Coastal Zone Management"]
[null,null,null,null,null,null,null,null,null,null,null,null,null,null,null,null,null,null,null,null,null,null,null,null,null,null,null,null,null,null,null,null,"Guide Sheet"]
["STEP 1.  ",null,null,null,null,null,null,null,null,null,null,null,null,null,null,null,null,null,null,null,null,null,null,null,null,null,null,null,null,null,null,null,"Coral Reefs"]
["Will the action(s) adversely affect the scenic quality of the general landscape or any specifically designated unique or valuable scenic landscape?  (Consult Section II of the FOTG for a listing of any identified areas of scenic beauty.)",null,null,null,null,null,null,null,null,null,null,null,null,null,null,null,null,null,null,null,null,null,null,null,null,null,null,null,null,null,null,null,"Guide Sheet"]
[null,null,null,null,null,null,null,null,null,null,null,null,null,null,null,null,null,null,null,null,null,null,null,null,null,null,null,null,null,null,null,null,"●Cultural Resources / Historic Properties"]
[null,null,null,null,null,null,null,null,null,null,null,null,null,null,null,null,null,null,null,null,null,null,null,null,null,null,null,null,null,null,null,null,"Guide Sheet"]
[null,null,null,null,null,null,null,null,null,null,null,null,null,null,null,null,null,null,null,null,null,null,null,null,null,null,null,null,null,null,null,null,"●Endangered and Threatened Species"]
[null,null,null,"If \"No,\" document on the NRCS-CPA-52, or notes section below, the finding, rationale, and information sources used and proceed with planning.",null,null,null,null,null,null,null,null,null,null,null,null,null,null,null,null,null,null,null,null,null,null,null,null,null,null,null,null,"Guide Sheet"]
[null,null,null,null,null,null,null,null,null,null,null,null,null,null,null,null,null,null,null,null,null,null,null,null,null,null,null,null,null,null,null,null,"Environmental Justice"]
[null,null,null,null,null,null,null,null,null,null,null,null,null,null,null,null,null,null,null,null,null,null,null,null,null,null,null,null,null,null,null,null,"Guide Sheet"]
[null,null,null,"If “Yes,”  go to Step 2. ",null,null,null,null,null,null,null,null,null,null,null,null,null,null,null,null,null,null,null,null,null,null,null,null,null,null,null,null,"●Essential Fish Habitat"]
[null,null,null,null,null,null,null,null,null,null,null,null,null,null,null,null,null,null,null,null,null,null,null,null,null,null,null,null,null,null,null,null,"Guide Sheet"]
["STEP 2.  ",null,null,null,null,null,null,null,null,null,null,null,null,null,null,null,null,null,null,null,null,null,null,null,null,null,null,null,null,null,null,null,"Floodplain Management"]
["Can the action(s) be modified to avoid the adverse effects on the scenic quality of the landscape?  NOTE:  NRCS must provide technical assistance with full consideration of alternative management and development systems that preserve scenic beauty or improve the landscape (GM 190, Part 410.24).",null,null,null,null,null,null,null,null,null,null,null,null,null,null,null,null,null,null,null,null,null,null,null,null,null,null,null,null,null,null,null,"Guide Sheet"]
[null,null,null,null,null,null,null,null,null,null,null,null,null,null,null,null,null,null,null,null,null,null,null,null,null,null,null,null,null,null,null,null,"Invasive Species"]
[null,null,null,null,null,null,null,null,null,null,null,null,null,null,null,null,null,null,null,null,null,null,null,null,null,null,null,null,null,null,null,null,"Guide Sheet"]
[null,null,null,null,null,null,null,null,null,null,null,null,null,null,null,null,null,null,null,null,null,null,null,null,null,null,null,null,null,null,null,null,"●Migratory Birds/Bald and Golden Eagle Protection Act "]
[null,null,null,"If \"No,\" consider any state or local requirements.  Document on the NRCS-CPA-52, or notes section below, the finding, rationale, and information sources used and proceed with planning.  ",null,null,null,null,null,null,null,null,null,null,null,null,null,null,null,null,null,null,null,null,null,null,null,null,null,null,null,null,"Guide Sheet"]
[null,null,null,null,null,null,null,null,null,null,null,null,null,null,null,null,null,null,null,null,null,null,null,null,null,null,null,null,null,null,null,null,"Natural Areas"]
[null,null,null,null,null,null,null,null,null,null,null,null,null,null,null,null,null,null,null,null,null,null,null,null,null,null,null,null,null,null,null,null,"Guide Sheet"]
[null,null,null,null,null,null,null,null,null,null,null,null,null,null,null,null,null,null,null,null,null,null,null,null,null,null,null,null,null,null,null,null,"Prime and Unique Farmlands"]
[null,null,null,"If “Yes,”  modify the planned action or activity and repeat Step 1.",null,null,null,null,null,null,null,null,null,null,null,null,null,null,null,null,null,null,null,null,null,null,null,null,null,null,null,null,"Guide Sheet"]
[]
["Notes:",null,null,null,null,null,null,null,null,null,null,null,null,null,null,null,null,null,null,null,null,null,null,null,null,null,null,null,null,null,null,null,"Riparian Area"]
[null,null,null,null,null,null,null,null,null,null,null,null,null,null,null,null,null,null,null,null,null,null,null,null,null,null,null,null,null,null,null,null,"Guide Sheet"]
[null,null,null,null,null,null,null,null,null,null,null,null,null,null,null,null,null,null,null,null,null,null,null,null,null,null,null,null,null,null,null,null,"Scenic Beauty"]
[null,null,null,null,null,null,null,null,null,null,null,null,null,null,null,null,null,null,null,null,null,null,null,null,null,null,null,null,null,null,null,null,"Guide Sheet"]
[null,null,null,null,null,null,null,null,null,null,null,null,null,null,null,null,null,null,null,null,null,null,null,null,null,null,null,null,null,null,null,null,"●Wetlands"]
[null,null,null,null,null,null,null,null,null,null,null,null,null,null,null,null,null,null,null,null,null,null,null,null,null,null,null,null,null,null,null,null,"Guide Sheet"]
[null,null,null,null,null,null,null,null,null,null,null,null,null,null,null,null,null,null,null,null,null,null,null,null,null,null,null,null,null,null,null,null,"●Wild and Scenic Rivers"]
[null,null,null,null,null,null,null,null,null,null,null,null,null,null,null,null,null,null,null,null,null,null,null,null,null,null,null,null,null,null,null,null,"Guide Sheet"]
[]
[]
[null,null,null,null,null,null,null,null,null,null,null,null,null,null,null,null,null,null,null,null,null,null,null,null,null,null,null,null,null,null,null,null,"Return to start of NRCS-CPA-52"]
[]
[null,null,null,null,null,null,null,null,null,null,null,null,null,null,null,null,null,null,null,null,null,null,null,null,null,null,null,null,null,null,null,null,"Go to start of Form Instructions"]

{"sheet":"Wetlands","index":19,"n_rows":75,"n_cols":33,"rows_kept":75,"cut":false,"hidden":false,"merged":[[72,0,72,1],[72,3,73,22],[5,0,8,22],[27,32,27,36],[28,32,28,34],[28,35,28,36],[29,32,29,36],[30,32,30,34],[30,35,30,36],[6,23,6,25],[54,23,54,25],[10,0,14,22],[22,3,22,22],[49,0,49,22],[51,3,51,22],[63,3,64,22],[3,6,3,8],[0,13,0,22],[4,13,4,22],[2,0,2,12],[0,0,1,12],[3,0,4,5],[1,13,1,22],[2,13,2,22],[3,13,3,22],[4,6,4,8],[4,9,4,11],[89,23,89,25],[75,0,91,22],[25,0,26,22],[28,3,29,22],[31,3,33,22],[38,3,38,22],[74,0,74,22],[46,0,46,7],[36,0,36,22],[40,3,44,22],[35,0,35,2],[59,0,59,2],[60,0,61,22],[66,3,71,22],[48,0,48,2],[53,3,57,22],[0,32,0,36],[1,32,1,34],[2,32,2,36],[3,32,3,34],[3,35,3,36],[4,32,4,36],[5,32,5,34],[5,35,5,36],[6,32,6,36],[7,32,7,34],[7,35,7,36],[8,32,8,36],[9,32,9,34],[9,35,9,36],[10,32,10,36],[11,32,11,34],[11,35,11,36],[12,32,12,36],[13,32,13,34],[13,35,13,36],[14,32,14,36],[15,32,15,34],[15,35,15,36],[31,32,31,36],[32,32,32,34],[32,35,32,36],[33,32,33,36],[34,32,34,34],[34,35,34,36],[16,3,20,22],[24,32,24,36],[25,32,25,34],[25,35,25,36],[20,32,20,36],[21,32,21,34],[21,35,21,36],[22,32,22,36],[23,32,23,34],[23,35,23,36],[16,32,16,36],[17,32,17,34],[17,35,17,36],[18,32,18,36],[19,32,19,34],[19,35,19,36]]}
["WETLANDS\nNECH 610.36",null,null,null,null,null,null,null,null,null,null,null,null,"Client/Plan Information:",null,null,null,null,null,null,null,null,null,null,null,null,null,null,null,null,null,null,"●Clean Air Act"]
[null,null,null,null,null,null,null,null,null,null,null,null,null,{"$f":"'CPA-52'!Q1","v":0},null,null,null,null,null,null,null,null,null,null,null,null,null,null,null,null,null,null,"Guide Sheet"]
["Evaluation Procedure Guide Sheet",null,null,null,null,null,null,null,null,null,null,null,null,{"$f":"'CPA-52'!V3","v":0},null,null,null,null,null,null,null,null,null,null,null,null,null,null,null,null,null,null,"●Clean Water Act / Waters of the U.S."]
["Check all that apply to this Guide Sheet review:",null,null,null,null,null,null,null,null,null,null,null,null,{"$f":"'CPA-52'!T4","v":0},null,null,null,null,null,null,null,null,null,null,null,null,null,null,null,null,null,null,"Guide Sheet"]
[null,null,null,null,null,null,null,null,null,null,null,null,null,{"$f":"'CPA-52'!M6","v":0},null,null,null,null,null,null,null,null,null,null,null,null,null,null,null,null,null,null,"●Coastal Zone Management"]
["This guide sheet addresses policy found in Title 190, General Manual, Part 410, Subpart B, Section 410.26.  Use the Clean Water Act Guide Sheet for addressing wetland concerns relating to the Clean Water Act.",null,null,null,null,null,null,null,null,null,null,null,null,null,null,null,null,null,null,null,null,null,null,null,null,null,null,null,null,null,null,null,"Guide Sheet"]
[null,null,null,null,null,null,null,null,null,null,null,null,null,null,null,null,null,null,null,null,null,null,null,null,null,null,null,null,null,null,null,null,"Coral Reefs"]
[null,null,null,null,null,null,null,null,null,null,null,null,null,null,null,null,null,null,null,null,null,null,null,null,null,null,null,null,null,null,null,null,"Guide Sheet"]
[null,null,null,null,null,null,null,null,null,null,null,null,null,null,null,null,null,null,null,null,null,null,null,null,null,null,null,null,null,null,null,null,"●Cultural Resources / Historic Properties"]
["STEP 1.  ",null,null,null,null,null,null,null,null,null,null,null,null,null,null,null,null,null,null,null,null,null,null,null,null,null,null,null,null,null,null,null,"Guide Sheet"]
["Are wetlands present in or near the planning area?  \nNOTE:  Wetlands are areas that are inundated by surface or ground water with a frequency sufficient to support and, under normal circumstances, do or would support prevalence of vegetative or aquatic life that requires saturated or seasonally saturated soil conditions for growth and reproduction, except for irrigation or leakage-induced wetlands created in uplands.",null,null,null,null,null,null,null,null,null,null,null,null,null,null,null,null,null,null,null,null,null,null,null,null,null,null,null,null,null,null,null,"●Endangered and Threatened Species"]
[null,null,null,null,null,null,null,null,null,null,null,null,null,null,null,null,null,null,null,null,null,null,null,null,null,null,null,null,null,null,null,null,"Guide Sheet"]
[null,null,null,null,null,null,null,null,null,null,null,null,null,null,null,null,null,null,null,null,null,null,null,null,null,null,null,null,null,null,null,null,"Environmental Justice"]
[null,null,null,null,null,null,null,null,null,null,null,null,null,null,null,null,null,null,null,null,null,null,null,null,null,null,null,null,null,null,null,null,"Guide Sheet"]
[null,null,null,null,null,null,null,null,null,null,null,null,null,null,null,null,null,null,null,null,null,null,null,null,null,null,null,null,null,null,null,null,"●Essential Fish Habitat"]
[null,null,null,null,null,null,null,null,null,null,null,null,null,null,null,null,null,null,null,null,null,null,null,null,null,null,null,null,null,null,null,null,"Guide Sheet"]
[null,null,null,"If \"No,\" document on the NRCS-CPA-52, or notes section below, the finding, rationale, and information sources used.  (If the area could qualify as an \"other water of the United States\" such as lakes, streams, channels, or other impoundment or conveyances, a Clean Water Act Section 404 permit may be required from the Corps of Engineers.  Refer to the Clean Water Act Guide sheet.)",null,null,null,null,null,null,null,null,null,null,null,null,null,null,null,null,null,null,null,null,null,null,null,null,null,null,null,null,"Floodplain Management"]
[null,null,null,null,null,null,null,null,null,null,null,null,null,null,null,null,null,null,null,null,null,null,null,null,null,null,null,null,null,null,null,null,"Guide Sheet"]
[null,null,null,null,null,null,null,null,null,null,null,null,null,null,null,null,null,null,null,null,null,null,null,null,null,null,null,null,null,null,null,null,"Invasive Species"]
[null,null,null,null,null,null,null,null,null,null,null,null,null,null,null,null,null,null,null,null,null,null,null,null,null,null,null,null,null,null,null,null,"Guide Sheet"]
[null,null,null,null,null,null,null,null,null,null,null,null,null,null,null,null,null,null,null,null,null,null,null,null,null,null,null,null,null,null,null,null,"●Migratory Birds/Bald and Golden Eagle Protection Act "]
[null,null,null,null,null,null,null,null,null,null,null,null,null,null,null,null,null,null,null,null,null,null,null,null,null,null,null,null,null,null,null,null,"Guide Sheet"]
[null,null,null,"If “Yes,” document the extent and location of wetlands and go to Step 2.",null,null,null,null,null,null,null,null,null,null,null,null,null,null,null,null,null,null,null,null,null,null,null,null,null,null,null,null,"Natural Areas"]
[null,null,null,null,null,null,null,null,null,null,null,null,null,null,null,null,null,null,null,null,null,null,null,null,null,null,null,null,null,null,null,null,"Guide Sheet"]
["STEP 2.  ",null,null,null,null,null,null,null,null,null,null,null,null,null,null,null,null,null,null,null,null,null,null,null,null,null,null,null,null,null,null,null,"Prime and Unique Farmlands"]
["Will the action(s) impact any wetland areas (this includes changing wetland types when considering wetland restoration projects)?",null,null,null,null,null,null,null,null,null,null,null,null,null,null,null,null,null,null,null,null,null,null,null,null,null,null,null,null,null,null,null,"Guide Sheet"]
[]
[null,null,null,null,null,null,null,null,null,null,null,null,null,null,null,null,null,null,null,null,null,null,null,null,null,null,null,null,null,null,null,null,"Riparian Area"]
[null,null,null,"If \"No,\" document on the NRCS-CPA-52, or notes section below, the finding, rationale, and information sources used and proceed with planning.",null,null,null,null,null,null,null,null,null,null,null,null,null,null,null,null,null,null,null,null,null,null,null,null,null,null,null,null,"Guide Sheet"]
[null,null,null,null,null,null,null,null,null,null,null,null,null,null,null,null,null,null,null,null,null,null,null,null,null,null,null,null,null,null,null,null,"Scenic Beauty"]
[null,null,null,null,null,null,null,null,null,null,null,null,null,null,null,null,null,null,null,null,null,null,null,null,null,null,null,null,null,null,null,null,"Guide Sheet"]
[null,null,null,"If “Yes,” assess the wetland functions and describe (on the NRCS-CPA-52) the effects of the proposed activity on the wetland area.  If effects are solely beneficial, continue with planning. If adverse effects exist, go to Step 3.",null,null,null,null,null,null,null,null,null,null,null,null,null,null,null,null,null,null,null,null,null,null,null,null,null,null,null,null,"●Wetlands"]
[null,null,null,null,null,null,null,null,null,null,null,null,null,null,null,null,null,null,null,null,null,null,null,null,null,null,null,null,null,null,null,null,"Guide Sheet"]
[null,null,null,null,null,null,null,null,null,null,null,null,null,null,null,null,null,null,null,null,null,null,null,null,null,null,null,null,null,null,null,null,"●Wild and Scenic Rivers"]
[null,null,null,null,null,null,null,null,null,null,null,null,null,null,null,null,null,null,null,null,null,null,null,null,null,null,null,null,null,null,null,null,"Guide Sheet"]
["STEP 3.  "]
["Do practicable alternatives exist that avoid adverse impact to wetlands?"]
[null,null,null,null,null,null,null,null,null,null,null,null,null,null,null,null,null,null,null,null,null,null,null,null,null,null,null,null,null,null,null,null,"Return to start of NRCS-CPA-52"]
[null,null,null,"If \"No,\" go to step 4."]
[null,null,null,null,null,null,null,null,null,null,null,null,null,null,null,null,null,null,null,null,null,null,null,null,null,null,null,null,null,null,null,null,"Go to start of Form Instructions"]
[null,null,null,"If “Yes,” advise the client of the available alternatives. If the client chooses to implement the alternative that avoids adverse impact (including obtaining all necessary permits), document on the NRCS-CPA-52, or notes section below, the finding, rationale, and information sources used and proceed with planning.  Otherwise, NRCS shall terminate all assistance for the project. "]
[]
[]
[]
[]
[]
["WETLANDS (continued)"]
[]
["STEP 4.  "]
["Do other measures exist that will minimize adverse effects to wetlands?"]
[]
[null,null,null,"If \"No,\" go to step 5."]
[]
[null,null,null,"If “Yes,” advise the client of the minimization measures.  If the client chooses to implement the minimization measures (including obtaining all necessary permits), document on the NRCS-CPA-52, or notes section below, the finding, rationale, and information sources used and proceed with planning.  Otherwise, NRCS shall terminate all assistance for the project."]
[]
[]
[]
[]
[]
["STEP 5.  "]
["Does the client wish to pursue an action that will result in adverse impacts to wetlands (where no practicable alternatives or minimization measures exist)? "]
[]
[]
[null,null,null,"If \"No,\" document on the NRCS-CPA-52, or notes section below, the finding, rationale, and information sources used and proceed with planning."]
[]
[]
[null,null,null,"If “Yes,” advise that client of the need to compensate for the lost wetland acres and functions. NRCS may assist the client in the development of a mitigation plan.  If the client chooses to implement the compensation measures (including obtaining all necessary permits), document on the NRCS-CPA-52, or notes section below, the finding, rationale, and information sources used and proceed with planning.  Otherwise, NRCS shall terminate all assistance for the project."]
[]
[]
[]
[]
[]
["NOTE: ",null,null,"Compensation is not required for irrigation or leakage-induced wetlands where no natural wetlands existed before the irrigation or waste management activity, though such areas may be regulated by other Federal agencies or State, Tribal, or local agencies."]
[]
["Notes:"]

{"sheet":"WildScenicRivers","index":20,"n_rows":52,"n_cols":33,"rows_kept":52,"cut":false,"hidden":false,"merged":[[14,32,14,36],[21,32,21,34],[21,35,21,36],[22,32,22,36],[23,32,23,34],[23,35,23,36],[15,35,15,36],[16,32,16,36],[17,32,17,34],[11,32,11,34],[11,35,11,36],[12,32,12,36],[13,32,13,34],[13,35,13,36],[25,32,25,34],[25,35,25,36],[27,32,27,36],[28,32,28,34],[28,35,28,36],[37,0,37,2],[40,3,43,22],[43,32,43,34],[0,13,0,22],[4,13,4,22],[2,0,2,12],[0,0,1,12],[3,0,4,5],[1,13,1,22],[2,13,2,22],[3,6,3,8],[3,13,3,22],[4,6,4,8],[4,9,4,11],[32,3,33,22],[24,32,24,36],[38,0,38,22],[57,23,57,25],[6,23,6,25],[23,23,23,25],[7,0,7,22],[12,3,13,22],[9,3,10,22],[22,3,26,22],[16,0,17,22],[51,0,51,22],[52,0,58,22],[19,3,20,22],[45,3,49,22],[29,0,30,22],[28,0,28,2],[35,3,35,22],[0,32,0,36],[1,32,1,34],[2,32,2,36],[3,32,3,34],[3,35,3,36],[4,32,4,36],[10,32,10,36],[19,32,19,34],[19,35,19,36],[20,32,20,36],[17,35,17,36],[18,32,18,36],[9,32,9,34],[9,35,9,36],[15,32,15,34],[5,32,5,34],[5,35,5,36],[6,32,6,36],[7,32,7,34],[7,35,7,36],[8,32,8,36],[33,32,33,36],[34,32,34,34],[29,32,29,36],[30,32,30,34],[30,35,30,36],[31,32,31,36],[32,32,32,34],[32,35,32,36],[34,35,34,36]]}
["WILD AND SCENIC RIVERS\nNECH 610.37",null,null,null,null,null,null,null,null,null,null,null,null,"Client/Plan Information:",null,null,null,null,null,null,null,null,null,null,null,null,null,null,null,null,null,null,"●Clean Air Act"]
[null,null,null,null,null,null,null,null,null,null,null,null,null,{"$f":"'CPA-52'!Q1","v":0},null,null,null,null,null,null,null,null,null,null,null,null,null,null,null,null,null,null,"Guide Sheet"]
["Evaluation Procedure Guide Sheet",null,null,null,null,null,null,null,null,null,null,null,null,{"$f":"'CPA-52'!V3","v":0},null,null,null,null,null,null,null,null,null,null,null,null,null,null,null,null,null,null,"●Clean Water Act / Waters of the U.S."]
["Check all that apply to this Guide Sheet review:",null,null,null,null,null,null,null,null,null,null,null,null,{"$f":"'CPA-52'!T4","v":0},null,null,null,null,null,null,null,null,null,null,null,null,null,null,null,null,null,null,"Guide Sheet"]
[null,null,null,null,null,null,null,null,null,null,null,null,null,{"$f":"'CPA-52'!M6","v":0},null,null,null,null,null,null,null,null,null,null,null,null,null,null,null,null,null,null,"●Coastal Zone Management"]
[null,null,null,null,null,null,null,null,null,null,null,null,null,null,null,null,null,null,null,null,null,null,null,null,null,null,null,null,null,null,null,null,"Guide Sheet"]
["STEP 1.  ",null,null,null,null,null,null,null,null,null,null,null,null,null,null,null,null,null,null,null,null,null,null,null,null,null,null,null,null,null,null,null,"Coral Reefs"]
["Could the action(s) have an effect on the natural, cultural or recreational values of any nearby rivers?",null,null,null,null,null,null,null,null,null,null,null,null,null,null,null,null,null,null,null,null,null,null,null,null,null,null,null,null,null,null,null,"Guide Sheet"]
[null,null,null,null,null,null,null,null,null,null,null,null,null,null,null,null,null,null,null,null,null,null,null,null,null,null,null,null,null,null,null,null,"●Cultural Resources / Historic Properties"]
[null,null,null,"If \"No,\" document on the NRCS-CPA-52, or notes section below, the finding, rationale, and information sources used and proceed with planning.",null,null,null,null,null,null,null,null,null,null,null,null,null,null,null,null,null,null,null,null,null,null,null,null,null,null,null,null,"Guide Sheet"]
[null,null,null,null,null,null,null,null,null,null,null,null,null,null,null,null,null,null,null,null,null,null,null,null,null,null,null,null,null,null,null,null,"●Endangered and Threatened Species"]
[null,null,null,null,null,null,null,null,null,null,null,null,null,null,null,null,null,null,null,null,null,null,null,null,null,null,null,null,null,null,null,null,"Guide Sheet"]
[null,null,null,"If “Yes,” analyze the potential effects and develop alternatives, as necessary, that would mitigate potential adverse effects, then go to Step 2. ",null,null,null,null,null,null,null,null,null,null,null,null,null,null,null,null,null,null,null,null,null,null,null,null,null,null,null,null,"Environmental Justice"]
[null,null,null,null,null,null,null,null,null,null,null,null,null,null,null,null,null,null,null,null,null,null,null,null,null,null,null,null,null,null,null,null,"Guide Sheet"]
[null,null,null,null,null,null,null,null,null,null,null,null,null,null,null,null,null,null,null,null,null,null,null,null,null,null,null,null,null,null,null,null,"●Essential Fish Habitat"]
["STEP 2.  ",null,null,null,null,null,null,null,null,null,null,null,null,null,null,null,null,null,null,null,null,null,null,null,null,null,null,null,null,null,null,null,"Guide Sheet"]
["Is there a Federal or State designated Wild, Scenic, or Recreational River segment or a river listed in the Nationwide Rivers Inventory (NRI) in or near the planning area?  ",null,null,null,null,null,null,null,null,null,null,null,null,null,null,null,null,null,null,null,null,null,null,null,null,null,null,null,null,null,null,null,"Floodplain Management"]
[null,null,null,null,null,null,null,null,null,null,null,null,null,null,null,null,null,null,null,null,null,null,null,null,null,null,null,null,null,null,null,null,"Guide Sheet"]
[null,null,null,null,null,null,null,null,null,null,null,null,null,null,null,null,null,null,null,null,null,null,null,null,null,null,null,null,null,null,null,null,"Invasive Species"]
[null,null,null,"If \"No,\" document on the NRCS-CPA-52, or notes section below, the finding, rationale, and information sources used and proceed with planning.",null,null,null,null,null,null,null,null,null,null,null,null,null,null,null,null,null,null,null,null,null,null,null,null,null,null,null,null,"Guide Sheet"]
[null,null,null,null,null,null,null,null,null,null,null,null,null,null,null,null,null,null,null,null,null,null,null,null,null,null,null,null,null,null,null,null,"●Migratory Birds/Bald and Golden Eagle Protection Act "]
[null,null,null,null,null,null,null,null,null,null,null,null,null,null,null,null,null,null,null,null,null,null,null,null,null,null,null,null,null,null,null,null,"Guide Sheet"]
[null,null,null,"If “Yes,” and there is still potential for effect consult your State environmental liaison to assist with determining the nature and significance of the effect.  Go to Step 3. \nNOTE: The State Office may request the administering federal or state agency (National Park Service in the case of NRI) to assist you in developing appropriate avoidance and mitigation measures. ",null,null,null,null,null,null,null,null,null,null,null,null,null,null,null,null,null,null,null,null,null,null,null,null,null,null,null,null,"Natural Areas"]
[null,null,null,null,null,null,null,null,null,null,null,null,null,null,null,null,null,null,null,null,null,null,null,"Nationwide Rivers Inventory",null,null,null,null,null,null,null,null,"Guide Sheet"]
[null,null,null,null,null,null,null,null,null,null,null,null,null,null,null,null,null,null,null,null,null,null,null,null,null,null,null,null,null,null,null,null,"Prime and Unique Farmlands"]
[null,null,null,null,null,null,null,null,null,null,null,null,null,null,null,null,null,null,null,null,null,null,null,null,null,null,null,null,null,null,null,null,"Guide Sheet"]
[]
[null,null,null,null,null,null,null,null,null,null,null,null,null,null,null,null,null,null,null,null,null,null,null,null,null,null,null,null,null,null,null,null,"Riparian Area"]
["STEP 3.  ",null,null,null,null,null,null,null,null,null,null,null,null,null,null,null,null,null,null,null,null,null,null,null,null,null,null,null,null,null,null,null,"Guide Sheet"]
["Could the proposed action or alternative have an adverse effect on the natural, cultural or recreational values of the wild, scenic, or recreational river segment that cannot be avoided or minimized?",null,null,null,null,null,null,null,null,null,null,null,null,null,null,null,null,null,null,null,null,null,null,null,null,null,null,null,null,null,null,null,"Scenic Beauty"]
[null,null,null,null,null,null,null,null,null,null,null,null,null,null,null,null,null,null,null,null,null,null,null,null,null,null,null,null,null,null,null,null,"Guide Sheet"]
[null,null,null,null,null,null,null,null,null,null,null,null,null,null,null,null,null,null,null,null,null,null,null,null,null,null,null,null,null,null,null,null,"●Wetlands"]
[null,null,null,"If \"No,\" document on the NRCS-CPA-52, or notes section below, the finding, rationale, and information sources used and proceed with planning.",null,null,null,null,null,null,null,null,null,null,null,null,null,null,null,null,null,null,null,null,null,null,null,null,null,null,null,null,"Guide Sheet"]
[null,null,null,null,null,null,null,null,null,null,null,null,null,null,null,null,null,null,null,null,null,null,null,null,null,null,null,null,null,null,null,null,"●Wild and Scenic Rivers"]
[null,null,null,null,null,null,null,null,null,null,null,null,null,null,null,null,null,null,null,null,null,null,null,null,null,null,null,null,null,null,null,null,"Guide Sheet"]
[null,null,null,"If “Yes,” go to Step 4."]
[]
["STEP 4.  ",null,null,null,null,null,null,null,null,null,null,null,null,null,null,null,null,null,null,null,null,null,null,null,null,null,null,null,null,null,null,null,"Return to start of NRCS-CPA-52"]
["Is NRCS providing financial assistance or otherwise controlling the action(s)?"]
[null,null,null,null,null,null,null,null,null,null,null,null,null,null,null,null,null,null,null,null,null,null,null,null,null,null,null,null,null,null,null,null,"Go to start of Form Instructions"]
[null,null,null,"If \"No,\" inform the client that a permit may be required for their activities and they should consult with the administering federal or state agency.  The permit authorization should be reflected in the final plan and documentation.  Continue planning, but a permit is required prior to implementation."]
[]
[]
[]
[]
[null,null,null,"If “Yes,” consult with the administering federal or state agency to determine whether the proposed action could foreclose options to classify any portion of the river segment as wild, scenic or recreational and to develop avoidance or mitigation measures.  Document on the NRCS-CPA-52, or notes section below, the finding, rationale, and information sources used and proceed with planning."]
[]
[]
[]
[]
[]
["Notes:"]

{"sheet":"ResourceConcernChecklist","index":21,"n_rows":64,"n_cols":14,"rows_kept":64,"cut":false,"hidden":false,"merged":[[63,0,63,18],[64,0,100,18],[0,0,0,11],[0,13,0,18],[1,0,1,12],[1,13,1,18],[2,13,2,18],[46,1,47,4],[43,10,43,11],[44,10,44,11],[43,12,43,18],[44,12,44,18],[3,0,4,11],[3,13,3,18],[4,13,4,18],[5,0,12,0],[11,1,12,4],[32,1,33,4],[13,0,33,0],[34,0,40,0],[34,17,34,18],[39,1,40,4],[35,10,35,11],[35,12,35,18],[5,10,5,11],[6,10,6,11],[5,12,5,18],[6,12,6,18],[57,0,62,0],[60,17,60,18],[61,1,62,4],[58,10,58,11],[58,12,58,18],[59,2,59,18],[48,0,56,0],[54,13,54,17],[55,1,56,4],[52,10,52,11],[52,12,52,18],[53,10,53,11],[53,12,53,18],[50,10,51,18],[41,0,47,0],[29,12,29,18],[30,12,30,18],[29,10,29,11],[30,10,30,11],[8,14,8,18],[0,24,0,28],[1,24,1,26],[2,24,2,28],[3,24,3,26],[3,27,3,28],[30,27,30,28],[9,14,9,18],[19,10,20,18],[17,10,18,18],[23,10,24,18],[25,10,26,18],[11,5,12,18],[8,24,8,28],[9,24,9,26],[9,27,9,28],[14,24,14,28],[19,24,19,26],[19,27,19,28],[20,24,20,28],[21,24,21,26],[21,27,21,28],[11,24,11,28],[12,24,12,26],[12,27,12,28],[22,24,22,28],[25,24,25,26],[25,27,25,28],[27,24,27,28],[28,24,28,26],[28,27,28,28],[29,24,29,28],[30,24,30,26],[4,24,4,28],[5,24,5,28],[6,24,6,26],[6,27,6,28],[7,24,7,28],[13,24,13,26],[13,27,13,28],[32,5,33,18],[39,5,40,18],[46,5,47,18],[55,5,56,18],[61,5,62,18],[37,24,37,28],[39,24,39,26],[39,27,39,28],[34,24,34,26],[34,27,34,28],[35,24,35,28],[36,24,36,26],[36,27,36,28],[36,10,36,11],[36,12,36,18],[32,24,32,28],[33,24,33,26],[33,27,33,28]]}
["RESOURCE CONCERN CHECKLIST",null,null,null,null,null,null,null,null,null,null,null,null,"Client/Plan Information:"]
["Field Inventory Guide Sheet (Optional)",null,null,null,null,null,null,null,null,null,null,null,null,{"$f":"'CPA-52'!Q1","v":0}]
[null,null,null,null,null,null,null,null,null,null,null,null,null,{"$f":"'CPA-52'!V3","v":0}]
["Identify the resource concern(s) that need to be addressed and the assessment tool(s) used for the evaluation.",null,null,null,null,null,null,null,null,null,null,null,null,{"$f":"'CPA-52'!T4","v":0}]
[null,null,null,null,null,null,null,null,null,null,null,null,null,{"$f":"'CPA-52'!M6","v":0}]
["SOIL",null,"Sheet & Rill ",null,null,null,null,"Wind Erosion",null,null,"Other:"]
[null,null,"Ephemeral gully erosion",null,null,null,null,"Classic gully erosion",null,null,"Other:"]
[null,null,"Bank erosion from streams, shorelines or water conveyance channels"]
[null,null,"Subsidence",null,null,"Organic matter depletion",null,null,null,null,null,null,null,"Other:"]
[null,null,"Compaction",null,null,"Concentration of salts or other chemicals",null,null,null,null,null,null,null,"Other:"]
[null,null,"Soil organism habitat loss or degradation",null,null,null,null,null,null,"Aggregate instability"]
[null,"Assessment tools,\n Problems & Notes:"]
[]
["WATER",null,"Ponding and flooding ",null,null,null,null,null,null,null,"Nutrients transported to surface water"]
[null,null,"Seasonal High water table",null,null,null,null,null,null,null,"Nutrients transported to groundwater"]
[null,null,"Seeps",null,null,null,null,null,null,null,"Pesticides transported to surface water"]
[null,null,"Drifted snow",null,null,null,null,null,null,null,"Pesticides transported to groundwater"]
[null,null,"Surface water depletion",null,null,null,null,null,null,null,"Pathogens and chemicals from manure, bio-solids or compost applications transported to surface water"]
[null,null,"Ground water depletion"]
[null,null,"Naturally available moisture use",null,null,null,null,null,null,null,"Pathogens and chemicals from manure, bio-solids or compost applications trasported to groundwater"]
[null,null,"Inefficient irrigation water use"]
[null,null,"Other:",null,null,null,null,null,null,null,"Salts transported to surface water"]
[null,null,"Other:",null,null,null,null,null,null,null,"Salts transported to groundwater"]
[null,null,null,null,null,null,null,null,null,null,"Petroleum, heavy metals, and other pollutants transported to surface water"]
[]
[null,null,null,null,null,null,null,null,null,null,"Petroleum, heavy metals, and other pollutants transported to groundwater"]
[]
[null,null,null,null,null,null,null,null,null,null,"Sediment transported to surface water"]
[null,null,null,null,null,null,null,null,null,null,"Elevated water temperature"]
[null,null,null,null,null,null,null,null,null,null,"Other:"]
[null,null,null,null,null,null,null,null,null,null,"Other:"]
[]
[null,"Assessment tools,\n Problems & Notes:"]
[]
["AIR",null,"Emissions of particulate matter (PM) and PM precursors"]
[null,null,"Emissions of greenhouse gases (GHGs)",null,null,null,null,null,null,null,"Other:"]
[null,null,"Emissions of ozone precursors",null,null,null,null,null,null,null,"Other:"]
[null,null,"Objectionable odors"]
[null,null,"Emissions of airborne reactive nitrogen"]
[null,"Assessment tools,\n Problems & Notes:"]
[]
["  PLANTS"]
[null,null,"Plant productivity and health",null,null,null,null,null,null,null,"Wildfire hazard from biomass accumulation"]
[null,null,"Plant structure and composition ",null,null,null,null,null,null,null," Other:"]
[null,null,"Plant pest pressure",null,null,null,null,null,null,null," Other:"]
[]
[null,"Assessment tools,\n Problems & Notes:"]
[]
["     ANIMALS",null,"Terrestrial habitat for wildlife and invertebrates",null,null,null,null,null,null,null,"Feed and forage imbalance"]
[null,null,"Aquatic habitat for fish and other organisms",null,null,null,null,null,null,null,"Inadequate livestock shelter"]
[null,null,"Other:",null,null,null,null,null,null,null,"Inadequate livestock water quantity, quality and distribution"]
[null,null,"Other:"]
[null,null,null,null,null,null,null,null,null,null,"Other:"]
[null,null,null,null,null,null,null,null,null,null,"Other:"]
[]
[null,"Assessment tools,\n Problems & Notes:"]
[]
["ENERGY"]
[null,null,"Energy efficiency of equipment and facilities",null,null,null,null,null,null,null,"Other:"]
[null,null,"Energy efficiency of farming/ranching practices and field operations"]
[]
[null,"Assessment tools,\n Problems & Notes:"]
[]
["Field Inventory Guide Sheet - Notes Section"]